Workbook

Sheet はじめに

Sheet 説明
B1: 会計帳簿システムの使用手順 | M1: ４．補足Q&A
M2: 4-<1>バックアップ処理のイメージは？
B3: １．年度初めの準備 | H3: ２.PCの動きが重くて伝票を削除したいとき。 | M3: →バックアップには、A B C Dの4種類があります。
C4: 前年度から引き継ぐものは、このシステムとしては「会計帳簿.xlsm」だけです。 | H4: 基本的には年度初めの対応とほぼ同じです。
H5: 2-<1> | I5: 最初に、バックアップファイルCを作成します。
B6: 1-<1> | C6: 最初に、バックアップファイルCを作成します（同じフォルダ内）。
H8: 2-<2> | I8: 伝票を削除します。
I9: 1-<2>だけ行います。
B10: 1-<2> | C10: 前年度の伝票を削除します（処理が軽ければ削除しなくてもOK）。 | I10: ここへ削除したい範囲（基本的には期間計算の単位で、例えば2021/4/1~2021/6/30など）を入力して、伝票削除を実行してください。
C12: 前年度の年度開始日を削除開始日へ、年度終了日を削除終了日へ入れるのが基本です。
H14: ３．伝票入力と月次の処理
C15: 削除開始日 | D15: 削除終了日 | H15: 3-<1> | I15: 現金及び預金の動きの全てを伝票処理します。
I16: 伝票を作ってから出納簿に記録するのではなく、
C17: 伝票の削除を実行します。 | I17: 出納簿（兼仕訳帳）に記録してから、伝票を印刷する順番にしています。
I19: 作業方法は、出納簿の解説をお読みください。 | M19: 各月のEXCELマクロファイル(xlsm)を用意するのではなく、バックアップが各月の結果となります。
C20: 間違えて伝票を削除した場合
C21: →補足4-<5>を行ってください。 | H21: 3-<2> | I21: 毎月末（期間末）に、試算表を作成します。
I22: 1)期間計算をクリック（期間別試算表の各期間の上段にボタン） | M22: 4-<2>月次の処理が終わらないと、翌月の伝票を入れられないのか？
B23: 1-<3>-1 | C23: 団体名を入れてください（一度入れればOK)。 | M23: →伝票を入れるのは、いつでもOKです。但し、伝票Noは順番を守ってください。
C24: A自治会 | I24: 2)細分類をハンド記入
B25: 1-<3>-2 | C25: 年度初めの設定をします。 | I25: 3)出納簿の印刷（ 当該の期間を入力、科目は空欄にする。PDFで確認後印刷。） | M25: 月次処理は全データから、当該期間のデータを拾い上げるため、他の期間のデータがあっても影響ありません。
D26: 2021 | E26: 年度
B27: 1-<3>-3 | C27: 期間別試算表の期間設定を行います。 | I27: 4）実績のある科目について、元帳を印刷
D28: 開始日 | E28: 終了日 | I28: 5)現金と預金の残高照合 | M28: 4-<3>PCが高性能で、何も重くならないのに、過去の伝票を削除する必要があるのか？
C29: 前年度末 | E29: 2021-03-31
C30: 期間計算1 | D30: 2021-04-01 | E30: 2021-04-30 | H30: 3-<3> | I30: バックアップBを作成します。（期間別試算表の各期間の上段にボタン） | M30: →サクサク動くのなら、年度を超えても伝票削除は不要です。但し年度初めは、1-<3>は必ず行ってください。
C31: 期間計算2 | D31: 2021-05-01 | E31: 2021-05-31
C32: 期間計算3 | D32: 2021-06-01 | E32: 2021-06-30
C33: 期間計算4 | D33: 2021-07-01 | E33: 2021-07-31 | M33: 4-<4>バックアップファイルなどファイルを開いたとき、「コンテンツの有効化」、を問われた場合は、そこをクリックして有効化してから、一度、保存してください。再度、開くときは、この問いは出てこないはずです。
C34: 期間計算5 | D34: 2021-08-01 | E34: 2021-08-31
C35: 期間計算6 | D35: 2021-09-01 | E35: 2021-09-30 | I35: 以上です。
C36: 期間計算7 | D36: 2021-10-01 | E36: 2021-10-31
C37: 期間計算8 | D37: 2021-11-01 | E37: 2021-11-30 | M37: 4-<5>間違えて伝票削除を実行した場合(削除をし過ぎた場合）、復元の仕方は？
C38: 期間計算9 | D38: 2021-12-01 | E38: 2021-12-31
C39: 期間計算10 | D39: 2022-01-01 | E39: 2022-01-31 | M39: →慎重に行う必要があります。
C40: 期間計算11 | D40: 2022-02-01 | E40: 2022-02-28 | M40: 1) 同じフォルダの中に、バックアップCファイル「XXXXXXC_会計帳簿.xlsm」が作られているはずです。これを開いて、間違えて削除した伝票が残っていることを確認してください。
C41: 期間計算12 | D41: 2022-03-01 | E41: 2022-03-31
C43: 通期期間 | D43: =MIN(D30:D41) -> 2021-04-01 | E43: =MAX(E30:E41) -> 2022-03-31 | M43: 2) 今、「会計帳簿.xlsm」と「XXXXXXC_会計帳簿.xlsm」の２つのファイルが開かれているはずです。「会計帳簿.xlsm」を閉じてください。
B45: 1-<3>-4 | C45: 前年度末の現金及び普通預金の残高を登録します。
C46: 前年度末現金 | D46: 0 | E46: 円 | M46: 3)「XXXXXXC_会計帳簿.xlsm」ファイルの「説明」シートのこの位置から、以下のバックアップDを実行ください。
C47: 前年度末普通預金 | D47: 1925396 | E47: 円
B49: 1-<3>-5 | C49: バックアップファイルAを作成します。
M51: 4)「XXXXXXC_会計帳簿.xlsm」を閉じてください。
B52: 年度初めの準備は以上です。 | M52: 5)「会計帳簿.xlsm」を削除してください。
M53: 6)「XXXXXXC_会計帳簿.xlsm」の名前を「会計帳簿.xlsm」へ変更してください。
M55: 7)1-<1>または2-<1>を再度行って下さい。
M57: 4-<6>使い始めた後で、科目名や細分類名を変更することが出来ますか？
M59: →できます。科目細分類表」シートに手順があります。

Sheet 伝票作成
B1: =IF(F16 <> K16,"記入にエラーがあります。訂正してからPDF作成してください。","") ->  | AF1: 1
B2: 伝票入力は出納簿で行います。ここでは伝票Noだけを入力します。
D3: =説明!C24 -> A自治会 | G3: 会計伝票
B4: =説明!D26 -> 2021 | D4: 年度 | J4: 会長印 | K4: 会計印
B5: 伝票No | E5: 1
E6: =IF(AND(E7>=start_date,E7<=end_date),"","この伝票Noは古い年度で使われたままです！") -> 
B7: 計上日 | E7: =INDEX(debit_allitems,MATCH(slip_no,debit_slip_no,0),1) -> 2021-04-01
B9: 借 方 | G9: 貸 方
B10: 行番 | C10: No番号 | D10: 科目G | E10: 科 目 | F10: 金額(円) | G10: 行番 | H10: No番号 | I10: 科目G | J10: 科 目 | K10: 金額(円)
B11: 1 | C11: =slip_no&B11 -> 11 | D11: =IFERROR(INDEX(debit_all_items,MATCH(C11,debit_chain,0),1),"") -> - | E11: =IFERROR(INDEX(debit_all_items,MATCH(C11,debit_chain,0),2),"") -> 施設費 | F11: =IFERROR(INDEX(debit_all_items,MATCH(C11,debit_chain,0),4),"") -> 21902 | G11: 1 | H11: =slip_no&G11 -> 11 | I11: =IFERROR(INDEX(credit_all_items,MATCH(H11,debit_chain,0),1),"") -> - | J11: =IFERROR(INDEX(credit_all_items,MATCH(H11,debit_chain,0),2),"") -> 普通預金 | K11: =IFERROR(INDEX(credit_all_items,MATCH(H11,debit_chain,0),4),"") -> 34365
B12: 2 | C12: =slip_no&B12 -> 12 | D12: =IFERROR(INDEX(debit_all_items,MATCH(C12,debit_chain,0),1),"") -> - | E12: =IFERROR(INDEX(debit_all_items,MATCH(C12,debit_chain,0),2),"") -> 施設費 | F12: =IFERROR(INDEX(debit_all_items,MATCH(C12,debit_chain,0),4),"") -> 12463 | G12: 2 | H12: =slip_no&G12 -> 12 | I12: =IFERROR(INDEX(credit_all_items,MATCH(H12,debit_chain,0),1),"") -> - | J12: =IFERROR(INDEX(credit_all_items,MATCH(H12,debit_chain,0),2),"") -> 普通預金 | K12: =IFERROR(INDEX(credit_all_items,MATCH(H12,debit_chain,0),4),"") -> 0
B13: 3 | C13: =slip_no&B13 -> 13 | D13: =IFERROR(INDEX(debit_all_items,MATCH(C13,debit_chain,0),1),"") ->  | E13: =IFERROR(INDEX(debit_all_items,MATCH(C13,debit_chain,0),2),"") ->  | F13: =IFERROR(INDEX(debit_all_items,MATCH(C13,debit_chain,0),4),"") ->  | G13: 3 | H13: =slip_no&G13 -> 13 | I13: =IFERROR(INDEX(credit_all_items,MATCH(H13,debit_chain,0),1),"") ->  | J13: =IFERROR(INDEX(credit_all_items,MATCH(H13,debit_chain,0),2),"") ->  | K13: =IFERROR(INDEX(credit_all_items,MATCH(H13,debit_chain,0),4),"") -> 
B14: 4 | C14: =slip_no&B14 -> 14 | D14: =IFERROR(INDEX(debit_all_items,MATCH(C14,debit_chain,0),1),"") ->  | E14: =IFERROR(INDEX(debit_all_items,MATCH(C14,debit_chain,0),2),"") ->  | F14: =IFERROR(INDEX(debit_all_items,MATCH(C14,debit_chain,0),4),"") ->  | G14: 4 | H14: =slip_no&G14 -> 14 | I14: =IFERROR(INDEX(credit_all_items,MATCH(H14,debit_chain,0),1),"") ->  | J14: =IFERROR(INDEX(credit_all_items,MATCH(H14,debit_chain,0),2),"") ->  | K14: =IFERROR(INDEX(credit_all_items,MATCH(H14,debit_chain,0),4),"") -> 
B15: 5 | C15: =slip_no&B15 -> 15 | D15: =IFERROR(INDEX(debit_all_items,MATCH(C15,debit_chain,0),1),"") ->  | E15: =IFERROR(INDEX(debit_all_items,MATCH(C15,debit_chain,0),2),"") ->  | F15: =IFERROR(INDEX(debit_all_items,MATCH(C15,debit_chain,0),4),"") ->  | G15: 5 | H15: =slip_no&G15 -> 15 | I15: =IFERROR(INDEX(credit_all_items,MATCH(H15,debit_chain,0),1),"") ->  | J15: =IFERROR(INDEX(credit_all_items,MATCH(H15,debit_chain,0),2),"") ->  | K15: =IFERROR(INDEX(credit_all_items,MATCH(H15,debit_chain,0),4),"") -> 
E16: 計 | F16: =SUM(F11:F15) -> 34365 | J16: 計 | K16: =SUM(K11:K15) -> 34365
D18: 借方細分類 | I18: 貸方細分類
B19: 1 | C19: =C11 -> 11 | D19: =IFERROR(INDEX(debit_all_items,MATCH(C19,debit_chain,0),3),"") -> 公民館管理費 | G19: 1 | H19: =H11 -> 11 | I19: =IFERROR(INDEX(credit_all_items,MATCH(H19,debit_chain,0),3),"") -> 振替支払
B20: 2 | C20: =C12 -> 12 | D20: =IFERROR(INDEX(debit_all_items,MATCH(C20,debit_chain,0),3),"") -> 防犯灯維持費 | G20: 2 | H20: =H12 -> 12 | I20: =IFERROR(INDEX(credit_all_items,MATCH(H20,debit_chain,0),3),"") -> 振込支払
B21: 3 | C21: =C13 -> 13 | D21: =IFERROR(INDEX(debit_all_items,MATCH(C21,debit_chain,0),3),"") ->  | G21: 3 | H21: =H13 -> 13 | I21: =IFERROR(INDEX(credit_all_items,MATCH(H21,debit_chain,0),3),"") -> 
B22: 4 | C22: =C14 -> 14 | D22: =IFERROR(INDEX(debit_all_items,MATCH(C22,debit_chain,0),3),"") ->  | G22: 4 | H22: =H14 -> 14 | I22: =IFERROR(INDEX(credit_all_items,MATCH(H22,debit_chain,0),3),"") -> 
B23: 5 | C23: =C15 -> 15 | D23: =IFERROR(INDEX(debit_all_items,MATCH(C23,debit_chain,0),3),"") ->  | G23: 5 | H23: =H15 -> 15 | I23: =IFERROR(INDEX(credit_all_items,MATCH(H23,debit_chain,0),3),"") -> 
B25: 摘要
B26: 1 | C26: =slip_no&B26 -> 11 | D26: =IFERROR(INDEX(credit_all_items,MATCH(C26,debit_chain,0),5),"") -> 3月分電気料/振替支払 A公民館/2口 従量電灯B/3基 | K26: =IFERROR(INDEX(credit_all_items,MATCH(C26,debit_chain,0),6),"") -> （連）
B27: 2 | C27: =slip_no&B27 -> 12 | D27: =IFERROR(INDEX(credit_all_items,MATCH(C27,debit_chain,0),5),"") -> 3月分電気料/振替支払 街路灯/103基 | K27: =IFERROR(INDEX(credit_all_items,MATCH(C27,debit_chain,0),6),"") -> 0
B28: 3 | C28: =slip_no&B28 -> 13 | D28: =IFERROR(INDEX(credit_all_items,MATCH(C28,debit_chain,0),5),"") ->  | K28: =IFERROR(INDEX(credit_all_items,MATCH(C28,debit_chain,0),6),"") -> 
B29: 4 | C29: =slip_no&B29 -> 14 | D29: =IFERROR(INDEX(credit_all_items,MATCH(C29,debit_chain,0),5),"") ->  | K29: =IFERROR(INDEX(credit_all_items,MATCH(C29,debit_chain,0),6),"") -> 
B30: 5 | C30: =slip_no&B30 -> 15 | D30: =IFERROR(INDEX(credit_all_items,MATCH(C30,debit_chain,0),5),"") ->  | K30: =IFERROR(INDEX(credit_all_items,MATCH(C30,debit_chain,0),6),"") -> 
B32: 説明/備考

Sheet 出納簿
N1: 解説↗ | Q1: コントロールデータ | AE1: 合計金額表示方法判定フラグ | AF1: 2 | AH1: 借方対象期間合計金額 | AI1: 借方対象科目合計金額 | AJ1: 貸方対象期間合計金額 | AK1: 貸方対象科目合計金額 | AL1: 伝票削除フラグ
B2: =説明!C24 -> A自治会 | D2: 出納簿兼仕訳帳 | T2: 選択2 選択3-1 | X2: 選択3-2 選択5 | AA2: 選択4 | AC2: 選択1 | AE2: 合計判定フラグに対応する合計額の結果 | AF2: 伝票データ入力 | AG2: 1 | AH2: 0 | AI2: 0 | AJ2: 0 | AK2: 0 | AM2: 削除開始日 | AN2: 削除終了日 | AO2: =説明!C24 -> A自治会 | AQ2: 出納簿 兼 総勘定元帳 | AU2: =B3 -> 2021 | AV2: 年度 | BB2: =TODAY() -> 2022-11-10
B3: =説明!D26 -> 2021 | C3: 年度 | E3: 期間 | F3: 2021-04-01 | H3: 2021-10-31 | Q3: 借方チェーン番号 | R3: 貸方チェーン番号 | S3: 印刷行の指定 A+B+C+D | T3: 対象期間全科目 A | U3: 借方と貸方が同じ B | V3: 科目が借方科目に一致、但し科目が空欄の場合はN C | W3: 科目が貸方科目に一致,但し科目が空欄の場合はN D | X3: 対象科目が借方または貸方に一致 | Y3: 対象期間対象科目借方金額合計 | Z3: 対象期間対象科目貸方金額合計 | AA3: a 処理日が範囲内はA、範囲外はB、未入力はC | AB3: b 伝票Noが最大の行に1マークが入る。 | AC3: aがAかつbが1の場合はY、そうでない場合でaがCならY、違う場合N | AD3: 借方科目または貸方科目が空欄 | AF3: 対象期間全科目 | AG3: 2 | AH3: =SUMIF(print_judge_date,"=Y",debit_sum_2) -> 12747204 | AI3: 0 | AJ3: =SUMIF(print_judge_date,"=Y",credit_sum_2) -> 12747204 | AK3: 0 | AM3: =IF(説明!C16="","",説明!C16) ->  | AN3: =IF(説明!D16="","",説明!D16) ->  | AR3: 対象期間 | AS3: =IF(from_date_2<>"",from_date_2,"") -> 2021-04-01 | AT3: 〜 | AU3: =IF(to_date_2<>"",to_date_2,"") -> 2021-10-31
E4: 科目G | F4: =IFERROR(VLOOKUP(H4,g_kamoku,2,FALSE),"") ->  | G4: 科目 | M4: 借方-貸方= | N4: =G7-M7 -> 0 | O4: 円 | AF4: 対象期間対象科目 | AG4: 3 | AH4: 0 | AI4: =SUMIFS(debit_sum_2,print_judge_date,"Y",debit_select,"Y") -> 0 | AJ4: 0 | AK4: =SUMIFS(credit_sum_2,print_judge_date,"Y",credit_select,"Y") -> 0 | AR4: 科目G | AS4: =list_kamoku_2 ->  | AT4: 科目 | AU4: =H4 -> 0 | AZ4: 借方-貸方= | BA4: =N4 -> 0 | BB4: 円
A5: 使用可 | D5: 借方 | I5: 貸方 | AF5: 全期間全科目 | AG5: 4 | AH5: =SUMIF(process_date,"=Y",debit_sum_2) -> 0 | AI5: 0 | AJ5: =SUMIF(process_date,"=Y",credit_sum_2) -> 0 | AK5: 0 | AQ5: 借 方 | AV5: 貸 方
F6: 期間合計金額 | G6: =IFERROR(VLOOKUP(total_judge,sum_judge_table,2,FALSE),"") -> 12747204 | H6: 円 | L6: 期間合計金額 | M6: =IFERROR(VLOOKUP(total_judge,sum_judge_table,4,FALSE),"") -> 12747204 | N6: 円 | AF6: 全期間対象科目 | AG6: 5 | AH6: =SUMIF(process_date,"=Y",debit_sum_2) -> 0 | AI6: =SUMIF(debit_select,"=Y",debit_sum_2) -> 0 | AJ6: =SUMIF(process_date,"=Y",credit_sum_2) -> 0 | AK6: =SUMIF(credit_select,"=Y",credit_sum_2) -> 0 | AS6: 期間合計金額 | AT6: =G6 -> 12747204 | AU6: 円 | AY6: 期間合計金額 | AZ6: =M6 -> 12747204 | BA6: 円
F7: 科目合計金額 | G7: =IFERROR(VLOOKUP(total_judge,sum_judge_table,3,FALSE),"") -> 0 | H7: 円 | L7: 科目合計金額 | M7: =IFERROR(VLOOKUP(total_judge,sum_judge_table,5,FALSE),"") -> 0 | N7: 円 | AG7: 6 | AS7: 科目合計金額 | AT7: =G7 -> 0 | AU7: 円 | AY7: 科目合計金額 | AZ7: =M7 -> 0 | BA7: 円 | BC7: （複）複式 (連）連記式
B8: 計上日 | C8: 伝No | D8: 行No | E8: 科目G | F8: 科目名（選択） | G8: 細分類（選択） | H8: 金額(円) | I8: 伝No | J8: 行No | K8: 科目G | L8: 科目名（選択） | M8: 細分類（選択） | N8: 金額(円) | O8: 摘要 | P8: 補足 | Q8: & | R8: & | AO8: 計上日 | AP8: 伝票No. | AQ8: 行番 | AR8: 科目G | AS8: 科目名 | AT8: 細分類 | AU8: 金額 | AV8: 伝票No. | AW8: 行番 | AX8: 科目G | AY8: 科目名 | AZ8: 細分類 | BA8: 金額 | BB8: 摘要 | BC8: 補足
A9: =IF(AND(_xlfn.ISFORMULA(K9),_xlfn.ISFORMULA(E9),_xlfn.ISFORMULA(Q9:AD9),_xlfn.ISFORMULA(AL9),_xlfn.ISFORMULA(AO9:BC9)),"可","不可") -> 可 | B9: 2021-04-01 | C9: 1 | D9: 1 | E9: =IFERROR(VLOOKUP(F9,g_kamoku,2,FALSE),"") -> - | F9: 施設費 | G9: 公民館管理費 | H9: 21902 | I9: =C9 -> 1 | J9: =D9 -> 1 | K9: =IFERROR(VLOOKUP(L9,g_kamoku,2,FALSE),"") -> - | L9: 普通預金 | M9: 振替支払 | N9: 34365 | O9: 3月分電気料/振替支払 A公民館/2口 従量電灯B/3基 | P9: （連） | Q9: =C9&D9 -> 11 | R9: =I9&J9 -> 11 | S9: =T9&U9&V9&W9 -> YNNN | T9: =IF(AND(from_date_2<=B9,to_date_2>=B9),"Y","N") -> Y | U9: =IF(F9=L9,"Y","N") -> N | V9: =IF(AND(kamoku_name<>"",F9=kamoku_name),"Y","N") -> N | W9: =IF(AND(kamoku_name<>"",L9=kamoku_name),"Y","N") -> N | X9: =IF(OR(V9="Y",W9="Y"),"Y","N") -> N | Y9: =IF(AND(X9="Y",V9="Y"),"Y","N") -> N | Z9: =IF(AND(X9="Y",W9="Y"),"Y","N") -> N | AA9: =IF(AND(B9>=start_date,B9<=end_date),"A",IF(B9="","C","B")) -> A | AB9: =IFERROR(MATCH(MAX(slip),C9,0),"") ->  | AC9: =IF(AND(AA9="A",AB9<>""),"Y",IF(AA9="C","Y","N")) -> N | AD9: =IF(OR(F9="",L9=""),"Y","N") -> N | AL9: =IF(OR(delete_start_date="",delete_end_date=""),"",IF(AND(B9>=delete_start_date,B9<=delete_end_date),"1","")) ->  | AO9: =B9 -> 2021-04-01 | AP9: 1 | AQ9: 1 | AR9: =IF(E9=0,"",E9) -> - | AS9: =IF(F9=0,"",F9) -> 施設費 | AT9: =IF(G9=0,"",G9) -> 公民館管理費 | AU9: =IF(H9=0,"",H9) -> 21902 | AV9: 1 | AW9: 1 | AX9: =IF(K9=0,"",K9) -> - | AY9: 普通預金 | AZ9: 振替支払 | BA9: 34365 | BB9: 3月分電気料/振替支払 A公民館/2口 従量電灯B/3基 | BC9: （連）
A10: =IF(AND(_xlfn.ISFORMULA(K10),_xlfn.ISFORMULA(E10),_xlfn.ISFORMULA(Q10:AD10),_xlfn.ISFORMULA(AL10),_xlfn.ISFORMULA(AO10:BC10)),"可","不可") -> 可 | B10: 2021-04-01 | C10: 1 | D10: 2 | E10: - | F10: 施設費 | G10: 防犯灯維持費 | H10: 12463 | I10: =C10 -> 1 | J10: =D10 -> 2 | K10: =IFERROR(VLOOKUP(L10,g_kamoku,2,FALSE),"") -> - | L10: 普通預金 | M10: 振込支払 | N10: 0 | O10: 3月分電気料/振替支払 街路灯/103基 | Q10: 12 | R10: 12 | S10: =T10&U10&V10&W10 -> YNNN | T10: =IF(AND(from_date_2<=B10,to_date_2>=B10),"Y","N") -> Y | U10: =IF(F10=L10,"Y","N") -> N | V10: N | W10: N | X10: =IF(OR(V10="Y",W10="Y"),"Y","N") -> N | Y10: =IF(AND(X10="Y",V10="Y"),"Y","N") -> N | Z10: =IF(AND(X10="Y",W10="Y"),"Y","N") -> N | AA10: A | AB10: =IFERROR(MATCH(MAX(slip),C10,0),"") ->  | AC10: =IF(AND(AA10="A",AB10<>""),"Y",IF(AA10="C","Y","N")) -> N | AD10: =IF(OR(F10="",L10=""),"Y","N") -> N | AO10: =B10 -> 2021-04-01 | AP10: =C10 -> 1 | AQ10: =D10 -> 2 | AR10: =IF(E10=0,"",E10) -> - | AS10: =IF(F10=0,"",F10) -> 施設費 | AT10: =IF(G10=0,"",G10) -> 防犯灯維持費 | AU10: =IF(H10=0,"",H10) -> 12463 | AV10: =I10 -> 1 | AW10: =J10 -> 2 | AX10: =IF(K10=0,"",K10) -> - | AY10: =IF(L10=0,"",L10) -> 普通預金 | AZ10: =IF(M10=0,"",M10) -> 振込支払 | BA10: =IF(N10=0,"",N10) ->  | BB10: =IF(O10=0,"",O10) -> 3月分電気料/振替支払 街路灯/103基 | BC10: =IF(P10=0,"",P10) -> 
A11: 可 | B11: 2021-04-05 | C11: 2 | D11: 1 | E11: =IFERROR(VLOOKUP(F11,g_kamoku,2,FALSE),"") -> - | F11: 普通預金 | G11: 振込入金 | H11: 6210 | I11: 2 | J11: 1 | K11: =IFERROR(VLOOKUP(L11,g_kamoku,2,FALSE),"") -> - | L11: 会費 | M11: 月払いアパート会費 | N11: 6210 | O11: XXXX月払いアパート会費 振込入金 | Q11: 21 | R11: 21 | S11: YNNN | T11: Y | U11: N | V11: N | W11: N | X11: N | Y11: N | Z11: N | AA11: A | AC11: N | AD11: N | AO11: 2021-04-05 | AP11: 2 | AQ11: 1 | AR11: - | AS11: 普通預金 | AT11: 振込入金 | AU11: 6210 | AV11: 2 | AW11: 1 | AX11: - | AY11: 会費 | AZ11: 月払いアパート会費 | BA11: 6210 | BB11: XXXX月払いアパート会費 振込入金
A12: 可 | B12: 2021-04-06 | C12: 3 | D12: 1 | E12: - | F12: 雑費 | G12: 保険料 | H12: 93720 | I12: 3 | J12: 1 | K12: - | L12: 普通預金 | M12: 振込支払 | N12: 93720 | O12: 自治会活動保険支払い（XX自治会連合会宛て） | Q12: 31 | R12: 31 | S12: YNNN | T12: Y | U12: N | V12: N | W12: N | X12: N | Y12: N | Z12: N | AA12: A | AC12: N | AD12: N | AO12: 2021-04-06 | AP12: 3 | AQ12: 1 | AR12: - | AS12: 雑費 | AT12: 保険料 | AU12: 93720 | AV12: 3 | AW12: 1 | AX12: - | AY12: 普通預金 | AZ12: 振込支払 | BA12: 93720 | BB12: 自治会活動保険支払い（XX自治会連合会宛て）
A13: 可 | B13: 2021-04-06 | C13: 4 | D13: 1 | E13: - | F13: 雑費 | G13: 振込手数料 | H13: 880 | I13: 4 | J13: 1 | K13: - | L13: 普通預金 | M13: 銀行手数料 | N13: 880 | O13: 振込手数料 自治会活動保険振込 XX銀行宛て | Q13: 41 | R13: 41 | S13: YNNN | T13: Y | U13: N | V13: N | W13: N | X13: N | Y13: N | Z13: N | AA13: A | AC13: N | AD13: N | AO13: 2021-04-06 | AP13: 4 | AQ13: 1 | AR13: - | AS13: 雑費 | AT13: 振込手数料 | AU13: 880 | AV13: 4 | AW13: 1 | AX13: - | AY13: 普通預金 | AZ13: 銀行手数料 | BA13: 880 | BB13: 振込手数料 自治会活動保険振込 XX銀行宛て
A14: 可 | B14: 2021-04-11 | C14: 5 | D14: 1 | E14: - | F14: 現金 | G14: - | H14: 320000 | I14: 5 | J14: 1 | K14: - | L14: 会費 | M14: 一般世帯会費 | N14: 320000 | O14: 4-1XXXX班長より現金受領 一般世帯一括40世帯 | Q14: 51 | R14: 51 | S14: YNNN | T14: Y | U14: N | V14: N | W14: N | X14: N | Y14: N | Z14: N | AA14: A | AC14: N | AD14: N | AO14: 2021-04-11 | AP14: 5 | AQ14: 1 | AR14: - | AS14: 現金 | AT14: - | AU14: 320000 | AV14: 5 | AW14: 1 | AX14: - | AY14: 会費 | AZ14: 一般世帯会費 | BA14: 320000 | BB14: 4-1XXXX班長より現金受領 一般世帯一括40世帯
A15: 可 | B15: 2021-04-12 | C15: 6 | D15: 1 | E15: - | F15: 現金 | G15: - | H15: 8000 | I15: 6 | J15: 1 | K15: - | L15: 普通預金 | M15: 現金払出 | N15: 8000 | O15: 香典2件分 | Q15: 61 | R15: 61 | S15: YNNN | T15: Y | U15: N | V15: N | W15: N | X15: N | Y15: N | Z15: N | AA15: A | AC15: N | AD15: N | AO15: 2021-04-12 | AP15: 6 | AQ15: 1 | AR15: - | AS15: 現金 | AT15: - | AU15: 8000 | AV15: 6 | AW15: 1 | AX15: - | AY15: 普通預金 | AZ15: 現金払出 | BA15: 8000 | BB15: 香典2件分
A16: 可 | B16: 2021-04-12 | C16: 7 | D16: 1 | E16: - | F16: 普通預金 | G16: 現金預入 | H16: 320000 | I16: 7 | J16: 1 | K16: - | L16: 現金 | M16: - | N16: 320000 | O16: 4-1班XXXX班長 自治会費 預入 | Q16: 71 | R16: 71 | S16: YNNN | T16: Y | U16: N | V16: N | W16: N | X16: N | Y16: N | Z16: N | AA16: A | AC16: N | AD16: N | AO16: 2021-04-12 | AP16: 7 | AQ16: 1 | AR16: - | AS16: 普通預金 | AT16: 現金預入 | AU16: 320000 | AV16: 7 | AW16: 1 | AX16: - | AY16: 現金 | AZ16: - | BA16: 320000 | BB16: 4-1班XXXX班長 自治会費 預入
A17: 可 | B17: 2021-04-12 | C17: 8 | D17: 1 | E17: - | F17: 負担金 | G17: 緑の募金 | H17: 25000 | I17: 8 | J17: 1 | K17: - | L17: 普通預金 | M17: 振込支払 | N17: 25000 | O17: 緑の募金運動（XX市緑化推進本部あて）50円x500世帯 対予算：同 | Q17: 81 | R17: 81 | S17: YNNN | T17: Y | U17: N | V17: N | W17: N | X17: N | Y17: N | Z17: N | AA17: A | AC17: N | AD17: N | AO17: 2021-04-12 | AP17: 8 | AQ17: 1 | AR17: - | AS17: 負担金 | AT17: 緑の募金 | AU17: 25000 | AV17: 8 | AW17: 1 | AX17: - | AY17: 普通預金 | AZ17: 振込支払 | BA17: 25000 | BB17: 緑の募金運動（XX市緑化推進本部あて）50円x500世帯 対予算：同
A18: 可 | B18: 2021-04-12 | C18: 9 | D18: 1 | E18: - | F18: 雑費 | G18: 振込手数料 | H18: 660 | I18: 9 | J18: 1 | K18: - | L18: 普通預金 | M18: 銀行手数料 | N18: 660 | O18: 振込手数料 緑の募金振込 | Q18: 91 | R18: 91 | S18: YNNN | T18: Y | U18: N | V18: N | W18: N | X18: N | Y18: N | Z18: N | AA18: A | AC18: N | AD18: N | AO18: 2021-04-12 | AP18: 9 | AQ18: 1 | AR18: - | AS18: 雑費 | AT18: 振込手数料 | AU18: 660 | AV18: 9 | AW18: 1 | AX18: - | AY18: 普通預金 | AZ18: 銀行手数料 | BA18: 660 | BB18: 振込手数料 緑の募金振込
A19: 可 | B19: 2021-04-12 | C19: 10 | D19: 1 | E19: - | F19: 雑費 | G19: 慶弔費 | H19: 4000 | I19: 10 | J19: 1 | K19: - | L19: 現金 | M19: - | N19: 8000 | O19: 1班XXXX様(79)ご香典 4月5日逝去 仏式 喪主XXXX（長男） 自治会3,000円 民生委員1,000円 | P19: （連） | Q19: 101 | R19: 101 | S19: YNNN | T19: Y | U19: N | V19: N | W19: N | X19: N | Y19: N | Z19: N | AA19: A | AC19: N | AD19: N | AO19: 2021-04-12 | AP19: 10 | AQ19: 1 | AR19: - | AS19: 雑費 | AT19: 慶弔費 | AU19: 4000 | AV19: 10 | AW19: 1 | AX19: - | AY19: 現金 | AZ19: - | BA19: 8000 | BB19: 1班XXXX様(79)ご香典 4月5日逝去 仏式 喪主XXXX（長男） 自治会3,000円 民生委員1,000円 | BC19: （連）
A20: 可 | B20: 2021-04-12 | C20: 10 | D20: 2 | E20: - | F20: 雑費 | G20: 慶弔費 | H20: 4000 | I20: 10 | J20: 2 | K20: - | L20: 現金 | M20: - | O20: 1班XXXX様(80)ご香典 4月3日逝去 仏式 喪主XXXX（子） 自治会3,000円 民生委員1,000円 | Q20: 102 | R20: 102 | S20: YNNN | T20: Y | U20: N | V20: N | W20: N | X20: N | Y20: N | Z20: N | AA20: A | AC20: N | AD20: N | AO20: 2021-04-12 | AP20: 10 | AQ20: 2 | AR20: - | AS20: 雑費 | AT20: 慶弔費 | AU20: 4000 | AV20: 10 | AW20: 2 | AX20: - | AY20: 現金 | AZ20: - | BB20: 1班XXXX様(80)ご香典 4月3日逝去 仏式 喪主XXXX（子） 自治会3,000円 民生委員1,000円
A21: 可 | B21: 2021-04-12 | C21: 11 | D21: 1 | E21: - | F21: 現金 | G21: - | H21: 7668 | I21: 11 | J21: 1 | K21: - | L21: 普通預金 | M21: 現金払出 | N21: 7668 | O21: 文具8点 立替分 | Q21: 111 | R21: 111 | S21: YNNN | T21: Y | U21: N | V21: N | W21: N | X21: N | Y21: N | Z21: N | AA21: A | AC21: N | AD21: N | AO21: 2021-04-12 | AP21: 11 | AQ21: 1 | AR21: - | AS21: 現金 | AT21: - | AU21: 7668 | AV21: 11 | AW21: 1 | AX21: - | AY21: 普通預金 | AZ21: 現金払出 | BA21: 7668 | BB21: 文具8点 立替分
A22: 可 | B22: 2021-04-12 | C22: 12 | D22: 1 | E22: - | F22: 事務費 | G22: - | H22: 2167 | I22: 12 | J22: 1 | K22: - | L22: 現金 | M22: - | N22: 7668 | O22: ホワイトコピー用紙代（XXXX立替）エプソンインク（XXXX立替） | P22: （連） | Q22: 121 | R22: 121 | S22: YNNN | T22: Y | U22: N | V22: N | W22: N | X22: N | Y22: N | Z22: N | AA22: A | AC22: N | AD22: N | AO22: 2021-04-12 | AP22: 12 | AQ22: 1 | AR22: - | AS22: 事務費 | AT22: - | AU22: 2167 | AV22: 12 | AW22: 1 | AX22: - | AY22: 現金 | AZ22: - | BA22: 7668 | BB22: ホワイトコピー用紙代（XXXX立替）エプソンインク（XXXX立替） | BC22: （連）
A23: 可 | B23: 2021-04-12 | C23: 12 | D23: 2 | E23: - | F23: 事務費 | G23: - | H23: 340 | I23: 12 | J23: 2 | K23: - | L23: 現金 | M23: - | N23: 0 | O23: 公民館管理委員当番表印刷 アパート自治会費納入依頼印刷 | Q23: 122 | R23: 122 | S23: YNNN | T23: Y | U23: N | V23: N | W23: N | X23: N | Y23: N | Z23: N | AA23: A | AC23: N | AD23: N | AO23: 2021-04-12 | AP23: 12 | AQ23: 2 | AR23: - | AS23: 事務費 | AT23: - | AU23: 340 | AV23: 12 | AW23: 2 | AX23: - | AY23: 現金 | AZ23: - | BB23: 公民館管理委員当番表印刷 アパート自治会費納入依頼印刷
A24: 可 | B24: 2021-04-12 | C24: 12 | D24: 3 | E24: - | F24: 事務費 | G24: - | H24: 4033 | I24: 12 | J24: 3 | K24: - | L24: 現金 | M24: - | O24: 切手7枚 ポストイット 7cmファイル2冊 | Q24: 123 | R24: 123 | S24: YNNN | T24: Y | U24: N | V24: N | W24: N | X24: N | Y24: N | Z24: N | AA24: A | AC24: N | AD24: N | AO24: 2021-04-12 | AP24: 12 | AQ24: 3 | AR24: - | AS24: 事務費 | AT24: - | AU24: 4033 | AV24: 12 | AW24: 3 | AX24: - | AY24: 現金 | AZ24: - | BB24: 切手7枚 ポストイット 7cmファイル2冊
A25: 可 | B25: 2021-04-12 | C25: 12 | D25: 4 | E25: - | F25: 事務費 | G25: - | H25: 1128 | I25: 12 | J25: 4 | K25: - | L25: 現金 | M25: - | O25: PC用マウス | Q25: 124 | R25: 124 | S25: YNNN | T25: Y | U25: N | V25: N | W25: N | X25: N | Y25: N | Z25: N | AA25: A | AC25: N | AD25: N | AO25: 2021-04-12 | AP25: 12 | AQ25: 4 | AR25: - | AS25: 事務費 | AT25: - | AU25: 1128 | AV25: 12 | AW25: 4 | AX25: - | AY25: 現金 | AZ25: - | BB25: PC用マウス
A26: 可 | B26: 2021-04-12 | C26: 13 | D26: 1 | E26: - | F26: 現金 | G26: - | H26: 113880 | I26: 13 | J26: 1 | K26: - | L26: 普通預金 | M26: 現金払出 | N26: 113880 | O26: PC、プリンタ購入分 立替分 | Q26: 131 | R26: 131 | S26: YNNN | T26: Y | U26: N | V26: N | W26: N | X26: N | Y26: N | Z26: N | AA26: A | AC26: N | AD26: N | AO26: 2021-04-12 | AP26: 13 | AQ26: 1 | AR26: - | AS26: 現金 | AT26: - | AU26: 113880 | AV26: 13 | AW26: 1 | AX26: - | AY26: 普通預金 | AZ26: 現金払出 | BA26: 113880 | BB26: PC、プリンタ購入分 立替分
A27: 可 | B27: 2021-04-12 | C27: 14 | D27: 1 | E27: - | F27: 事務費 | G27: - | H27: 84980 | I27: 14 | J27: 1 | K27: - | L27: 現金 | M27: - | N27: 113880 | O27: パソコンNEC LAVIE Smart N15 XXXX（Amazonで購入） | P27: （連） | Q27: 141 | R27: 141 | S27: YNNN | T27: Y | U27: N | V27: N | W27: N | X27: N | Y27: N | Z27: N | AA27: A | AC27: N | AD27: N | AO27: 2021-04-12 | AP27: 14 | AQ27: 1 | AR27: - | AS27: 事務費 | AT27: - | AU27: 84980 | AV27: 14 | AW27: 1 | AX27: - | AY27: 現金 | AZ27: - | BA27: 113880 | BB27: パソコンNEC LAVIE Smart N15 XXXX（Amazonで購入） | BC27: （連）
A28: 可 | B28: 2021-04-12 | C28: 14 | D28: 2 | E28: - | F28: 事務費 | G28: - | H28: 28900 | I28: 14 | J28: 2 | K28: - | L28: 現金 | M28: - | O28: エプソンプリンタ エコタンク A4モノクロXXXX | Q28: 142 | R28: 142 | S28: YNNN | T28: Y | U28: N | V28: N | W28: N | X28: N | Y28: N | Z28: N | AA28: A | AC28: N | AD28: N | AO28: 2021-04-12 | AP28: 14 | AQ28: 2 | AR28: - | AS28: 事務費 | AT28: - | AU28: 28900 | AV28: 14 | AW28: 2 | AX28: - | AY28: 現金 | AZ28: - | BB28: エプソンプリンタ エコタンク A4モノクロXXXX
A29: 可 | B29: 2021-04-12 | C29: 15 | D29: 1 | E29: - | F29: 現金 | G29: - | H29: 376000 | I29: 15 | J29: 1 | K29: - | L29: 会費 | M29: 一般世帯会費 | N29: 330000 | O29: 5-1班 XXXX班長より 現金受領 一括35人*8,000円 前期分10人*5,000円 | P29: （連） | Q29: 151 | R29: 151 | S29: YNNN | T29: Y | U29: N | V29: N | W29: N | X29: N | Y29: N | Z29: N | AA29: A | AC29: N | AD29: N | AO29: 2021-04-12 | AP29: 15 | AQ29: 1 | AR29: - | AS29: 現金 | AT29: - | AU29: 376000 | AV29: 15 | AW29: 1 | AX29: - | AY29: 会費 | AZ29: 一般世帯会費 | BA29: 330000 | BB29: 5-1班 XXXX班長より 現金受領 一括35人*8,000円 前期分10人*5,000円 | BC29: （連）
A30: 可 | B30: 2021-04-12 | C30: 15 | D30: 2 | E30: - | F30: 現金 | G30: - | H30: 0 | I30: 15 | J30: 2 | K30: - | L30: 会費 | M30: 自治会協力金 | N30: 46000 | O30: 5-1班 XXXX班長より 協力金（XXXX8,000円 XXXX30,000円 XXXX8,000円) | Q30: 152 | R30: 152 | S30: YNNN | T30: Y | U30: N | V30: N | W30: N | X30: N | Y30: N | Z30: N | AA30: A | AC30: N | AD30: N | AO30: 2021-04-12 | AP30: 15 | AQ30: 2 | AR30: - | AS30: 現金 | AT30: - | AV30: 15 | AW30: 2 | AX30: - | AY30: 会費 | AZ30: 自治会協力金 | BA30: 46000 | BB30: 5-1班 XXXX班長より 協力金（XXXX8,000円 XXXX30,000円 XXXX8,000円)
A31: 可 | B31: 2021-04-13 | C31: 16 | D31: 1 | E31: - | F31: 普通預金 | G31: 現金預入 | H31: 376000 | I31: 16 | J31: 1 | K31: - | L31: 現金 | M31: - | N31: 376000 | O31: 5-1班自治会費 現金預入 | Q31: 161 | R31: 161 | S31: YNNN | T31: Y | U31: N | V31: N | W31: N | X31: N | Y31: N | Z31: N | AA31: A | AC31: N | AD31: N | AO31: 2021-04-13 | AP31: 16 | AQ31: 1 | AR31: - | AS31: 普通預金 | AT31: 現金預入 | AU31: 376000 | AV31: 16 | AW31: 1 | AX31: - | AY31: 現金 | AZ31: - | BA31: 376000 | BB31: 5-1班自治会費 現金預入
A32: 可 | B32: 2021-04-13 | C32: 17 | D32: 1 | E32: - | F32: 現金 | G32: - | H32: 30000 | I32: 17 | J32: 1 | K32: - | L32: 普通預金 | M32: 現金払出 | N32: 30000 | O32: 小口現金の確保 | Q32: 171 | R32: 171 | S32: YNNN | T32: Y | U32: N | V32: N | W32: N | X32: N | Y32: N | Z32: N | AA32: A | AC32: N | AD32: N | AO32: 2021-04-13 | AP32: 17 | AQ32: 1 | AR32: - | AS32: 現金 | AT32: - | AU32: 30000 | AV32: 17 | AW32: 1 | AX32: - | AY32: 普通預金 | AZ32: 現金払出 | BA32: 30000 | BB32: 小口現金の確保
A33: 可 | B33: 2021-04-13 | C33: 18 | D33: 1 | E33: - | F33: 施設費 | G33: 防犯灯維持費 | H33: 121 | I33: 18 | J33: 1 | K33: - | L33: 現金 | M33: コンビニ振込 | N33: 121 | O33: 公衆街路灯A/1基 A自治会12ケ384 2/19~3/18分 | Q33: 181 | R33: 181 | S33: YNNN | T33: Y | U33: N | V33: N | W33: N | X33: N | Y33: N | Z33: N | AA33: A | AC33: N | AD33: N | AO33: 2021-04-13 | AP33: 18 | AQ33: 1 | AR33: - | AS33: 施設費 | AT33: 防犯灯維持費 | AU33: 121 | AV33: 18 | AW33: 1 | AX33: - | AY33: 現金 | AZ33: コンビニ振込 | BA33: 121 | BB33: 公衆街路灯A/1基 A自治会12ケ384 2/19~3/18分
A34: 可 | B34: 2021-04-13 | C34: 19 | D34: 1 | E34: - | F34: 現金 | G34: - | H34: 56000 | I34: 19 | J34: 1 | K34: - | L34: 会費 | M34: アパート世帯会費 | N34: 56000 | O34: XXXXさん コーポXXXX月払いアパート年間分７世帯 | Q34: 191 | R34: 191 | S34: YNNN | T34: Y | U34: N | V34: N | W34: N | X34: N | Y34: N | Z34: N | AA34: A | AC34: N | AD34: N | AO34: 2021-04-13 | AP34: 19 | AQ34: 1 | AR34: - | AS34: 現金 | AT34: - | AU34: 56000 | AV34: 19 | AW34: 1 | AX34: - | AY34: 会費 | AZ34: アパート世帯会費 | BA34: 56000 | BB34: XXXXさん コーポXXXX月払いアパート年間分７世帯
A35: 可 | B35: 2021-04-13 | C35: 20 | D35: 1 | E35: - | F35: 普通預金 | G35: 現金預入 | H35: 56000 | I35: 20 | J35: 1 | K35: - | L35: 現金 | M35: - | N35: 56000 | O35: XXXXさん 預入 | Q35: 201 | R35: 201 | S35: YNNN | T35: Y | U35: N | V35: N | W35: N | X35: N | Y35: N | Z35: N | AA35: A | AC35: N | AD35: N | AO35: 2021-04-13 | AP35: 20 | AQ35: 1 | AR35: - | AS35: 普通預金 | AT35: 現金預入 | AU35: 56000 | AV35: 20 | AW35: 1 | AX35: - | AY35: 現金 | AZ35: - | BA35: 56000 | BB35: XXXXさん 預入
A36: 可 | B36: 2021-04-13 | C36: 21 | D36: 1 | E36: - | F36: 事務費 | G36: - | H36: 376 | I36: 21 | J36: 1 | K36: - | L36: 現金 | M36: - | N36: 376 | O36: 領収書綴り#778 1冊 | Q36: 211 | R36: 211 | S36: YNNN | T36: Y | U36: N | V36: N | W36: N | X36: N | Y36: N | Z36: N | AA36: A | AC36: N | AD36: N | AO36: 2021-04-13 | AP36: 21 | AQ36: 1 | AR36: - | AS36: 事務費 | AT36: - | AU36: 376 | AV36: 21 | AW36: 1 | AX36: - | AY36: 現金 | AZ36: - | BA36: 376 | BB36: 領収書綴り#778 1冊
A37: 可 | B37: 2021-04-13 | C37: 22 | D37: 1 | E37: - | F37: 事務費 | G37: - | H37: 547 | I37: 22 | J37: 1 | K37: - | L37: その他 | M37: 未払金 | N37: 547 | O37: DCMラベルシート44面 XXXXさん立替 | Q37: 221 | R37: 221 | S37: YNNN | T37: Y | U37: N | V37: N | W37: N | X37: N | Y37: N | Z37: N | AA37: A | AC37: N | AD37: N | AO37: 2021-04-13 | AP37: 22 | AQ37: 1 | AR37: - | AS37: 事務費 | AT37: - | AU37: 547 | AV37: 22 | AW37: 1 | AX37: - | AY37: その他 | AZ37: 未払金 | BA37: 547 | BB37: DCMラベルシート44面 XXXXさん立替
A38: 可 | B38: 2021-04-15 | C38: 23 | D38: 1 | E38: - | F38: 施設費 | G38: 公民館管理費 | H38: 1452 | I38: 23 | J38: 1 | K38: - | L38: 普通預金 | M38: 振替支払 | N38: 1452 | O38: XX市上下水道料 | Q38: 231 | R38: 231 | S38: YNNN | T38: Y | U38: N | V38: N | W38: N | X38: N | Y38: N | Z38: N | AA38: A | AC38: N | AD38: N | AO38: 2021-04-15 | AP38: 23 | AQ38: 1 | AR38: - | AS38: 施設費 | AT38: 公民館管理費 | AU38: 1452 | AV38: 23 | AW38: 1 | AX38: - | AY38: 普通預金 | AZ38: 振替支払 | BA38: 1452 | BB38: XX市上下水道料
A39: 可 | B39: 2021-04-15 | C39: 24 | D39: 1 | E39: - | F39: 普通預金 | G39: 振込入金 | H39: 8000 | I39: 24 | J39: 1 | K39: - | L39: 会費 | M39: アパート世帯会費 | N39: 8000 | O39: 自治会費XXXXさん（XXXX）月払いアパート年間分1世帯 | Q39: 241 | R39: 241 | S39: YNNN | T39: Y | U39: N | V39: N | W39: N | X39: N | Y39: N | Z39: N | AA39: A | AC39: N | AD39: N | AO39: 2021-04-15 | AP39: 24 | AQ39: 1 | AR39: - | AS39: 普通預金 | AT39: 振込入金 | AU39: 8000 | AV39: 24 | AW39: 1 | AX39: - | AY39: 会費 | AZ39: アパート世帯会費 | BA39: 8000 | BB39: 自治会費XXXXさん（XXXX）月払いアパート年間分1世帯
A40: 可 | B40: 2021-04-15 | C40: 25 | D40: 1 | E40: - | F40: 事務費 | G40: - | H40: 84 | I40: 25 | J40: 1 | K40: - | L40: 現金 | M40: - | N40: 84 | O40: XXXXさん自治会費領収書送付切手1枚@84 | Q40: 251 | R40: 251 | S40: YNNN | T40: Y | U40: N | V40: N | W40: N | X40: N | Y40: N | Z40: N | AA40: A | AC40: N | AD40: N | AO40: 2021-04-15 | AP40: 25 | AQ40: 1 | AR40: - | AS40: 事務費 | AT40: - | AU40: 84 | AV40: 25 | AW40: 1 | AX40: - | AY40: 現金 | AZ40: - | BA40: 84 | BB40: XXXXさん自治会費領収書送付切手1枚@84
A41: 可 | B41: 2021-04-15 | C41: 26 | D41: 1 | E41: - | F41: 現金 | G41: - | H41: 5000 | I41: 26 | J41: 1 | K41: - | L41: 会費 | M41: アパート世帯会費 | N41: 5000 | O41: XXXXさん（XXXX）から直接受け取り アパート世帯前期分1世帯 | Q41: 261 | R41: 261 | S41: YNNN | T41: Y | U41: N | V41: =IF(AND(kamoku_name<>"",F41=kamoku_name),"Y","N") -> N | W41: =IF(AND(kamoku_name<>"",L41=kamoku_name),"Y","N") -> N | X41: N | Y41: N | Z41: N | AA41: =IF(AND(B41>=start_date,B41<=end_date),"A",IF(B41="","C","B")) -> A | AC41: N | AD41: N | AL41: =IF(OR(delete_start_date="",delete_end_date=""),"",IF(AND(B41>=delete_start_date,B41<=delete_end_date),"1","")) ->  | AO41: 2021-04-15 | AP41: 26 | AQ41: 1 | AR41: - | AS41: 現金 | AT41: - | AU41: 5000 | AV41: 26 | AW41: 1 | AX41: - | AY41: 会費 | AZ41: アパート世帯会費 | BA41: 5000 | BB41: XXXXさん（XXXX）から直接受け取り アパート世帯前期分1世帯
A42: 可 | B42: 2021-04-17 | C42: 27 | D42: 1 | E42: - | F42: 現金 | G42: - | H42: 176000 | I42: 27 | J42: 1 | K42: - | L42: 会費 | M42: 一般世帯会費 | N42: 176000 | O42: 5-2班 XXXX班長より自治会費受領 一般世帯 一括22世帯 | Q42: 271 | R42: 271 | S42: YNNN | T42: Y | U42: N | V42: N | W42: N | X42: N | Y42: N | Z42: N | AA42: A | AC42: N | AD42: N | AO42: 2021-04-17 | AP42: 27 | AQ42: 1 | AR42: - | AS42: 現金 | AT42: - | AU42: 176000 | AV42: 27 | AW42: 1 | AX42: - | AY42: 会費 | AZ42: 一般世帯会費 | BA42: 176000 | BB42: 5-2班 XXXX班長より自治会費受領 一般世帯 一括22世帯
A43: 可 | B43: 2021-04-19 | C43: 28 | D43: 1 | E43: =IFERROR(VLOOKUP(F43,g_kamoku,2,FALSE),"") -> - | F43: 普通預金 | G43: 現金預入 | H43: 181000 | I43: 28 | J43: 1 | K43: - | L43: 現金 | M43: - | N43: 181000 | O43: 5-2班 XXXXさん 自治会費 預入 | Q43: 281 | R43: 281 | S43: YNNN | T43: Y | U43: N | V43: N | W43: N | X43: N | Y43: N | Z43: N | AA43: A | AC43: N | AD43: N | AO43: 2021-04-19 | AP43: 28 | AQ43: 1 | AR43: - | AS43: 普通預金 | AT43: 現金預入 | AU43: 181000 | AV43: 28 | AW43: 1 | AX43: - | AY43: 現金 | AZ43: - | BA43: 181000 | BB43: 5-2班 XXXXさん 自治会費 預入
A44: 可 | B44: 2021-04-19 | C44: 29 | D44: 1 | E44: - | F44: 現金 | G44: - | H44: 8000 | I44: 29 | J44: 1 | K44: - | L44: 会費 | M44: 自治会協力金 | N44: 8000 | O44: XX病院 協力金 受け取り 協力金受領書渡し済み | Q44: 291 | R44: 291 | S44: YNNN | T44: Y | U44: N | V44: N | W44: N | X44: N | Y44: N | Z44: N | AA44: A | AC44: N | AD44: N | AO44: 2021-04-19 | AP44: 29 | AQ44: 1 | AR44: - | AS44: 現金 | AT44: - | AU44: 8000 | AV44: 29 | AW44: 1 | AX44: - | AY44: 会費 | AZ44: 自治会協力金 | BA44: 8000 | BB44: XX病院 協力金 受け取り 協力金受領書渡し済み
A45: 可 | B45: 2021-04-19 | C45: 30 | D45: 1 | E45: - | F45: 普通預金 | G45: 振込入金 | H45: 8000 | I45: 30 | J45: 1 | K45: - | L45: 会費 | M45: アパート世帯会費 | N45: 8000 | O45: XXX XXXXガーデン 振込入金 | Q45: 301 | R45: 301 | S45: YNNN | T45: Y | U45: N | V45: N | W45: N | X45: N | Y45: N | Z45: N | AA45: A | AC45: N | AD45: N | AO45: 2021-04-19 | AP45: 30 | AQ45: 1 | AR45: - | AS45: 普通預金 | AT45: 振込入金 | AU45: 8000 | AV45: 30 | AW45: 1 | AX45: - | AY45: 会費 | AZ45: アパート世帯会費 | BA45: 8000 | BB45: XXX XXXXガーデン 振込入金
A46: 可 | B46: 2021-04-19 | C46: 31 | D46: 1 | E46: =IFERROR(VLOOKUP(F46,g_kamoku,2,FALSE),"") -> - | F46: 普通預金 | G46: 現金預入 | H46: 8000 | I46: 31 | J46: 1 | K46: - | L46: 現金 | M46: - | N46: 8000 | O46: XX病院 協力金 預入 | Q46: 311 | R46: 311 | S46: YNNN | T46: Y | U46: N | V46: N | W46: N | X46: N | Y46: N | Z46: N | AA46: A | AC46: N | AD46: N | AO46: 2021-04-19 | AP46: 31 | AQ46: 1 | AR46: - | AS46: 普通預金 | AT46: 現金預入 | AU46: 8000 | AV46: 31 | AW46: 1 | AX46: - | AY46: 現金 | AZ46: - | BA46: 8000 | BB46: XX病院 協力金 預入
A47: 可 | B47: 2021-04-19 | C47: 32 | D47: 1 | E47: - | F47: 事務費 | G47: - | H47: 180 | I47: 32 | J47: 1 | K47: - | L47: 現金 | M47: - | N47: 180 | O47: 河川清掃提案資料作成 河川の写真PDF印刷 | Q47: 321 | R47: 321 | S47: YNNN | T47: Y | U47: N | V47: N | W47: N | X47: N | Y47: N | Z47: N | AA47: A | AC47: N | AD47: N | AO47: 2021-04-19 | AP47: 32 | AQ47: 1 | AR47: - | AS47: 事務費 | AT47: - | AU47: 180 | AV47: 32 | AW47: 1 | AX47: - | AY47: 現金 | AZ47: - | BA47: 180 | BB47: 河川清掃提案資料作成 河川の写真PDF印刷
A48: 可 | B48: 2021-04-21 | C48: 33 | D48: 1 | E48: - | F48: 現金 | G48: - | H48: 168000 | I48: 33 | J48: 1 | K48: - | L48: 会費 | M48: 一般世帯会費 | N48: 168000 | O48: 7-2班 XXXX班長 一般世帯 一括21世帯 | P48: （複） | Q48: 331 | R48: 331 | S48: YNNN | T48: Y | U48: N | V48: N | W48: N | X48: N | Y48: N | Z48: N | AA48: A | AC48: N | AD48: N | AO48: 2021-04-21 | AP48: 33 | AQ48: 1 | AR48: - | AS48: 現金 | AT48: - | AU48: 168000 | AV48: 33 | AW48: 1 | AX48: - | AY48: 会費 | AZ48: 一般世帯会費 | BA48: 168000 | BB48: 7-2班 XXXX班長 一般世帯 一括21世帯 | BC48: （複）
A49: 可 | B49: 2021-04-21 | C49: 33 | D49: 2 | E49: - | F49: 普通預金 | G49: 現金預入 | H49: 168000 | I49: 33 | J49: 2 | K49: - | L49: 現金 | M49: - | N49: 168000 | O49: 7-2班 自治会費 一般世帯 預入 | Q49: 332 | R49: 332 | S49: YNNN | T49: Y | U49: N | V49: N | W49: N | X49: N | Y49: N | Z49: N | AA49: A | AC49: N | AD49: N | AO49: 2021-04-21 | AP49: 33 | AQ49: 2 | AR49: - | AS49: 普通預金 | AT49: 現金預入 | AU49: 168000 | AV49: 33 | AW49: 2 | AX49: - | AY49: 現金 | AZ49: - | BA49: 168000 | BB49: 7-2班 自治会費 一般世帯 預入
A50: 可 | B50: 2021-04-21 | C50: 34 | D50: 1 | E50: - | F50: 現金 | G50: - | H50: 254400 | I50: 34 | J50: 1 | K50: - | L50: 会費 | M50: 一般世帯会費 | N50: 253000 | O50: 7-3班 XXXX班長 一般世帯一括31 世帯 一般世帯前期1世帯 | P50: （連） | Q50: 341 | R50: 341 | S50: YNNN | T50: Y | U50: N | V50: N | W50: N | X50: N | Y50: N | Z50: N | AA50: A | AC50: N | AD50: N | AO50: 2021-04-21 | AP50: 34 | AQ50: 1 | AR50: - | AS50: 現金 | AT50: - | AU50: 254400 | AV50: 34 | AW50: 1 | AX50: - | AY50: 会費 | AZ50: 一般世帯会費 | BA50: 253000 | BB50: 7-3班 XXXX班長 一般世帯一括31 世帯 一般世帯前期1世帯 | BC50: （連）
A51: 可 | B51: 2021-04-21 | C51: 34 | D51: 2 | E51: - | F51: 現金 | G51: - | H51: 0 | I51: 34 | J51: 2 | K51: - | L51: 会費 | M51: 転入出世帯会費 | N51: 1400 | O51: 7-3班 XXXX班長 佐藤恵理子 一般世帯５月転出予定 | Q51: 342 | R51: 342 | S51: YNNN | T51: Y | U51: N | V51: N | W51: N | X51: N | Y51: N | Z51: N | AA51: A | AC51: N | AD51: N | AO51: 2021-04-21 | AP51: 34 | AQ51: 2 | AR51: - | AS51: 現金 | AT51: - | AV51: 34 | AW51: 2 | AX51: - | AY51: 会費 | AZ51: 転入出世帯会費 | BA51: 1400 | BB51: 7-3班 XXXX班長 佐藤恵理子 一般世帯５月転出予定
A52: 可 | B52: 2021-04-21 | C52: 34 | D52: 3 | E52: - | F52: 普通預金 | G52: 現金預入 | H52: 254400 | I52: 34 | J52: 3 | K52: - | L52: 現金 | M52: - | N52: 254400 | O52: 7-3班 自治会費 現金預入 | Q52: 343 | R52: 343 | S52: YNNN | T52: Y | U52: N | V52: N | W52: N | X52: N | Y52: N | Z52: N | AA52: A | AC52: N | AD52: N | AO52: 2021-04-21 | AP52: 34 | AQ52: 3 | AR52: - | AS52: 普通預金 | AT52: 現金預入 | AU52: 254400 | AV52: 34 | AW52: 3 | AX52: - | AY52: 現金 | AZ52: - | BA52: 254400 | BB52: 7-3班 自治会費 現金預入
A53: 可 | B53: 2021-04-21 | C53: 35 | D53: 1 | E53: - | F53: 普通預金 | G53: 振込入金 | H53: 40000 | I53: 35 | J53: 1 | K53: - | L53: 会費 | M53: アパート世帯会費 | N53: 40000 | O53: XXXXハイム 4/20入金 8000X5 5000X8 | Q53: 351 | R53: 351 | S53: YNNN | T53: Y | U53: N | V53: N | W53: N | X53: N | Y53: N | Z53: N | AA53: A | AC53: N | AD53: N | AO53: 2021-04-21 | AP53: 35 | AQ53: 1 | AR53: - | AS53: 普通預金 | AT53: 振込入金 | AU53: 40000 | AV53: 35 | AW53: 1 | AX53: - | AY53: 会費 | AZ53: アパート世帯会費 | BA53: 40000 | BB53: XXXXハイム 4/20入金 8000X5 5000X8
A54: 可 | B54: 2021-04-24 | C54: 36 | D54: 1 | E54: - | F54: 事務費 | G54: - | H54: 130 | I54: 36 | J54: 1 | K54: - | L54: 現金 | M54: - | N54: 130 | O54: 防災自主点検チェック表コピー13枚 セブンイレブン | Q54: =C54&D54 -> 361 | R54: =I54&J54 -> 361 | S54: YNNN | T54: Y | U54: N | V54: N | W54: N | X54: N | Y54: N | Z54: N | AA54: A | AC54: N | AD54: N | AO54: =B54 -> 2021-04-24 | AP54: =C54 -> 36 | AQ54: =D54 -> 1 | AR54: - | AS54: 事務費 | AT54: - | AU54: 130 | AV54: =I54 -> 36 | AW54: =J54 -> 1 | AX54: - | AY54: 現金 | AZ54: - | BA54: 130 | BB54: 防災自主点検チェック表コピー13枚 セブンイレブン
A55: 可 | B55: 2021-04-24 | C55: 37 | D55: 1 | E55: - | F55: 事務費 | G55: - | H55: 602 | I55: 37 | J55: 1 | K55: - | L55: 現金 | M55: - | N55: 602 | O55: DCM封筒角形2号100枚 4/16 | Q55: 371 | R55: 371 | S55: YNNN | T55: Y | U55: N | V55: N | W55: N | X55: N | Y55: N | Z55: N | AA55: A | AC55: N | AD55: N | AO55: 2021-04-24 | AP55: 37 | AQ55: 1 | AR55: - | AS55: 事務費 | AT55: - | AU55: 602 | AV55: 37 | AW55: 1 | AX55: - | AY55: 現金 | AZ55: - | BA55: 602 | BB55: DCM封筒角形2号100枚 4/16
A56: 可 | B56: 2021-04-24 | C56: 38 | D56: 1 | E56: - | F56: 現金 | G56: - | H56: 3576000 | I56: 38 | J56: 1 | K56: - | L56: 会費 | M56: 一般世帯会費 | N56: 3168000 | O56: 4/24班長会時集金 一般世帯 396世帯 一括396世帯 | P56: （連） | Q56: 381 | R56: 381 | S56: YNNN | T56: Y | U56: N | V56: N | W56: N | X56: N | Y56: N | Z56: N | AA56: A | AC56: N | AD56: N | AO56: 2021-04-24 | AP56: 38 | AQ56: 1 | AR56: - | AS56: 現金 | AT56: - | AU56: 3576000 | AV56: 38 | AW56: 1 | AX56: - | AY56: 会費 | AZ56: 一般世帯会費 | BA56: 3168000 | BB56: 4/24班長会時集金 一般世帯 396世帯 一括396世帯 | BC56: （連）
A57: 可 | B57: 2021-04-24 | C57: 38 | D57: 2 | E57: - | F57: 現金 | G57: - | H57: 0 | I57: 38 | J57: 2 | K57: - | L57: 会費 | M57: アパート世帯会費 | N57: 134000 | O57: 4/24班長会時集金 アパート世帯（代理集金）25世帯 うち一括19世帯104,000円 前期6世帯 30,000円 | Q57: 382 | R57: 382 | S57: YNNN | T57: Y | U57: N | V57: N | W57: N | X57: N | Y57: N | Z57: N | AA57: A | AC57: N | AD57: N | AO57: 2021-04-24 | AP57: 38 | AQ57: 2 | AR57: - | AS57: 現金 | AT57: - | AV57: 38 | AW57: 2 | AX57: - | AY57: 会費 | AZ57: アパート世帯会費 | BA57: 134000 | BB57: 4/24班長会時集金 アパート世帯（代理集金）25世帯 うち一括19世帯104,000円 前期6世帯 30,000円
A58: 可 | B58: 2021-04-24 | C58: 38 | D58: 3 | E58: - | F58: 現金 | G58: - | H58: 0 | I58: 38 | J58: 3 | K58: - | L58: 会費 | M58: アパート世帯会費 | N58: 50000 | O58: 4/24班長会時集金 アパート世帯(住民直接） 10世帯 前期10世帯 | Q58: 383 | R58: 383 | S58: YNNN | T58: Y | U58: N | V58: N | W58: N | X58: N | Y58: N | Z58: N | AA58: A | AC58: N | AD58: N | AO58: 2021-04-24 | AP58: 38 | AQ58: 3 | AR58: - | AS58: 現金 | AT58: - | AV58: 38 | AW58: 3 | AX58: - | AY58: 会費 | AZ58: アパート世帯会費 | BA58: 50000 | BB58: 4/24班長会時集金 アパート世帯(住民直接） 10世帯 前期10世帯
A59: 可 | B59: 2021-04-24 | C59: 38 | D59: 4 | E59: - | F59: 現金 | G59: - | H59: 0 | I59: 38 | J59: 4 | K59: - | L59: 会費 | M59: 自治会協力金 | N59: 224000 | O59: 4/24班長会時集金 協力金 27会社 | Q59: 384 | R59: 384 | S59: YNNN | T59: Y | U59: N | V59: N | W59: N | X59: N | Y59: N | Z59: N | AA59: A | AC59: N | AD59: N | AO59: 2021-04-24 | AP59: 38 | AQ59: 4 | AR59: - | AS59: 現金 | AT59: - | AV59: 38 | AW59: 4 | AX59: - | AY59: 会費 | AZ59: 自治会協力金 | BA59: 224000 | BB59: 4/24班長会時集金 協力金 27会社
A60: 可 | B60: 2021-04-25 | C60: 39 | D60: 1 | E60: - | F60: 普通預金 | G60: 現金預入 | H60: 3576000 | I60: 39 | J60: 1 | K60: - | L60: 現金 | M60: - | N60: 3576000 | O60: 4/24班長会時集金 預金預入 | Q60: 391 | R60: 391 | S60: YNNN | T60: Y | U60: N | V60: N | W60: N | X60: N | Y60: N | Z60: N | AA60: A | AC60: N | AD60: N | AO60: 2021-04-25 | AP60: 39 | AQ60: 1 | AR60: - | AS60: 普通預金 | AT60: 現金預入 | AU60: 3576000 | AV60: 39 | AW60: 1 | AX60: - | AY60: 現金 | AZ60: - | BA60: 3576000 | BB60: 4/24班長会時集金 預金預入
A61: 可 | B61: 2021-04-25 | C61: 40 | D61: 1 | E61: - | F61: 施設費 | G61: 公民館管理費 | H61: 437 | I61: 40 | J61: 1 | K61: - | L61: 現金 | M61: - | N61: 437 | O61: 公民館 障害者トイレ用ブラシ | Q61: 401 | R61: 401 | S61: YNNN | T61: Y | U61: N | V61: N | W61: N | X61: N | Y61: N | Z61: N | AA61: A | AC61: N | AD61: N | AO61: 2021-04-25 | AP61: 40 | AQ61: 1 | AR61: - | AS61: 施設費 | AT61: 公民館管理費 | AU61: 437 | AV61: 40 | AW61: 1 | AX61: - | AY61: 現金 | AZ61: - | BA61: 437 | BB61: 公民館 障害者トイレ用ブラシ
A62: 可 | B62: 2021-04-25 | C62: 41 | D62: 1 | E62: - | F62: 普通預金 | G62: 振込入金 | H62: 128000 | I62: 41 | J62: 1 | K62: - | L62: 会費 | M62: アパート世帯会費 | N62: 128000 | O62: XX不動産 4/22 | Q62: 411 | R62: 411 | S62: YNNN | T62: Y | U62: N | V62: N | W62: N | X62: N | Y62: N | Z62: N | AA62: A | AC62: N | AD62: N | AO62: 2021-04-25 | AP62: 41 | AQ62: 1 | AR62: - | AS62: 普通預金 | AT62: 振込入金 | AU62: 128000 | AV62: 41 | AW62: 1 | AX62: - | AY62: 会費 | AZ62: アパート世帯会費 | BA62: 128000 | BB62: XX不動産 4/22
A63: 可 | B63: 2021-04-26 | C63: 42 | D63: 1 | E63: - | F63: 施設費 | G63: 防犯灯維持費 | H63: 123 | I63: 42 | J63: 1 | K63: - | L63: 現金 | M63: コンビニ振込 | N63: 123 | O63: 公衆街路灯A/1基 A自治会12ケ384 3/19~4/20分 | Q63: 421 | R63: 421 | S63: YNNN | T63: Y | U63: N | V63: N | W63: N | X63: N | Y63: N | Z63: N | AA63: A | AC63: N | AD63: N | AO63: 2021-04-26 | AP63: 42 | AQ63: 1 | AR63: - | AS63: 施設費 | AT63: 防犯灯維持費 | AU63: 123 | AV63: 42 | AW63: 1 | AX63: - | AY63: 現金 | AZ63: コンビニ振込 | BA63: 123 | BB63: 公衆街路灯A/1基 A自治会12ケ384 3/19~4/20分
A64: 可 | B64: 2021-04-27 | C64: 43 | D64: 1 | E64: - | F64: 施設費 | G64: 公民館管理費 | H64: 1895 | I64: 43 | J64: 1 | K64: - | L64: 普通預金 | M64: 振替支払 | N64: 1895 | O64: 3月ガス代 XX産業 | Q64: 431 | R64: 431 | S64: YNNN | T64: Y | U64: N | V64: N | W64: N | X64: N | Y64: N | Z64: N | AA64: A | AC64: N | AD64: N | AO64: 2021-04-27 | AP64: 43 | AQ64: 1 | AR64: - | AS64: 施設費 | AT64: 公民館管理費 | AU64: 1895 | AV64: 43 | AW64: 1 | AX64: - | AY64: 普通預金 | AZ64: 振替支払 | BA64: 1895 | BB64: 3月ガス代 XX産業
A65: 可 | B65: 2021-04-28 | C65: 44 | D65: 1 | E65: - | F65: 負担金 | G65: XX地区自治会連合会 | H65: 63000 | I65: 44 | J65: 1 | K65: - | L65: 普通預金 | M65: 振込支払 | N65: 63000 | O65: 令和3年度会費納入 100円X630世帯 対予算：同 | Q65: 441 | R65: 441 | S65: YNNN | T65: Y | U65: N | V65: N | W65: N | X65: N | Y65: N | Z65: N | AA65: A | AC65: N | AD65: N | AO65: 2021-04-28 | AP65: 44 | AQ65: 1 | AR65: - | AS65: 負担金 | AT65: XX地区自治会連合会 | AU65: 63000 | AV65: 44 | AW65: 1 | AX65: - | AY65: 普通預金 | AZ65: 振込支払 | BA65: 63000 | BB65: 令和3年度会費納入 100円X630世帯 対予算：同
A66: 可 | B66: 2021-04-28 | C66: 45 | D66: 1 | E66: - | F66: 雑費 | G66: 振込手数料 | H66: 880 | I66: 45 | J66: 1 | K66: - | L66: 普通預金 | M66: 銀行手数料 | N66: 880 | O66: 伝票No.44 会費納入 XXバンク→XX銀行 | Q66: 451 | R66: 451 | S66: YNNN | T66: Y | U66: N | V66: N | W66: N | X66: N | Y66: N | Z66: N | AA66: A | AC66: N | AD66: N | AO66: 2021-04-28 | AP66: 45 | AQ66: 1 | AR66: - | AS66: 雑費 | AT66: 振込手数料 | AU66: 880 | AV66: 45 | AW66: 1 | AX66: - | AY66: 普通預金 | AZ66: 銀行手数料 | BA66: 880 | BB66: 伝票No.44 会費納入 XXバンク→XX銀行
A67: 可 | B67: 2021-04-29 | C67: 46 | D67: 1 | E67: - | F67: その他 | G67: 未払金 | H67: 547 | I67: 46 | J67: 1 | K67: - | L67: 現金 | M67: - | N67: 547 | O67: XXさん立替の清算 伝票No22 | Q67: 461 | R67: 461 | S67: YNNN | T67: Y | U67: N | V67: N | W67: N | X67: N | Y67: N | Z67: N | AA67: A | AC67: N | AD67: N | AO67: 2021-04-29 | AP67: 46 | AQ67: 1 | AR67: - | AS67: その他 | AT67: 未払金 | AU67: 547 | AV67: 46 | AW67: 1 | AX67: - | AY67: 現金 | AZ67: - | BA67: 547 | BB67: XXさん立替の清算 伝票No22
A68: 可 | B68: 2021-05-04 | C68: 47 | D68: 1 | E68: - | F68: 事務費 | G68: - | H68: 20 | I68: 47 | J68: 1 | K68: - | L68: 現金 | M68: - | N68: 20 | O68: 6-1班 8-1班の会費集金管理表のコピー代 | Q68: 471 | R68: 471 | S68: YNNN | T68: Y | U68: N | V68: N | W68: N | X68: N | Y68: N | Z68: N | AA68: A | AC68: N | AD68: N | AO68: 2021-05-04 | AP68: 47 | AQ68: 1 | AR68: - | AS68: 事務費 | AT68: - | AU68: 20 | AV68: 47 | AW68: 1 | AX68: - | AY68: 現金 | AZ68: - | BA68: 20 | BB68: 6-1班 8-1班の会費集金管理表のコピー代
A69: 可 | B69: 2021-05-04 | C69: 48 | D69: 1 | E69: - | F69: 雑費 | G69: 慶弔費 | H69: 4000 | I69: 48 | J69: 1 | K69: - | L69: 現金 | M69: - | N69: 4000 | O69: 4-3班XXXX様(88)ご香典 5月3日逝去 仏式 喪主XXXX（子）自治会3,000円 民生委員1,000円 | Q69: 481 | R69: 481 | S69: YNNN | T69: Y | U69: N | V69: N | W69: N | X69: N | Y69: N | Z69: N | AA69: A | AC69: N | AD69: N | AO69: 2021-05-04 | AP69: 48 | AQ69: 1 | AR69: - | AS69: 雑費 | AT69: 慶弔費 | AU69: 4000 | AV69: 48 | AW69: 1 | AX69: - | AY69: 現金 | AZ69: - | BA69: 4000 | BB69: 4-3班XXXX様(88)ご香典 5月3日逝去 仏式 喪主XXXX（子）自治会3,000円 民生委員1,000円
A70: 可 | B70: 2021-05-04 | C70: 49 | D70: 1 | E70: - | F70: 事務費 | G70: - | H70: 220 | I70: 49 | J70: 1 | K70: - | L70: 現金 | M70: - | N70: 220 | O70: 御香典袋 10枚x2=20枚 | Q70: 491 | R70: 491 | S70: YNNN | T70: Y | U70: N | V70: N | W70: N | X70: N | Y70: N | Z70: N | AA70: A | AC70: N | AD70: N | AO70: 2021-05-04 | AP70: 49 | AQ70: 1 | AR70: - | AS70: 事務費 | AT70: - | AU70: 220 | AV70: 49 | AW70: 1 | AX70: - | AY70: 現金 | AZ70: - | BA70: 220 | BB70: 御香典袋 10枚x2=20枚
A71: 可 | B71: 2021-05-06 | C71: 50 | D71: 1 | E71: - | F71: 普通預金 | G71: 振込入金 | H71: 17260 | I71: 50 | J71: 1 | K71: =IFERROR(VLOOKUP(L71,g_kamoku,2,FALSE),"") -> - | L71: 会費 | M71: 月払いアパート会費 | N71: 17260 | O71: 5/6 XXXX 月払いアパート会費 | Q71: 501 | R71: 501 | S71: YNNN | T71: Y | U71: N | V71: N | W71: N | X71: N | Y71: N | Z71: N | AA71: A | AC71: N | AD71: N | AO71: 2021-05-06 | AP71: 50 | AQ71: 1 | AR71: - | AS71: 普通預金 | AT71: 振込入金 | AU71: 17260 | AV71: 50 | AW71: 1 | AX71: - | AY71: 会費 | AZ71: 月払いアパート会費 | BA71: 17260 | BB71: 5/6 XXXX 月払いアパート会費
A72: 可 | B72: 2021-05-06 | C72: 51 | D72: 1 | E72: - | F72: 負担金 | G72: 第４防災会 | H72: 252000 | I72: 51 | J72: 1 | K72: - | L72: 普通預金 | M72: 振込支払 | N72: 252000 | O72: 第X防災会 自治会防災金 400円x630世帯252,000円(予算同） | Q72: 511 | R72: 511 | S72: YNNN | T72: Y | U72: N | V72: N | W72: N | X72: N | Y72: N | Z72: N | AA72: A | AC72: N | AD72: N | AO72: 2021-05-06 | AP72: 51 | AQ72: 1 | AR72: - | AS72: 負担金 | AT72: 第４防災会 | AU72: 252000 | AV72: 51 | AW72: 1 | AX72: - | AY72: 普通預金 | AZ72: 振込支払 | BA72: 252000 | BB72: 第X防災会 自治会防災金 400円x630世帯252,000円(予算同）
A73: 可 | B73: 2021-05-06 | C73: 52 | D73: 1 | E73: - | F73: 雑費 | G73: 振込手数料 | H73: 880 | I73: 52 | J73: 1 | K73: - | L73: 普通預金 | M73: 銀行手数料 | N73: 880 | O73: 伝票no51 XX銀行 振込手数料 | Q73: 521 | R73: 521 | S73: YNNN | T73: Y | U73: N | V73: =IF(AND(kamoku_name<>"",F73=kamoku_name),"Y","N") -> N | W73: =IF(AND(kamoku_name<>"",L73=kamoku_name),"Y","N") -> N | X73: N | Y73: N | Z73: N | AA73: =IF(AND(B73>=start_date,B73<=end_date),"A",IF(B73="","C","B")) -> A | AC73: N | AD73: N | AO73: 2021-05-06 | AP73: 52 | AQ73: 1 | AR73: - | AS73: 雑費 | AT73: 振込手数料 | AU73: 880 | AV73: 52 | AW73: 1 | AX73: - | AY73: 普通預金 | AZ73: 銀行手数料 | BA73: 880 | BB73: 伝票no51 XX銀行 振込手数料
A74: =IF(AND(_xlfn.ISFORMULA(K74),_xlfn.ISFORMULA(E74),_xlfn.ISFORMULA(Q74:AD74),_xlfn.ISFORMULA(AL74),_xlfn.ISFORMULA(AO74:BC74)),"可","不可") -> 可 | B74: 2021-05-09 | C74: 53 | D74: 1 | E74: - | F74: 施設費 | G74: 公民館管理費 | H74: 486 | I74: =C74 -> 53 | J74: =D74 -> 1 | K74: - | L74: 現金 | M74: - | N74: 486 | O74: 公民館 トイレの洗剤 ３点 デイツー | Q74: 531 | R74: 531 | S74: =T74&U74&V74&W74 -> YNNN | T74: =IF(AND(from_date_2<=B74,to_date_2>=B74),"Y","N") -> Y | U74: =IF(F74=L74,"Y","N") -> N | V74: N | W74: N | X74: =IF(OR(V74="Y",W74="Y"),"Y","N") -> N | Y74: =IF(AND(X74="Y",V74="Y"),"Y","N") -> N | Z74: =IF(AND(X74="Y",W74="Y"),"Y","N") -> N | AA74: A | AB74: =IFERROR(MATCH(MAX(slip),C74,0),"") ->  | AC74: =IF(AND(AA74="A",AB74<>""),"Y",IF(AA74="C","Y","N")) -> N | AD74: =IF(OR(F74="",L74=""),"Y","N") -> N | AL74: =IF(OR(delete_start_date="",delete_end_date=""),"",IF(AND(B74>=delete_start_date,B74<=delete_end_date),"1","")) ->  | AO74: 2021-05-09 | AP74: 53 | AQ74: 1 | AR74: =IF(E74=0,"",E74) -> - | AS74: =IF(F74=0,"",F74) -> 施設費 | AT74: =IF(G74=0,"",G74) -> 公民館管理費 | AU74: =IF(H74=0,"",H74) -> 486 | AV74: 53 | AW74: 1 | AX74: =IF(K74=0,"",K74) -> - | AY74: =IF(L74=0,"",L74) -> 現金 | AZ74: =IF(M74=0,"",M74) -> - | BA74: =IF(N74=0,"",N74) -> 486 | BB74: 公民館 トイレの洗剤 ３点 デイツー | BC74: =IF(P74=0,"",P74) -> 
A75: 可 | B75: 2021-05-09 | C75: 54 | D75: 1 | E75: - | F75: 雑費 | G75: 慶弔費 | H75: 4000 | I75: 54 | J75: 1 | K75: =IFERROR(VLOOKUP(L75,g_kamoku,2,FALSE),"") -> - | L75: 現金 | M75: - | N75: 4000 | O75: 7-3班 XXXX(91)様ご香典 5月9日逝去 仏式 喪主XXXX（子） 自治会3,000円 民生委員1,000円 | Q75: 541 | R75: 541 | S75: YNNN | T75: Y | U75: N | V75: N | W75: N | X75: N | Y75: N | Z75: N | AA75: A | AC75: N | AD75: N | AO75: 2021-05-09 | AP75: 54 | AQ75: 1 | AR75: - | AS75: 雑費 | AT75: 慶弔費 | AU75: 4000 | AV75: 54 | AW75: 1 | AX75: - | AY75: 現金 | AZ75: - | BA75: 4000 | BB75: 7-3班 XXXX(91)様ご香典 5月9日逝去 仏式 喪主XXXX（子） 自治会3,000円 民生委員1,000円
A76: 可 | B76: 2021-05-10 | C76: 55 | D76: 1 | E76: - | F76: 負担金 | G76: 国際交流協会 | H76: 2000 | I76: 55 | J76: 1 | K76: =IFERROR(VLOOKUP(L76,g_kamoku,2,FALSE),"") -> - | L76: 現金 | M76: 郵便局振込 | N76: 2000 | O76: 2021年度 XX国際交流協会会費納入 個人会員 | Q76: 551 | R76: 551 | S76: YNNN | T76: Y | U76: N | V76: N | W76: N | X76: N | Y76: N | Z76: N | AA76: A | AC76: N | AD76: N | AO76: 2021-05-10 | AP76: 55 | AQ76: 1 | AR76: - | AS76: 負担金 | AT76: 国際交流協会 | AU76: 2000 | AV76: 55 | AW76: 1 | AX76: - | AY76: 現金 | AZ76: 郵便局振込 | BA76: 2000 | BB76: 2021年度 XX国際交流協会会費納入 個人会員
A77: 可 | B77: 2021-05-10 | C77: 56 | D77: 1 | E77: - | F77: 事務費 | G77: - | H77: 2310 | I77: 56 | J77: 1 | K77: =IFERROR(VLOOKUP(L77,g_kamoku,2,FALSE),"") -> - | L77: 現金 | M77: - | N77: 4069 | O77: 班長用書類保存用ファイル 21冊 Seria | P77: （連） | Q77: 561 | R77: 561 | S77: YNNN | T77: Y | U77: N | V77: N | W77: N | X77: N | Y77: N | Z77: N | AA77: A | AC77: N | AD77: N | AO77: 2021-05-10 | AP77: 56 | AQ77: 1 | AR77: - | AS77: 事務費 | AT77: - | AU77: 2310 | AV77: 56 | AW77: 1 | AX77: - | AY77: 現金 | AZ77: - | BA77: 4069 | BB77: 班長用書類保存用ファイル 21冊 Seria | BC77: （連）
A78: 可 | B78: 2021-05-10 | C78: 56 | D78: 2 | E78: - | F78: 事務費 | G78: - | H78: 1759 | I78: 56 | J78: 2 | K78: =IFERROR(VLOOKUP(L78,g_kamoku,2,FALSE),"") -> - | L78: 現金 | M78: - | N78: 0 | O78: 書類コピー代 XXXX協働センター | Q78: 562 | R78: 562 | S78: YNNN | T78: Y | U78: N | V78: N | W78: N | X78: N | Y78: N | Z78: N | AA78: A | AC78: N | AD78: N | AO78: 2021-05-10 | AP78: 56 | AQ78: 2 | AR78: - | AS78: 事務費 | AT78: - | AU78: 1759 | AV78: 56 | AW78: 2 | AX78: - | AY78: 現金 | AZ78: - | BB78: 書類コピー代 XXXX協働センター
A79: 可 | B79: 2021-05-15 | C79: 57 | D79: 1 | E79: =IFERROR(VLOOKUP(F79,g_kamoku,2,FALSE),"") -> - | F79: 施設費 | G79: 公民館管理費 | H79: 24370 | I79: 57 | J79: 1 | K79: =IFERROR(VLOOKUP(L79,g_kamoku,2,FALSE),"") -> - | L79: 普通預金 | M79: 振替支払 | N79: 37039 | O79: 5/6 4月分中電電気料 A公民館/2口 従量電灯B/3基 | P79: （連） | Q79: 571 | R79: 571 | S79: YNNN | T79: Y | U79: N | V79: N | W79: N | X79: N | Y79: N | Z79: N | AA79: A | AC79: N | AD79: N | AL79: =IF(OR(delete_start_date="",delete_end_date=""),"",IF(AND(B79>=delete_start_date,B79<=delete_end_date),"1","")) ->  | AO79: 2021-05-15 | AP79: 57 | AQ79: 1 | AR79: - | AS79: 施設費 | AT79: 公民館管理費 | AU79: 24370 | AV79: 57 | AW79: 1 | AX79: - | AY79: 普通預金 | AZ79: 振替支払 | BA79: 37039 | BB79: 5/6 4月分中電電気料 A公民館/2口 従量電灯B/3基 | BC79: （連）
A80: 可 | B80: 2021-05-15 | C80: 57 | D80: 2 | E80: - | F80: 施設費 | G80: 防犯灯維持費 | H80: 12669 | I80: 57 | J80: 2 | K80: - | L80: 普通預金 | M80: 振替支払 | N80: 0 | O80: 5/6 ４月分中電電気料 街路灯/103基 | Q80: 572 | R80: 572 | S80: YNNN | T80: Y | U80: N | V80: N | W80: N | X80: N | Y80: N | Z80: N | AA80: A | AC80: N | AD80: N | AO80: 2021-05-15 | AP80: 57 | AQ80: 2 | AR80: - | AS80: 施設費 | AT80: 防犯灯維持費 | AU80: 12669 | AV80: 57 | AW80: 2 | AX80: - | AY80: 普通預金 | AZ80: 振替支払 | BB80: 5/6 ４月分中電電気料 街路灯/103基
A81: 可 | B81: 2021-05-15 | C81: 58 | D81: 1 | E81: - | F81: 現金 | G81: - | H81: 7000 | I81: 58 | J81: 1 | K81: - | L81: 会費 | M81: 一般世帯会費 | N81: 7000 | O81: 1班 XXXX 自治会費 ５月入居 ６月－３月まで１０か月分（700x10) 7,000円 | Q81: 581 | R81: 581 | S81: YNNN | T81: Y | U81: N | V81: N | W81: N | X81: N | Y81: N | Z81: N | AA81: A | AC81: N | AD81: N | AO81: 2021-05-15 | AP81: 58 | AQ81: 1 | AR81: - | AS81: 現金 | AT81: - | AU81: 7000 | AV81: 58 | AW81: 1 | AX81: - | AY81: 会費 | AZ81: 一般世帯会費 | BA81: 7000 | BB81: 1班 XXXX 自治会費 ５月入居 ６月－３月まで１０か月分（700x10) 7,000円
A82: 可 | B82: 2021-05-15 | C82: 59 | D82: 1 | E82: - | F82: 現金 | G82: - | H82: 4250 | I82: 59 | J82: 1 | K82: - | L82: 会費 | M82: アパート世帯会費 | N82: 4250 | O82: 5-1班 XXXX201号室様 前期分 | Q82: 591 | R82: 591 | S82: YNNN | T82: Y | U82: N | V82: N | W82: N | X82: N | Y82: N | Z82: N | AA82: A | AC82: N | AD82: N | AO82: 2021-05-15 | AP82: 59 | AQ82: 1 | AR82: - | AS82: 現金 | AT82: - | AU82: 4250 | AV82: 59 | AW82: 1 | AX82: - | AY82: 会費 | AZ82: アパート世帯会費 | BA82: 4250 | BB82: 5-1班 XXXX201号室様 前期分
A83: 可 | B83: 2021-05-15 | C83: 60 | D83: 1 | E83: - | F83: 事務費 | G83: - | H83: 4000 | I83: 60 | J83: 1 | K83: - | L83: 現金 | M83: - | N83: 4000 | O83: エプソンインク ヤマダデンキ | Q83: 601 | R83: 601 | S83: YNNN | T83: Y | U83: N | V83: N | W83: N | X83: N | Y83: N | Z83: N | AA83: A | AC83: N | AD83: N | AO83: 2021-05-15 | AP83: 60 | AQ83: 1 | AR83: - | AS83: 事務費 | AT83: - | AU83: 4000 | AV83: 60 | AW83: 1 | AX83: - | AY83: 現金 | AZ83: - | BA83: 4000 | BB83: エプソンインク ヤマダデンキ
A84: 可 | B84: 2021-05-15 | C84: 61 | D84: 1 | E84: - | F84: 施設費 | G84: 防犯灯設置費・ＬＥＤ化工事費 | H84: 11000 | I84: 61 | J84: 1 | K84: - | L84: 現金 | M84: - | N84: 11000 | O84: 5/10 防犯灯移設工事 12コ723電柱移動工事 （XXXデンキ） | Q84: 611 | R84: 611 | S84: YNNN | T84: Y | U84: N | V84: N | W84: N | X84: N | Y84: N | Z84: N | AA84: A | AC84: N | AD84: N | AO84: 2021-05-15 | AP84: 61 | AQ84: 1 | AR84: - | AS84: 施設費 | AT84: 防犯灯設置費・ＬＥＤ化工事費 | AU84: 11000 | AV84: 61 | AW84: 1 | AX84: - | AY84: 現金 | AZ84: - | BA84: 11000 | BB84: 5/10 防犯灯移設工事 12コ723電柱移動工事 （XXXデンキ）
A85: 可 | B85: 2021-05-17 | C85: 62 | D85: 1 | E85: - | F85: 負担金 | G85: 明るい社会づくり | H85: 4000 | I85: 62 | J85: 1 | K85: - | L85: 現金 | M85: - | N85: 4000 | O85: 明るい社会づくり運動 会費2,000円(2口) 横断バッグ寄付金2,000円（2口) (事務局長XXXX） | Q85: 621 | R85: 621 | S85: YNNN | T85: Y | U85: N | V85: N | W85: N | X85: N | Y85: N | Z85: N | AA85: A | AC85: N | AD85: N | AO85: 2021-05-17 | AP85: 62 | AQ85: 1 | AR85: - | AS85: 負担金 | AT85: 明るい社会づくり | AU85: 4000 | AV85: 62 | AW85: 1 | AX85: - | AY85: 現金 | AZ85: - | BA85: 4000 | BB85: 明るい社会づくり運動 会費2,000円(2口) 横断バッグ寄付金2,000円（2口) (事務局長XXXX）
A86: 可 | B86: 2021-05-17 | C86: 63 | D86: 1 | E86: - | F86: 負担金 | G86: XX地区社会福祉協議会 | H86: 170100 | I86: 63 | J86: 1 | K86: - | L86: 普通預金 | M86: 振込支払 | N86: 170100 | O86: 令和３年度 XXXX地区社会福祉協議会会費納入 270円 X 630世帯 = 170,100円（予算と同） | Q86: =C86&D86 -> 631 | R86: =I86&J86 -> 631 | S86: YNNN | T86: Y | U86: N | V86: N | W86: N | X86: N | Y86: N | Z86: N | AA86: A | AC86: N | AD86: N | AO86: =B86 -> 2021-05-17 | AP86: =C86 -> 63 | AQ86: =D86 -> 1 | AR86: - | AS86: 負担金 | AT86: XX地区社会福祉協議会 | AU86: 170100 | AV86: =I86 -> 63 | AW86: =J86 -> 1 | AX86: - | AY86: 普通預金 | AZ86: 振込支払 | BA86: 170100 | BB86: 令和３年度 XXXX地区社会福祉協議会会費納入 270円 X 630世帯 = 170,100円（予算と同）
A87: 可 | B87: 2021-05-17 | C87: 64 | D87: 1 | E87: - | F87: 雑費 | G87: 振込手数料 | H87: 330 | I87: 64 | J87: 1 | K87: - | L87: 普通預金 | M87: 銀行手数料 | N87: 330 | O87: 伝票No.63 XXXX地区社会福祉協議会会費納入 手数料 | Q87: 641 | R87: 641 | S87: YNNN | T87: Y | U87: N | V87: N | W87: N | X87: N | Y87: N | Z87: N | AA87: A | AC87: N | AD87: N | AO87: 2021-05-17 | AP87: 64 | AQ87: 1 | AR87: - | AS87: 雑費 | AT87: 振込手数料 | AU87: 330 | AV87: 64 | AW87: 1 | AX87: - | AY87: 普通預金 | AZ87: 銀行手数料 | BA87: 330 | BB87: 伝票No.63 XXXX地区社会福祉協議会会費納入 手数料
A88: 可 | B88: 2021-05-17 | C88: 65 | D88: 1 | E88: - | F88: 普通預金 | G88: 振込入金 | H88: 8000 | I88: 65 | J88: 1 | K88: - | L88: 会費 | M88: 自治会協力金 | N88: 8000 | O88: 5/10振込 （株）XXXX | Q88: 651 | R88: 651 | S88: YNNN | T88: Y | U88: N | V88: N | W88: N | X88: N | Y88: N | Z88: N | AA88: A | AC88: N | AD88: N | AO88: 2021-05-17 | AP88: 65 | AQ88: 1 | AR88: - | AS88: 普通預金 | AT88: 振込入金 | AU88: 8000 | AV88: 65 | AW88: 1 | AX88: - | AY88: 会費 | AZ88: 自治会協力金 | BA88: 8000 | BB88: 5/10振込 （株）XXXX
A89: 可 | B89: 2021-05-18 | C89: 66 | D89: 1 | E89: - | F89: 現金 | G89: - | H89: 30000 | I89: 66 | J89: 1 | K89: - | L89: 普通預金 | M89: 現金払出 | N89: 30000 | O89: 小口現金の確保 | Q89: 661 | R89: 661 | S89: YNNN | T89: Y | U89: N | V89: N | W89: N | X89: N | Y89: N | Z89: N | AA89: A | AC89: N | AD89: N | AO89: 2021-05-18 | AP89: 66 | AQ89: 1 | AR89: - | AS89: 現金 | AT89: - | AU89: 30000 | AV89: 66 | AW89: 1 | AX89: - | AY89: 普通預金 | AZ89: 現金払出 | BA89: 30000 | BB89: 小口現金の確保
A90: 可 | B90: 2021-05-18 | C90: 67 | D90: 1 | E90: - | F90: 事務費 | G90: - | H90: 360 | I90: 67 | J90: 1 | K90: - | L90: 現金 | M90: - | N90: 360 | O90: DCM コピー用紙 A4 ケーヨーデイツー | Q90: 671 | R90: 671 | S90: YNNN | T90: Y | U90: N | V90: N | W90: N | X90: N | Y90: N | Z90: N | AA90: A | AC90: N | AD90: N | AO90: 2021-05-18 | AP90: 67 | AQ90: 1 | AR90: - | AS90: 事務費 | AT90: - | AU90: 360 | AV90: 67 | AW90: 1 | AX90: - | AY90: 現金 | AZ90: - | BA90: 360 | BB90: DCM コピー用紙 A4 ケーヨーデイツー
A91: 可 | B91: 2021-05-23 | C91: 68 | D91: 1 | E91: - | F91: 雑費 | G91: 慶弔費 | H91: 4000 | I91: 68 | J91: 1 | K91: - | L91: 現金 | M91: - | N91: 4000 | O91: 3-1班 XXXX(96)様ご香典 5月23日逝去 仏式 喪主XXXX（妻） 自治会3,000円 民生委員1,000円 | Q91: 681 | R91: 681 | S91: YNNN | T91: Y | U91: N | V91: N | W91: N | X91: N | Y91: N | Z91: N | AA91: A | AC91: N | AD91: N | AO91: 2021-05-23 | AP91: 68 | AQ91: 1 | AR91: - | AS91: 雑費 | AT91: 慶弔費 | AU91: 4000 | AV91: 68 | AW91: 1 | AX91: - | AY91: 現金 | AZ91: - | BA91: 4000 | BB91: 3-1班 XXXX(96)様ご香典 5月23日逝去 仏式 喪主XXXX（妻） 自治会3,000円 民生委員1,000円
A92: 可 | B92: 2021-05-23 | C92: 69 | D92: 1 | E92: - | F92: 施設費 | G92: 公民館管理費 | H92: 765 | I92: 69 | J92: 1 | K92: - | L92: 現金 | M92: - | N92: 765 | O92: トイレットペーパー フレリーピンク ダブル18口 2個 @348 税10% 杏林堂 | Q92: 691 | R92: 691 | S92: YNNN | T92: Y | U92: N | V92: N | W92: N | X92: N | Y92: N | Z92: N | AA92: A | AC92: N | AD92: N | AO92: 2021-05-23 | AP92: 69 | AQ92: 1 | AR92: - | AS92: 施設費 | AT92: 公民館管理費 | AU92: 765 | AV92: 69 | AW92: 1 | AX92: - | AY92: 現金 | AZ92: - | BA92: 765 | BB92: トイレットペーパー フレリーピンク ダブル18口 2個 @348 税10% 杏林堂
A93: 可 | B93: 2021-05-24 | C93: 70 | D93: 1 | E93: - | F93: 現金 | G93: - | H93: 765000 | I93: 70 | J93: 1 | K93: - | L93: 普通預金 | M93: 現金払出 | N93: 765000 | O93: 5部会助成金用 預金払い出し AA会180,000 BB会180,000 CC部155,000 DD会150,000 EE会100,000 | Q93: 701 | R93: 701 | S93: YNNN | T93: Y | U93: N | V93: N | W93: N | X93: N | Y93: N | Z93: N | AA93: A | AC93: N | AD93: N | AO93: 2021-05-24 | AP93: 70 | AQ93: 1 | AR93: - | AS93: 現金 | AT93: - | AU93: 765000 | AV93: 70 | AW93: 1 | AX93: - | AY93: 普通預金 | AZ93: 現金払出 | BA93: 765000 | BB93: 5部会助成金用 預金払い出し AA会180,000 BB会180,000 CC部155,000 DD会150,000 EE会100,000
A94: 可 | B94: 2021-05-24 | C94: 71 | D94: 1 | E94: - | F94: 普通預金 | G94: 振込入金 | H94: 48000 | I94: 71 | J94: 1 | K94: - | L94: 会費 | M94: アパート世帯会費 | N94: 48000 | O94: （株）XXXX | Q94: 711 | R94: 711 | S94: YNNN | T94: Y | U94: N | V94: N | W94: N | X94: N | Y94: N | Z94: N | AA94: A | AC94: N | AD94: N | AO94: 2021-05-24 | AP94: 71 | AQ94: 1 | AR94: - | AS94: 普通預金 | AT94: 振込入金 | AU94: 48000 | AV94: 71 | AW94: 1 | AX94: - | AY94: 会費 | AZ94: アパート世帯会費 | BA94: 48000 | BB94: （株）XXXX
A95: 可 | B95: 2021-05-24 | C95: 72 | D95: 1 | E95: - | F95: 助成金 | G95: AA会助成金 | H95: 180000 | I95: 72 | J95: 1 | K95: - | L95: 現金 | M95: - | N95: 180000 | O95: AA会会計 XXXXさん受領 | P95: （連） | Q95: 721 | R95: 721 | S95: =T95&U95&V95&W95 -> YNNN | T95: =IF(AND(from_date_2<=B95,to_date_2>=B95),"Y","N") -> Y | U95: =IF(F95=L95,"Y","N") -> N | V95: =IF(AND(kamoku_name<>"",F95=kamoku_name),"Y","N") -> N | W95: =IF(AND(kamoku_name<>"",L95=kamoku_name),"Y","N") -> N | X95: =IF(OR(V95="Y",W95="Y"),"Y","N") -> N | Y95: =IF(AND(X95="Y",V95="Y"),"Y","N") -> N | Z95: =IF(AND(X95="Y",W95="Y"),"Y","N") -> N | AA95: A | AB95: =IFERROR(MATCH(MAX(slip),C95,0),"") ->  | AC95: N | AD95: =IF(OR(F95="",L95=""),"Y","N") -> N | AO95: 2021-05-24 | AP95: 72 | AQ95: 1 | AR95: - | AS95: 助成金 | AT95: AA会助成金 | AU95: 180000 | AV95: 72 | AW95: 1 | AX95: - | AY95: 現金 | AZ95: - | BA95: 180000 | BB95: AA会会計 XXXXさん受領 | BC95: （連）
A96: 可 | B96: 2021-05-24 | C96: 72 | D96: 2 | E96: - | F96: 助成金 | G96: BB部助成金 | H96: 155000 | I96: 72 | J96: 2 | K96: - | L96: 現金 | M96: - | N96: 155000 | O96: BB部会計 XXXXさん受領 | Q96: 722 | R96: 722 | S96: YNNN | T96: Y | U96: N | V96: N | W96: N | X96: N | Y96: N | Z96: N | AA96: A | AC96: N | AD96: N | AO96: 2021-05-24 | AP96: 72 | AQ96: 2 | AR96: - | AS96: 助成金 | AT96: BB部助成金 | AU96: 155000 | AV96: 72 | AW96: 2 | AX96: - | AY96: 現金 | AZ96: - | BA96: 155000 | BB96: BB部会計 XXXXさん受領
A97: 可 | B97: 2021-05-24 | C97: 72 | D97: 3 | E97: - | F97: 助成金 | G97: CC会助成金 | H97: 150000 | I97: 72 | J97: 3 | K97: - | L97: 現金 | M97: - | N97: 150000 | O97: CC会会長 XXXXさん受領 | Q97: 723 | R97: 723 | S97: YNNN | T97: Y | U97: N | V97: N | W97: N | X97: N | Y97: N | Z97: N | AA97: A | AC97: N | AD97: N | AO97: 2021-05-24 | AP97: 72 | AQ97: 3 | AR97: - | AS97: 助成金 | AT97: CC会助成金 | AU97: 150000 | AV97: 72 | AW97: 3 | AX97: - | AY97: 現金 | AZ97: - | BA97: 150000 | BB97: CC会会長 XXXXさん受領
A98: 可 | B98: 2021-05-25 | C98: 73 | D98: 1 | E98: - | F98: 助成金 | G98: DD会助成金 | H98: 180000 | I98: 73 | J98: 1 | K98: - | L98: 現金 | M98: - | N98: 180000 | O98: DD会会計 XXXXさん受領 | P98: （連） | Q98: 731 | R98: 731 | S98: YNNN | T98: Y | U98: N | V98: N | W98: N | X98: N | Y98: N | Z98: N | AA98: A | AC98: N | AD98: N | AO98: 2021-05-25 | AP98: 73 | AQ98: 1 | AR98: - | AS98: 助成金 | AT98: DD会助成金 | AU98: 180000 | AV98: 73 | AW98: 1 | AX98: - | AY98: 現金 | AZ98: - | BA98: 180000 | BB98: DD会会計 XXXXさん受領 | BC98: （連）
A99: =IF(AND(_xlfn.ISFORMULA(K99),_xlfn.ISFORMULA(E99),_xlfn.ISFORMULA(I99:J99),_xlfn.ISFORMULA(Q99:AD99),_xlfn.ISFORMULA(AL99),_xlfn.ISFORMULA(AO99:BC99)),"可","不可") -> 可 | B99: 2021-05-25 | C99: 73 | D99: 2 | E99: - | F99: 助成金 | G99: EE会助成金 | H99: 100000 | I99: 73 | J99: 2 | K99: - | L99: 現金 | M99: - | N99: 100000 | O99: EE会会計 XXXXさん受領 | Q99: 732 | R99: 732 | S99: YNNN | T99: Y | U99: N | V99: N | W99: N | X99: N | Y99: N | Z99: N | AA99: A | AC99: N | AD99: N | AO99: 2021-05-25 | AP99: 73 | AQ99: 2 | AR99: - | AS99: 助成金 | AT99: EE会助成金 | AU99: 100000 | AV99: 73 | AW99: 2 | AX99: - | AY99: 現金 | AZ99: - | BA99: 100000 | BB99: EE会会計 XXXXさん受領
A100: 可 | B100: 2021-05-26 | C100: 74 | D100: 1 | E100: - | F100: 事務費 | G100: - | H100: 150 | I100: 74 | J100: 1 | K100: - | L100: 現金 | M100: - | N100: 150 | O100: 中電電気料書類コピー15部(セブンイレブン) | Q100: 741 | R100: 741 | S100: YNNN | T100: Y | U100: N | V100: N | W100: N | X100: N | Y100: N | Z100: N | AA100: A | AC100: N | AD100: N | AO100: 2021-05-26 | AP100: 74 | AQ100: 1 | AR100: - | AS100: 事務費 | AT100: - | AU100: 150 | AV100: 74 | AW100: 1 | AX100: - | AY100: 現金 | AZ100: - | BA100: 150 | BB100: 中電電気料書類コピー15部(セブンイレブン)
A101: 可 | B101: 2021-05-27 | C101: 75 | D101: 1 | E101: - | F101: 事業費 | G101: 自主防災費 | H101: 14520 | I101: 75 | J101: 1 | K101: - | L101: 現金 | M101: - | N101: 14520 | O101: 自治会役員防災服 ２着 （XXXX衣料） | Q101: 751 | R101: 751 | S101: YNNN | T101: Y | U101: N | V101: N | W101: N | X101: N | Y101: N | Z101: N | AA101: A | AC101: N | AD101: N | AO101: 2021-05-27 | AP101: 75 | AQ101: 1 | AR101: - | AS101: 事業費 | AT101: 自主防災費 | AU101: 14520 | AV101: 75 | AW101: 1 | AX101: - | AY101: 現金 | AZ101: - | BA101: 14520 | BB101: 自治会役員防災服 ２着 （XXXX衣料）
A102: 可 | B102: 2021-05-27 | C102: 76 | D102: 1 | E102: - | F102: 雑費 | G102: 慶弔費 | H102: 4000 | I102: 76 | J102: 1 | K102: - | L102: 現金 | M102: - | N102: 4000 | O102: 4-1班 XXXX(86)様ご香典 5月26日逝去 仏式 喪主XXXX（長男） 自治会3,000円 民生委員1,000円 | Q102: 761 | R102: 761 | S102: YNNN | T102: Y | U102: N | V102: N | W102: N | X102: N | Y102: N | Z102: N | AA102: A | AC102: N | AD102: N | AO102: 2021-05-27 | AP102: 76 | AQ102: 1 | AR102: - | AS102: 雑費 | AT102: 慶弔費 | AU102: 4000 | AV102: 76 | AW102: 1 | AX102: - | AY102: 現金 | AZ102: - | BA102: 4000 | BB102: 4-1班 XXXX(86)様ご香典 5月26日逝去 仏式 喪主XXXX（長男） 自治会3,000円 民生委員1,000円
A103: 可 | B103: 2021-05-27 | C103: 77 | D103: 1 | E103: - | F103: 施設費 | G103: 公民館管理費 | H103: 1650 | I103: 77 | J103: 1 | K103: - | L103: 普通預金 | M103: 振替支払 | N103: 1650 | O103: 4月分ガス代 XXXX産業 | Q103: =C103&D103 -> 771 | R103: =I103&J103 -> 771 | S103: =T103&U103&V103&W103 -> YNNN | T103: =IF(AND(from_date_2<=B103,to_date_2>=B103),"Y","N") -> Y | U103: =IF(F103=L103,"Y","N") -> N | V103: =IF(AND(kamoku_name<>"",F103=kamoku_name),"Y","N") -> N | W103: =IF(AND(kamoku_name<>"",L103=kamoku_name),"Y","N") -> N | X103: =IF(OR(V103="Y",W103="Y"),"Y","N") -> N | Y103: =IF(AND(X103="Y",V103="Y"),"Y","N") -> N | Z103: =IF(AND(X103="Y",W103="Y"),"Y","N") -> N | AA103: =IF(AND(B103>=start_date,B103<=end_date),"A",IF(B103="","C","B")) -> A | AB103: =IFERROR(MATCH(MAX(slip),C103,0),"") -> 1 | AC103: =IF(AND(AA103="A",AB103<>""),"Y",IF(AA103="C","Y","N")) -> Y | AD103: =IF(OR(F103="",L103=""),"Y","N") -> N | AO103: =B103 -> 2021-05-27 | AP103: =C103 -> 77 | AQ103: =D103 -> 1 | AR103: - | AS103: 施設費 | AT103: 公民館管理費 | AU103: 1650 | AV103: =I103 -> 77 | AW103: =J103 -> 1 | AX103: - | AY103: 普通預金 | AZ103: 振替支払 | BA103: 1650 | BB103: 4月分ガス代 XXXX産業
A104: 可 | I104: 0 | J104: 0 | Q104: =C104&D104 ->  | R104: =I104&J104 -> 00 | S104: =T104&U104&V104&W104 -> NYNN | T104: =IF(AND(from_date_2<=B104,to_date_2>=B104),"Y","N") -> N | U104: =IF(F104=L104,"Y","N") -> Y | V104: =IF(AND(kamoku_name<>"",F104=kamoku_name),"Y","N") -> N | W104: =IF(AND(kamoku_name<>"",L104=kamoku_name),"Y","N") -> N | X104: =IF(OR(V104="Y",W104="Y"),"Y","N") -> N | Y104: =IF(AND(X104="Y",V104="Y"),"Y","N") -> N | Z104: =IF(AND(X104="Y",W104="Y"),"Y","N") -> N | AA104: =IF(AND(B104>=start_date,B104<=end_date),"A",IF(B104="","C","B")) -> C | AB104: =IFERROR(MATCH(MAX(slip),C104,0),"") ->  | AC104: =IF(AND(AA104="A",AB104<>""),"Y",IF(AA104="C","Y","N")) -> Y | AD104: =IF(OR(F104="",L104=""),"Y","N") -> Y | AO104: =B104 -> 00:00:00 | AP104: =C104 -> 0 | AQ104: =D104 -> 0 | AV104: =I104 -> 0 | AW104: =J104 -> 0 | BB104: =IF(O104=0,"",O104) -> 
A105: 可 | I105: 0 | J105: 0 | Q105: =C105&D105 ->  | R105: =I105&J105 -> 00 | S105: =T105&U105&V105&W105 -> NYNN | T105: =IF(AND(from_date_2<=B105,to_date_2>=B105),"Y","N") -> N | U105: =IF(F105=L105,"Y","N") -> Y | V105: =IF(AND(kamoku_name<>"",F105=kamoku_name),"Y","N") -> N | W105: =IF(AND(kamoku_name<>"",L105=kamoku_name),"Y","N") -> N | X105: =IF(OR(V105="Y",W105="Y"),"Y","N") -> N | Y105: =IF(AND(X105="Y",V105="Y"),"Y","N") -> N | Z105: =IF(AND(X105="Y",W105="Y"),"Y","N") -> N | AA105: =IF(AND(B105>=start_date,B105<=end_date),"A",IF(B105="","C","B")) -> C | AB105: =IFERROR(MATCH(MAX(slip),C105,0),"") ->  | AC105: =IF(AND(AA105="A",AB105<>""),"Y",IF(AA105="C","Y","N")) -> Y | AD105: =IF(OR(F105="",L105=""),"Y","N") -> Y | AO105: =B105 -> 00:00:00 | AP105: =C105 -> 0 | AQ105: =D105 -> 0 | AV105: =I105 -> 0 | AW105: =J105 -> 0
A106: 可 | I106: 0 | J106: 0 | Q106: =C106&D106 ->  | R106: =I106&J106 -> 00 | S106: =T106&U106&V106&W106 -> NYNN | T106: =IF(AND(from_date_2<=B106,to_date_2>=B106),"Y","N") -> N | U106: =IF(F106=L106,"Y","N") -> Y | V106: =IF(AND(kamoku_name<>"",F106=kamoku_name),"Y","N") -> N | W106: =IF(AND(kamoku_name<>"",L106=kamoku_name),"Y","N") -> N | X106: =IF(OR(V106="Y",W106="Y"),"Y","N") -> N | Y106: =IF(AND(X106="Y",V106="Y"),"Y","N") -> N | Z106: =IF(AND(X106="Y",W106="Y"),"Y","N") -> N | AA106: =IF(AND(B106>=start_date,B106<=end_date),"A",IF(B106="","C","B")) -> C | AB106: =IFERROR(MATCH(MAX(slip),C106,0),"") ->  | AC106: =IF(AND(AA106="A",AB106<>""),"Y",IF(AA106="C","Y","N")) -> Y | AD106: =IF(OR(F106="",L106=""),"Y","N") -> Y | AO106: =B106 -> 00:00:00 | AP106: =C106 -> 0 | AQ106: =D106 -> 0 | AV106: =I106 -> 0 | AW106: =J106 -> 0
A107: 可 | I107: 0 | J107: 0 | Q107: =C107&D107 ->  | R107: =I107&J107 -> 00 | S107: =T107&U107&V107&W107 -> NYNN | T107: =IF(AND(from_date_2<=B107,to_date_2>=B107),"Y","N") -> N | U107: =IF(F107=L107,"Y","N") -> Y | V107: =IF(AND(kamoku_name<>"",F107=kamoku_name),"Y","N") -> N | W107: =IF(AND(kamoku_name<>"",L107=kamoku_name),"Y","N") -> N | X107: =IF(OR(V107="Y",W107="Y"),"Y","N") -> N | Y107: =IF(AND(X107="Y",V107="Y"),"Y","N") -> N | Z107: =IF(AND(X107="Y",W107="Y"),"Y","N") -> N | AA107: =IF(AND(B107>=start_date,B107<=end_date),"A",IF(B107="","C","B")) -> C | AB107: =IFERROR(MATCH(MAX(slip),C107,0),"") ->  | AC107: =IF(AND(AA107="A",AB107<>""),"Y",IF(AA107="C","Y","N")) -> Y | AD107: =IF(OR(F107="",L107=""),"Y","N") -> Y | AO107: =B107 -> 00:00:00 | AP107: =C107 -> 0 | AQ107: =D107 -> 0 | AV107: =I107 -> 0 | AW107: =J107 -> 0
A108: 可 | I108: 0 | J108: 0 | Q108: =C108&D108 ->  | R108: =I108&J108 -> 00 | S108: =T108&U108&V108&W108 -> NYNN | T108: =IF(AND(from_date_2<=B108,to_date_2>=B108),"Y","N") -> N | U108: =IF(F108=L108,"Y","N") -> Y | V108: =IF(AND(kamoku_name<>"",F108=kamoku_name),"Y","N") -> N | W108: =IF(AND(kamoku_name<>"",L108=kamoku_name),"Y","N") -> N | X108: =IF(OR(V108="Y",W108="Y"),"Y","N") -> N | Y108: =IF(AND(X108="Y",V108="Y"),"Y","N") -> N | Z108: =IF(AND(X108="Y",W108="Y"),"Y","N") -> N | AA108: =IF(AND(B108>=start_date,B108<=end_date),"A",IF(B108="","C","B")) -> C | AB108: =IFERROR(MATCH(MAX(slip),C108,0),"") ->  | AC108: =IF(AND(AA108="A",AB108<>""),"Y",IF(AA108="C","Y","N")) -> Y | AD108: =IF(OR(F108="",L108=""),"Y","N") -> Y | AO108: =B108 -> 00:00:00 | AP108: =C108 -> 0 | AQ108: =D108 -> 0 | AV108: =I108 -> 0 | AW108: =J108 -> 0
A109: 可 | I109: 0 | J109: 0 | Q109: =C109&D109 ->  | R109: =I109&J109 -> 00 | S109: =T109&U109&V109&W109 -> NYNN | T109: =IF(AND(from_date_2<=B109,to_date_2>=B109),"Y","N") -> N | U109: =IF(F109=L109,"Y","N") -> Y | V109: =IF(AND(kamoku_name<>"",F109=kamoku_name),"Y","N") -> N | W109: =IF(AND(kamoku_name<>"",L109=kamoku_name),"Y","N") -> N | X109: =IF(OR(V109="Y",W109="Y"),"Y","N") -> N | Y109: =IF(AND(X109="Y",V109="Y"),"Y","N") -> N | Z109: =IF(AND(X109="Y",W109="Y"),"Y","N") -> N | AA109: =IF(AND(B109>=start_date,B109<=end_date),"A",IF(B109="","C","B")) -> C | AB109: =IFERROR(MATCH(MAX(slip),C109,0),"") ->  | AC109: =IF(AND(AA109="A",AB109<>""),"Y",IF(AA109="C","Y","N")) -> Y | AD109: =IF(OR(F109="",L109=""),"Y","N") -> Y | AO109: =B109 -> 00:00:00 | AP109: =C109 -> 0 | AQ109: =D109 -> 0 | AV109: =I109 -> 0 | AW109: =J109 -> 0
A110: 可 | I110: 0 | J110: 0 | Q110: =C110&D110 ->  | R110: =I110&J110 -> 00 | S110: =T110&U110&V110&W110 -> NYNN | T110: =IF(AND(from_date_2<=B110,to_date_2>=B110),"Y","N") -> N | U110: =IF(F110=L110,"Y","N") -> Y | V110: =IF(AND(kamoku_name<>"",F110=kamoku_name),"Y","N") -> N | W110: =IF(AND(kamoku_name<>"",L110=kamoku_name),"Y","N") -> N | X110: =IF(OR(V110="Y",W110="Y"),"Y","N") -> N | Y110: =IF(AND(X110="Y",V110="Y"),"Y","N") -> N | Z110: =IF(AND(X110="Y",W110="Y"),"Y","N") -> N | AA110: =IF(AND(B110>=start_date,B110<=end_date),"A",IF(B110="","C","B")) -> C | AB110: =IFERROR(MATCH(MAX(slip),C110,0),"") ->  | AC110: =IF(AND(AA110="A",AB110<>""),"Y",IF(AA110="C","Y","N")) -> Y | AD110: =IF(OR(F110="",L110=""),"Y","N") -> Y | AO110: =B110 -> 00:00:00 | AP110: =C110 -> 0 | AQ110: =D110 -> 0 | AV110: =I110 -> 0 | AW110: =J110 -> 0
A111: =IF(AND(_xlfn.ISFORMULA(K111),_xlfn.ISFORMULA(E111),_xlfn.ISFORMULA(Q111:AD111),_xlfn.ISFORMULA(AL111),_xlfn.ISFORMULA(AO111:BC111)),"可","不可") -> 可 | I111: 0 | J111: 0 | R111: 00 | S111: NYNN | T111: N | U111: Y | V111: N | W111: N | X111: N | Y111: N | Z111: N | AA111: C | AC111: Y | AD111: Y | AO111: 00:00:00 | AP111: 0 | AQ111: 0 | AV111: 0 | AW111: 0
A112: 可 | S112: NYNN | T112: N | U112: Y | V112: N | W112: N | X112: N | Y112: N | Z112: N | AA112: =IF(ISBLANK(B112),"N","Y") -> N | AC112: =IF(OR(AA112="N",AB112<>""),"Y","N") -> Y | AD112: Y | AO112: 00:00:00 | AP112: 0 | AQ112: 0 | AV112: 0 | AW112: 0
A113: 可 | E113: =IFERROR(VLOOKUP(F113,g_kamoku,2,FALSE),"") ->  | K113: =IFERROR(VLOOKUP(L113,g_kamoku,2,FALSE),"") ->  | S113: NYNN | T113: N | U113: Y | V113: N | W113: N | X113: N | Y113: N | Z113: N | AA113: N | AC113: Y | AD113: Y | AO113: 00:00:00 | AP113: 0 | AQ113: 0 | AV113: 0 | AW113: 0
A114: 可 | S114: NYNN | T114: N | U114: Y | V114: N | W114: N | X114: N | Y114: N | Z114: N | AA114: N | AC114: Y | AD114: Y | AO114: 00:00:00 | AP114: 0 | AQ114: 0 | AV114: 0 | AW114: 0
A115: 可 | S115: =T115&U115&V115&W115 -> NYNN | T115: =IF(AND(from_date_2<=B115,to_date_2>=B115),"Y","N") -> N | U115: =IF(E115=K115,"Y","N") -> Y | V115: =IF(AND(list_kamoku_2<>"",E115=list_kamoku_2),"Y","N") -> N | W115: =IF(AND(list_kamoku_2<>"",K115=list_kamoku_2),"Y","N") -> N | X115: =IF(OR(V115="Y",W115="Y"),"Y","N") -> N | Y115: =IF(AND(X115="Y",V115="Y"),"Y","N") -> N | Z115: =IF(AND(X115="Y",W115="Y"),"Y","N") -> N | AA115: N | AB115: =IFERROR(MATCH(MAX(slip),C115,0),"") ->  | AC115: Y | AD115: =IF(OR(F115="",L115=""),"Y","N") -> Y | AO115: 00:00:00 | AP115: 0 | AQ115: 0 | AV115: 0 | AW115: 0
A116: 可 | S116: NYNN | T116: N | U116: Y | V116: N | W116: N | X116: N | Y116: N | Z116: N | AA116: N | AC116: Y | AD116: Y | AO116: 00:00:00 | AP116: 0 | AQ116: 0 | AV116: 0 | AW116: 0
A117: 可 | S117: NYNN | T117: N | U117: Y | V117: N | W117: N | X117: N | Y117: N | Z117: N | AA117: N | AC117: Y | AD117: Y | AO117: 00:00:00 | AP117: 0 | AQ117: 0 | AV117: 0 | AW117: 0
A118: 可 | S118: NYNN | T118: N | U118: Y | V118: N | W118: N | X118: N | Y118: N | Z118: N | AA118: N | AC118: Y | AD118: Y | AO118: 00:00:00 | AP118: 0 | AQ118: 0 | AV118: 0 | AW118: 0
A119: 可 | S119: NYNN | T119: N | U119: Y | V119: N | W119: N | X119: N | Y119: N | Z119: N | AA119: N | AC119: Y | AD119: Y | AO119: 00:00:00 | AP119: 0 | AQ119: 0 | AV119: 0 | AW119: 0
A120: 可 | S120: NYNN | T120: N | U120: Y | V120: N | W120: N | X120: N | Y120: N | Z120: N | AA120: N | AC120: Y | AD120: Y | AO120: 00:00:00 | AP120: 0 | AQ120: 0 | AV120: 0 | AW120: 0
A121: 可 | S121: NYNN | T121: N | U121: Y | V121: N | W121: N | X121: N | Y121: N | Z121: N | AA121: N | AC121: Y | AD121: Y | AO121: 00:00:00 | AP121: 0 | AQ121: 0 | AV121: 0 | AW121: 0
A122: 可 | S122: NYNN | T122: N | U122: Y | V122: N | W122: N | X122: N | Y122: N | Z122: N | AA122: N | AC122: Y | AD122: Y | AO122: 00:00:00 | AP122: 0 | AQ122: 0 | AV122: 0 | AW122: 0
AO123: =B123 -> 00:00:00 | AP123: =IF(V123="Y",C123,"") ->  | AQ123: =IF(V123="Y",D123,"") ->  | AR123: =IF(V123="Y",E123,"") ->  | AS123: =IF(V123="Y",F123,"") ->  | AT123: =IF(V123="Y",G123,"") ->  | AU123: =IF(V123="Y",H123,"") -> 
AO124: 00:00:00
AO125: 00:00:00
AO126: 00:00:00
AO127: 00:00:00
AO128: 00:00:00
AO129: 00:00:00
AO130: 00:00:00
AO131: 00:00:00
AO132: 00:00:00
AO133: 00:00:00
AO134: 00:00:00
AO135: 00:00:00
AO136: 00:00:00
AO137: 00:00:00
AO138: 00:00:00
AO139: 00:00:00
AO140: 00:00:00
AO141: 00:00:00
AO142: 00:00:00
AO143: 00:00:00
BB144: =IF(O144=0,"",O144) -> 

Sheet 期間別試算表
A1: 計算期間は「説明」シートへ登録ください。
C2: =説明!C24 -> A自治会 | BF2: 色のところへ | BH2: =BE4 -> 2021 | BI2: 予実績比較表
C3: 試算表 | BF3: 予算を入力
C4: =説明!D26 -> 2021 | E4: 年度 | F4: =IF(説明!E29="","",説明!E29) -> 2021-03-31 | H4: =IF(説明!D30="","",説明!D30) -> 2021-04-01 | J4: =IF(説明!E30="","",説明!E30) -> 2021-04-30 | L4: =IF(説明!D31="","",説明!D31) -> 2021-05-01 | N4: =IF(説明!E31="","",説明!E31) -> 2021-05-31 | P4: =IF(説明!D32="","",説明!D32) -> 2021-06-01 | R4: =IF(説明!E32="","",説明!E32) -> 2021-06-30 | T4: =IF(説明!D33="","",説明!D33) -> 2021-07-01 | V4: =IF(説明!E33="","",説明!E33) -> 2021-07-31 | X4: =IF(説明!D34="","",説明!D34) -> 2021-08-01 | Z4: =IF(説明!E34="","",説明!E34) -> 2021-08-31 | AB4: =IF(説明!D35="","",説明!D35) -> 2021-09-01 | AD4: =IF(説明!E35="","",説明!E35) -> 2021-09-30 | AF4: =IF(説明!D36="","",説明!D36) -> 2021-10-01 | AH4: =IF(説明!E36="","",説明!E36) -> 2021-10-31 | AJ4: =IF(説明!D37="","",説明!D37) -> 2021-11-01 | AL4: =IF(説明!E37="","",説明!E37) -> 2021-11-30 | AN4: =IF(説明!D38="","",説明!D38) -> 2021-12-01 | AP4: =IF(説明!E38="","",説明!E38) -> 2021-12-31 | AR4: =IF(説明!D39="","",説明!D39) -> 2022-01-01 | AT4: =IF(説明!E39="","",説明!E39) -> 2022-01-31 | AV4: =IF(説明!D40="","",説明!D40) -> 2022-02-01 | AX4: =IF(説明!E40="","",説明!E40) -> 2022-02-28 | AZ4: =IF(説明!D41="","",説明!D41) -> 2022-03-01 | BB4: =IF(説明!E41="","",説明!E41) -> 2022-03-31 | BE4: =説明!D26 -> 2021 | BF4: 年度予算 | BI4: 年間予算 | BJ4: 累計実績 | BK4: 差異
C5: 単位：円 | F5: 繰越残高 | H5: 発生 | J5: 残高 | L5: 発生 | N5: 残高 | P5: 発生 | R5: 残高 | T5: 発生 | V5: 残高 | X5: 発生 | Z5: 残高 | AB5: 発生 | AD5: 残高 | AF5: 発生 | AH5: 残高 | AJ5: 発生 | AL5: 残高 | AN5: 発生 | AP5: 残高 | AR5: 発生 | AT5: 残高 | AV5: 発生 | AX5: 残高 | AZ5: 発生 | BB5: 残高 | BH5: 繰越現金 | BI5: =BE7 -> 0 | BJ5: =F7 -> 0 | BK5: =BJ5-BI5 -> 0
F6: 借方 | G6: 貸方 | H6: 借方 | I6: 貸方 | J6: 借方 | K6: 貸方 | L6: 借方 | M6: 貸方 | N6: 借方 | O6: 貸方 | P6: 借方 | Q6: 貸方 | R6: 借方 | S6: 貸方 | T6: 借方 | U6: 貸方 | V6: 借方 | W6: 貸方 | X6: 借方 | Y6: 貸方 | Z6: 借方 | AA6: 貸方 | AB6: 借方 | AC6: 貸方 | AD6: 借方 | AE6: 貸方 | AF6: 借方 | AG6: 貸方 | AH6: 借方 | AI6: 貸方 | AJ6: 借方 | AK6: 貸方 | AL6: 借方 | AM6: 貸方 | AN6: 借方 | AO6: 貸方 | AP6: 借方 | AQ6: 貸方 | AR6: 借方 | AS6: 貸方 | AT6: 借方 | AU6: 貸方 | AV6: 借方 | AW6: 貸方 | AX6: 借方 | AY6: 貸方 | AZ6: 借方 | BA6: 貸方 | BB6: 借方 | BC6: 貸方 | BE6: 借方 | BF6: 貸方 | BH6: 繰越普通預金 | BI6: =BE8 -> 1925396 | BJ6: =F8 -> 1925396 | BK6: 0
A7: =科目細分類表!E4 -> - | C7: 資産 | D7: =科目細分類表!E5 -> 現金 | F7: =説明!D46 -> 0 | H7: 5098948 | I7: 5071548 | J7: =F7+H7-I7 -> 27400 | L7: 806250 | M7: 822590 | N7: =J7+L7-M7 -> 11060 | P7: 303100 | Q7: 285749 | R7: =N7+P7-Q7 -> 28411 | T7: 60000 | U7: 63694 | V7: =R7+T7-U7 -> 24717 | X7: 0 | Y7: 0 | Z7: =V7+X7-Y7 -> 24717 | AB7: 0 | AC7: 0 | AD7: =Z7+AB7-AC7 -> 24717 | AF7: 0 | AG7: 0 | AH7: =AD7+AF7-AG7 -> 24717 | AJ7: 0 | AK7: 0 | AL7: =AH7+AJ7-AK7 -> 24717 | AN7: 0 | AO7: 0 | AP7: =AL7+AN7-AO7 -> 24717 | AR7: 0 | AS7: 0 | AT7: =AP7+AR7-AS7 -> 24717 | AV7: 0 | AW7: 0 | AX7: =AT7+AV7-AW7 -> 24717 | AZ7: 0 | BA7: 0 | BB7: =AX7+AZ7-BA7 -> 24717 | BE7: =説明!D46 -> 0 | BH7: 現金（繰越含む） | BI7: =BI5 -> 0 | BJ7: =BB7 -> 24717 | BK7: 24717
A8: =科目細分類表!F4 -> - | D8: =科目細分類表!F5 -> 普通預金 | F8: =説明!D47 -> 1925396 | H8: 5129610 | I8: 381400 | J8: =F8+H8-I8 -> 6673606 | L8: 73260 | M8: 1256999 | N8: =J8+L8-M8 -> 5489867 | P8: 260316 | Q8: 358170 | R8: =N8+P8-Q8 -> 5392013 | T8: 21081 | U8: 96425 | V8: =R8+T8-U8 -> 5316669 | X8: 0 | Y8: 0 | Z8: =V8+X8-Y8 -> 5316669 | AB8: 0 | AC8: 0 | AD8: =Z8+AB8-AC8 -> 5316669 | AF8: 0 | AG8: 0 | AH8: =AD8+AF8-AG8 -> 5316669 | AJ8: 0 | AK8: 0 | AL8: =AH8+AJ8-AK8 -> 5316669 | AN8: 0 | AO8: 0 | AP8: =AL8+AN8-AO8 -> 5316669 | AR8: 0 | AS8: 0 | AT8: =AP8+AR8-AS8 -> 5316669 | AV8: 0 | AW8: 0 | AX8: =AT8+AV8-AW8 -> 5316669 | AZ8: 0 | BA8: 0 | BB8: =AX8+AZ8-BA8 -> 5316669 | BE8: =説明!D47 -> 1925396 | BH8: 普通預金（繰越含む） | BI8: =BI6 -> 1925396 | BJ8: =BB8 -> 5316669 | BK8: 3391273
C9: 資金の過不足 | G9: =F8+F7 -> 1925396 | I9: =H25 -> 4775610 | K9: =G9+I9-H9 -> 6701006 | M9: =L25 -> -1200079 | O9: =K9+M9-L9 -> 5500927 | Q9: =P25 -> -80503 | S9: =O9+Q9-P9 -> 5420424 | U9: =T25 -> -79038 | W9: =S9+U9-T9 -> 5341386 | Y9: =X25 -> 0 | AA9: =W9+Y9-X9 -> 5341386 | AC9: =AB25 -> 0 | AE9: =AA9+AC9-AB9 -> 5341386 | AG9: =AF25 -> 0 | AI9: =AE9+AG9-AF9 -> 5341386 | AK9: =AJ25 -> 0 | AM9: =AI9+AK9-AJ9 -> 5341386 | AO9: =AN25 -> 0 | AQ9: =AM9+AO9-AN9 -> 5341386 | AS9: =AR25 -> 0 | AU9: =AQ9+AS9-AR9 -> 5341386 | AW9: =AV25 -> 0 | AY9: =AU9+AW9-AV9 -> 5341386 | BA9: =AZ25 -> 0 | BC9: =AY9+BA9-AZ9 -> 5341386 | BE9: =SUM(BE7:BE8) -> 1925396 | BF9: =SUM(BF7:BF8) -> 0 | BH9: 繰越資金 | BI9: =BE9 -> 1925396 | BJ9: =BC9 -> 5341386 | BK9: 3415990
C10: 資産等の合計 | F10: =SUM(F7:F9) -> 1925396 | G10: 1925396 | H10: 10228558 | I10: 10228558 | J10: =SUM(J7:J9) -> 6701006 | K10: =SUM(K7:K9) -> 6701006 | L10: 879510 | M10: 879510 | N10: =SUM(N7:N9) -> 5500927 | O10: =SUM(O7:O9) -> 5500927 | P10: =SUM(P7:P9) -> 563416 | Q10: =SUM(Q7:Q9) -> 563416 | R10: 5420424 | S10: 5420424 | T10: =SUM(T7:T9) -> 81081 | U10: 81081 | V10: 5341386 | W10: 5341386 | X10: 0 | Y10: 0 | Z10: 5341386 | AA10: 5341386 | AB10: 0 | AC10: 0 | AD10: 5341386 | AE10: 5341386 | AF10: 0 | AG10: 0 | AH10: 5341386 | AI10: 5341386 | AJ10: 0 | AK10: 0 | AL10: 5341386 | AM10: 5341386 | AN10: 0 | AO10: 0 | AP10: 5341386 | AQ10: 5341386 | AR10: 0 | AS10: 0 | AT10: 5341386 | AU10: 5341386 | AV10: 0 | AW10: 0 | AX10: 5341386 | AY10: 5341386 | AZ10: 0 | BA10: 0 | BB10: 5341386 | BC10: 5341386 | BE10: =BE9-BF9 -> 1925396 | BF10: =SUM(BF7:BF9) -> 0 | BH10: 収支へ繰入 | BI10: =BE10 -> 1925396 | BJ10: =BB10-BC10 -> 0 | BK10: -1925396
A11: =科目細分類表!G4 -> - | C11: 収入 | D11: =科目細分類表!G5 -> 会費 | H11: 0 | I11: 5129610 | J11: =F11+H11 -> 0 | K11: =G11+I11 -> 5129610 | L11: 0 | M11: 84510 | N11: =J11+L11 -> 0 | O11: =K11+M11 -> 5214120 | P11: 0 | Q11: 25376 | R11: =N11+P11 -> 0 | S11: =O11+Q11 -> 5239496 | T11: 0 | U11: 12786 | V11: =R11+T11 -> 0 | W11: =S11+U11 -> 5252282 | X11: 0 | Y11: 0 | Z11: =V11+X11 -> 0 | AA11: =W11+Y11 -> 5252282 | AB11: 0 | AC11: 0 | AD11: =Z11+AB11 -> 0 | AE11: =AA11+AC11 -> 5252282 | AF11: 0 | AG11: 0 | AH11: =AD11+AF11 -> 0 | AI11: =AE11+AG11 -> 5252282 | AJ11: 0 | AK11: 0 | AL11: =AH11+AJ11 -> 0 | AM11: =AI11+AK11 -> 5252282 | AN11: 0 | AO11: 0 | AP11: =AL11+AN11 -> 0 | AQ11: 5252282 | AR11: 0 | AS11: 0 | AT11: =AP11+AR11 -> 0 | AU11: 5252282 | AV11: 0 | AW11: 0 | AX11: =AT11+AV11 -> 0 | AY11: 5252282 | AZ11: 0 | BA11: 0 | BB11: =AX11+AZ11 -> 0 | BC11: 5252282 | BF11: 5512000 | BH11: =D11 -> 会費 | BI11: =BF11 -> 5512000 | BJ11: =BC11 -> 5252282 | BK11: -259718
A12: =科目細分類表!H4 -> - | D12: =科目細分類表!H5 -> 補助金 | H12: 0 | I12: 0 | J12: =F12+H12 -> 0 | K12: =G12+I12 -> 0 | L12: 0 | M12: 0 | N12: =J12+L12 -> 0 | O12: =K12+M12 -> 0 | P12: 0 | Q12: 304320 | R12: =N12+P12 -> 0 | S12: =O12+Q12 -> 304320 | T12: 0 | U12: 0 | V12: =R12+T12 -> 0 | W12: =S12+U12 -> 304320 | X12: 0 | Y12: 0 | Z12: =V12+X12 -> 0 | AA12: =W12+Y12 -> 304320 | AB12: 0 | AC12: 0 | AD12: =Z12+AB12 -> 0 | AE12: =AA12+AC12 -> 304320 | AF12: 0 | AG12: 0 | AH12: =AD12+AF12 -> 0 | AI12: =AE12+AG12 -> 304320 | AJ12: 0 | AK12: 0 | AL12: =AH12+AJ12 -> 0 | AM12: =AI12+AK12 -> 304320 | AN12: 0 | AO12: 0 | AP12: 0 | AQ12: 304320 | AR12: 0 | AS12: 0 | AT12: 0 | AU12: 304320 | AV12: 0 | AW12: 0 | AX12: 0 | AY12: 304320 | AZ12: 0 | BA12: 0 | BB12: 0 | BC12: 304320 | BF12: 1715100 | BH12: =D12 -> 補助金 | BI12: =BF12 -> 1715100 | BJ12: =BC12 -> 304320 | BK12: -1410780
A13: =科目細分類表!I4 -> - | D13: =科目細分類表!I5 -> 雑収入 | H13: 0 | I13: 0 | J13: 0 | K13: 0 | L13: 0 | M13: 0 | N13: 0 | O13: 0 | P13: 0 | Q13: 9800 | R13: 0 | S13: 9800 | T13: 0 | U13: 8295 | V13: 0 | W13: 18095 | X13: 0 | Y13: 0 | Z13: 0 | AA13: 18095 | AB13: 0 | AC13: 0 | AD13: 0 | AE13: 18095 | AF13: 0 | AG13: 0 | AH13: 0 | AI13: 18095 | AJ13: 0 | AK13: 0 | AL13: 0 | AM13: 18095 | AN13: 0 | AO13: 0 | AP13: 0 | AQ13: 18095 | AR13: 0 | AS13: 0 | AT13: 0 | AU13: 18095 | AV13: 0 | AW13: 0 | AX13: 0 | AY13: 18095 | AZ13: 0 | BA13: 0 | BB13: 0 | BC13: 18095 | BF13: 1029000 | BH13: =D13 -> 雑収入 | BI13: =BF13 -> 1029000 | BJ13: =BC13 -> 18095 | BK13: -1010905
C14: 収入の部合計 | F14: =SUM(F13,F12,F11) -> 0 | G14: =SUM(G13,G12,G11) -> 0 | H14: =SUM(H13,H12,H11) -> 0 | I14: =SUM(I13,I12,I11) -> 5129610 | J14: 0 | K14: 5129610 | L14: =SUM(L13,L12,L11) -> 0 | M14: =SUM(M13,M12,M11) -> 84510 | N14: 0 | O14: 5214120 | P14: =SUM(P13,P12,P11) -> 0 | Q14: =SUM(Q13,Q12,Q11) -> 339496 | R14: 0 | S14: 5553616 | T14: =SUM(T13,T12,T11) -> 0 | U14: =SUM(U13,U12,U11) -> 21081 | V14: 0 | W14: 5574697 | X14: =SUM(X13,X12,X11) -> 0 | Y14: =SUM(Y13,Y12,Y11) -> 0 | Z14: 0 | AA14: 5574697 | AB14: =SUM(AB13,AB12,AB11) -> 0 | AC14: =SUM(AC13,AC12,AC11) -> 0 | AD14: 0 | AE14: 5574697 | AF14: =SUM(AF13,AF12,AF11) -> 0 | AG14: =SUM(AG13,AG12,AG11) -> 0 | AH14: 0 | AI14: 5574697 | AJ14: =SUM(AJ13,AJ12,AJ11) -> 0 | AK14: =SUM(AK13,AK12,AK11) -> 0 | AL14: 0 | AM14: 5574697 | AN14: =SUM(AN13,AN12,AN11) -> 0 | AO14: =SUM(AO13,AO12,AO11) -> 0 | AP14: =AL14+AN14 -> 0 | AQ14: =AM14+AO14 -> 5574697 | AR14: =SUM(AR13,AR12,AR11) -> 0 | AS14: =SUM(AS13,AS12,AS11) -> 0 | AT14: =AP14+AR14 -> 0 | AU14: =AQ14+AS14 -> 5574697 | AV14: =SUM(AV13,AV12,AV11) -> 0 | AW14: =SUM(AW13,AW12,AW11) -> 0 | AX14: =AT14+AV14 -> 0 | AY14: =AU14+AW14 -> 5574697 | AZ14: =SUM(AZ13,AZ12,AZ11) -> 0 | BA14: =SUM(BA13,BA12,BA11) -> 0 | BB14: =AX14+AZ14 -> 0 | BC14: =AY14+BA14 -> 5574697 | BE14: =SUM(BE11:BE13) -> 0 | BF14: =SUM(BF11:BF13) -> 8256100 | BH14: 収入 | BI14: =BF14 -> 8256100 | BJ14: =BC14 -> 5574697 | BK14: =SUM(BK11:BK13) -> -2681403
A15: =科目細分類表!J4 -> - | C15: 支出 | D15: =科目細分類表!J5 -> 事務費 | H15: 123467 | I15: 0 | J15: 123467 | K15: 0 | L15: 8819 | M15: 0 | N15: 132286 | O15: 0 | P15: 127 | Q15: 0 | R15: 132413 | S15: 0 | T15: 941 | U15: 0 | V15: 133354 | W15: 0 | X15: 0 | Y15: 0 | Z15: 133354 | AA15: 0 | AB15: 0 | AC15: 0 | AD15: 133354 | AE15: 0 | AF15: 0 | AG15: 0 | AH15: 133354 | AI15: 0 | AJ15: 0 | AK15: 0 | AL15: 133354 | AM15: 0 | AN15: 0 | AO15: 0 | AP15: 133354 | AQ15: 0 | AR15: 0 | AS15: 0 | AT15: 133354 | AU15: 0 | AV15: 0 | AW15: 0 | AX15: 133354 | AY15: 0 | AZ15: 0 | BA15: 0 | BB15: 133354 | BC15: 0 | BE15: 180000 | BH15: =D15 -> 事務費 | BI15: =BE15 -> 180000 | BJ15: =BB15 -> 133354 | BK15: =BI15-BJ15 -> 46646
A16: =科目細分類表!K4 -> - | D16: =科目細分類表!K5 -> 会議費 | H16: 0 | I16: 0 | J16: 0 | K16: 0 | L16: 0 | M16: 0 | N16: 0 | O16: 0 | P16: 0 | Q16: 0 | R16: 0 | S16: 0 | T16: 0 | U16: 0 | V16: 0 | W16: 0 | X16: 0 | Y16: 0 | Z16: 0 | AA16: 0 | AB16: 0 | AC16: 0 | AD16: 0 | AE16: 0 | AF16: 0 | AG16: 0 | AH16: 0 | AI16: 0 | AJ16: 0 | AK16: 0 | AL16: 0 | AM16: 0 | AN16: 0 | AO16: 0 | AP16: 0 | AQ16: 0 | AR16: 0 | AS16: 0 | AT16: 0 | AU16: 0 | AV16: 0 | AW16: 0 | AX16: 0 | AY16: 0 | AZ16: 0 | BA16: 0 | BB16: 0 | BC16: 0 | BE16: 97000 | BH16: =D16 -> 会議費 | BI16: 97000 | BJ16: 0 | BK16: 97000
A17: =科目細分類表!L4 -> - | D17: =科目細分類表!L5 -> 役員費 | H17: 0 | I17: 0 | J17: 0 | K17: 0 | L17: 0 | M17: 0 | N17: 0 | O17: 0 | P17: 0 | Q17: 0 | R17: 0 | S17: 0 | T17: 0 | U17: 0 | V17: 0 | W17: 0 | X17: 0 | Y17: 0 | Z17: 0 | AA17: 0 | AB17: 0 | AC17: 0 | AD17: 0 | AE17: 0 | AF17: 0 | AG17: 0 | AH17: 0 | AI17: 0 | AJ17: 0 | AK17: 0 | AL17: 0 | AM17: 0 | AN17: 0 | AO17: 0 | AP17: 0 | AQ17: 0 | AR17: 0 | AS17: 0 | AT17: 0 | AU17: 0 | AV17: 0 | AW17: 0 | AX17: 0 | AY17: 0 | AZ17: 0 | BA17: 0 | BB17: 0 | BC17: 0 | BE17: 940000 | BH17: 役員費 | BI17: 940000 | BJ17: 0 | BK17: 940000
A18: =科目細分類表!M4 -> - | D18: =科目細分類表!M5 -> 事業費 | H18: 0 | I18: 0 | J18: 0 | K18: 0 | L18: 14520 | M18: 0 | N18: 14520 | O18: 0 | P18: 0 | Q18: 0 | R18: 14520 | S18: 0 | T18: 0 | U18: 0 | V18: 14520 | W18: 0 | X18: 0 | Y18: 0 | Z18: 14520 | AA18: 0 | AB18: 0 | AC18: 0 | AD18: 14520 | AE18: 0 | AF18: 0 | AG18: 0 | AH18: 14520 | AI18: 0 | AJ18: 0 | AK18: 0 | AL18: 14520 | AM18: 0 | AN18: 0 | AO18: 0 | AP18: 14520 | AQ18: 0 | AR18: 0 | AS18: 0 | AT18: 14520 | AU18: 0 | AV18: 0 | AW18: 0 | AX18: 14520 | AY18: 0 | AZ18: 0 | BA18: 0 | BB18: 14520 | BC18: 0 | BE18: 3751000 | BH18: 事業費 | BI18: 3751000 | BJ18: 14520 | BK18: 3736480
A19: =科目細分類表!N4 -> - | D19: =科目細分類表!N5 -> 助成金 | H19: 0 | I19: 0 | J19: 0 | K19: 0 | L19: 765000 | M19: 0 | N19: 765000 | O19: 0 | P19: 0 | Q19: 0 | R19: 765000 | S19: 0 | T19: 0 | U19: 0 | V19: 765000 | W19: 0 | X19: 0 | Y19: 0 | Z19: 765000 | AA19: 0 | AB19: 0 | AC19: 0 | AD19: 765000 | AE19: 0 | AF19: 0 | AG19: 0 | AH19: 765000 | AI19: 0 | AJ19: 0 | AK19: 0 | AL19: 765000 | AM19: 0 | AN19: 0 | AO19: 0 | AP19: 765000 | AQ19: 0 | AR19: 0 | AS19: 0 | AT19: 765000 | AU19: 0 | AV19: 0 | AW19: 0 | AX19: 765000 | AY19: 0 | AZ19: 0 | BA19: 0 | BB19: 765000 | BC19: 0 | BE19: 785000 | BH19: 助成金 | BI19: 785000 | BJ19: 765000 | BK19: 20000
A20: =科目細分類表!O4 -> - | D20: =科目細分類表!O5 -> 負担金 | H20: 88000 | I20: 0 | J20: 88000 | K20: 0 | L20: 428100 | M20: 0 | N20: 516100 | O20: 0 | P20: 362780 | Q20: 0 | R20: 878880 | S20: 0 | T20: 25200 | U20: 0 | V20: 904080 | W20: 0 | X20: 0 | Y20: 0 | Z20: 904080 | AA20: 0 | AB20: 0 | AC20: 0 | AD20: 904080 | AE20: 0 | AF20: 0 | AG20: 0 | AH20: 904080 | AI20: 0 | AJ20: 0 | AK20: 0 | AL20: 904080 | AM20: 0 | AN20: 0 | AO20: 0 | AP20: 904080 | AQ20: 0 | AR20: 0 | AS20: 0 | AT20: 904080 | AU20: 0 | AV20: 0 | AW20: 0 | AX20: 904080 | AY20: 0 | AZ20: 0 | BA20: 0 | BB20: 904080 | BC20: 0 | BE20: 1330400 | BH20: 負担金 | BI20: 1330400 | BJ20: 904080 | BK20: 426320
A21: =科目細分類表!P4 -> - | D21: =科目細分類表!P5 -> 施設費 | H21: 38393 | I21: 0 | J21: 38393 | K21: 0 | L21: 50940 | M21: 0 | N21: 89333 | O21: 0 | P21: 44762 | Q21: 0 | R21: 134095 | S21: 0 | T21: 38066 | U21: 0 | V21: 172161 | W21: 0 | X21: 0 | Y21: 0 | Z21: 172161 | AA21: 0 | AB21: 0 | AC21: 0 | AD21: 172161 | AE21: 0 | AF21: 0 | AG21: 0 | AH21: 172161 | AI21: 0 | AJ21: 0 | AK21: 0 | AL21: 172161 | AM21: 0 | AN21: 0 | AO21: 0 | AP21: 172161 | AQ21: 0 | AR21: 0 | AS21: 0 | AT21: 172161 | AU21: 0 | AV21: 0 | AW21: 0 | AX21: 172161 | AY21: 0 | AZ21: 0 | BA21: 0 | BB21: 172161 | BC21: 0 | BE21: 1222000 | BH21: 施設費 | BI21: 1222000 | BJ21: 172161 | BK21: 1049839
A22: =科目細分類表!Q4 -> - | D22: =科目細分類表!Q5 -> 積立金 | H22: 0 | I22: 0 | J22: 0 | K22: 0 | L22: 0 | M22: 0 | N22: 0 | O22: 0 | P22: 0 | Q22: 0 | R22: 0 | S22: 0 | T22: 0 | U22: 0 | V22: 0 | W22: 0 | X22: 0 | Y22: 0 | Z22: 0 | AA22: 0 | AB22: 0 | AC22: 0 | AD22: 0 | AE22: 0 | AF22: 0 | AG22: 0 | AH22: 0 | AI22: 0 | AJ22: 0 | AK22: 0 | AL22: 0 | AM22: 0 | AN22: 0 | AO22: 0 | AP22: 0 | AQ22: 0 | AR22: 0 | AS22: 0 | AT22: 0 | AU22: 0 | AV22: 0 | AW22: 0 | AX22: 0 | AY22: 0 | AZ22: 0 | BA22: 0 | BB22: 0 | BC22: 0 | BE22: 400000 | BH22: 積立金 | BI22: 400000 | BJ22: 0 | BK22: 400000
A23: =科目細分類表!R4 -> - | D23: =科目細分類表!R5 -> 雑費 | H23: 104140 | I23: 0 | J23: 104140 | K23: 0 | L23: 17210 | M23: 0 | N23: 121350 | O23: 0 | P23: 12330 | Q23: 0 | R23: 133680 | S23: 0 | T23: 35912 | U23: 0 | V23: 169592 | W23: 0 | X23: 0 | Y23: 0 | Z23: 169592 | AA23: 0 | AB23: 0 | AC23: 0 | AD23: 169592 | AE23: 0 | AF23: 0 | AG23: 0 | AH23: 169592 | AI23: 0 | AJ23: 0 | AK23: 0 | AL23: 169592 | AM23: 0 | AN23: 0 | AO23: 0 | AP23: 169592 | AQ23: 0 | AR23: 0 | AS23: 0 | AT23: 169592 | AU23: 0 | AV23: 0 | AW23: 0 | AX23: 169592 | AY23: 0 | AZ23: 0 | BA23: 0 | BB23: 169592 | BC23: 0 | BE23: 290000 | BH23: 雑費 | BI23: 290000 | BJ23: 169592 | BK23: 120408
C24: 支出の部合計 | F24: =SUM(F22:F23,F21,F20,F19,F18,F17,F15:F16) -> 0 | G24: =SUM(G22:G23,G21,G20,G19,G18,G17,G15:G16) -> 0 | H24: =SUM(H22:H23,H21,H20,H19,H18,H17,H15:H16) -> 354000 | I24: =SUM(I22:I23,I21,I20,I19,I18,I17,I15:I16) -> 0 | J24: 354000 | K24: 0 | L24: =SUM(L22:L23,L21,L20,L19,L18,L17,L15:L16) -> 1284589 | M24: =SUM(M22:M23,M21,M20,M19,M18,M17,M15:M16) -> 0 | N24: 1638589 | O24: 0 | P24: =SUM(P22:P23,P21,P20,P19,P18,P17,P15:P16) -> 419999 | Q24: =SUM(Q22:Q23,Q21,Q20,Q19,Q18,Q17,Q15:Q16) -> 0 | R24: 2058588 | S24: 0 | T24: =SUM(T22:T23,T21,T20,T19,T18,T17,T15:T16) -> 100119 | U24: =SUM(U22:U23,U21,U20,U19,U18,U17,U15:U16) -> 0 | V24: 2158707 | W24: 0 | X24: =SUM(X22:X23,X21,X20,X19,X18,X17,X15:X16) -> 0 | Y24: =SUM(Y22:Y23,Y21,Y20,Y19,Y18,Y17,Y15:Y16) -> 0 | Z24: 2158707 | AA24: 0 | AB24: =SUM(AB22:AB23,AB21,AB20,AB19,AB18,AB17,AB15:AB16) -> 0 | AC24: =SUM(AC22:AC23,AC21,AC20,AC19,AC18,AC17,AC15:AC16) -> 0 | AD24: 2158707 | AE24: 0 | AF24: =SUM(AF22:AF23,AF21,AF20,AF19,AF18,AF17,AF15:AF16) -> 0 | AG24: =SUM(AG22:AG23,AG21,AG20,AG19,AG18,AG17,AG15:AG16) -> 0 | AH24: 2158707 | AI24: 0 | AJ24: =SUM(AJ22:AJ23,AJ21,AJ20,AJ19,AJ18,AJ17,AJ15:AJ16) -> 0 | AK24: =SUM(AK22:AK23,AK21,AK20,AK19,AK18,AK17,AK15:AK16) -> 0 | AL24: 2158707 | AM24: 0 | AN24: =SUM(AN22:AN23,AN21,AN20,AN19,AN18,AN17,AN15:AN16) -> 0 | AO24: =SUM(AO22:AO23,AO21,AO20,AO19,AO18,AO17,AO15:AO16) -> 0 | AP24: 2158707 | AQ24: 0 | AR24: =SUM(AR22:AR23,AR21,AR20,AR19,AR18,AR17,AR15:AR16) -> 0 | AS24: =SUM(AS22:AS23,AS21,AS20,AS19,AS18,AS17,AS15:AS16) -> 0 | AT24: 2158707 | AU24: =AQ24+AS24 -> 0 | AV24: =SUM(AV22:AV23,AV21,AV20,AV19,AV18,AV17,AV15:AV16) -> 0 | AW24: =SUM(AW22:AW23,AW21,AW20,AW19,AW18,AW17,AW15:AW16) -> 0 | AX24: 2158707 | AY24: =AU24+AW24 -> 0 | AZ24: =SUM(AZ22:AZ23,AZ21,AZ20,AZ19,AZ18,AZ17,AZ15:AZ16) -> 0 | BA24: =SUM(BA22:BA23,BA21,BA20,BA19,BA18,BA17,BA15:BA16) -> 0 | BB24: 2158707 | BC24: =AY24+BA24 -> 0 | BE24: =SUM(BE15:BE23) -> 8995400 | BH24: 支出 | BI24: 8995400 | BJ24: 2158707 | BK24: =SUM(BK15:BK23) -> 6836693
C25: 予備費 | F25: 0 | H25: =(I14-H14)-(H24-I24) -> 4775610 | J25: 4775610 | K25: 0 | L25: =(M14-L14)-(L24-M24) -> -1200079 | N25: 3575531 | O25: 0 | P25: =(Q14-P14)-(P24-Q24) -> -80503 | R25: 3495028 | S25: 0 | T25: =(U14-T14)-(T24-U24) -> -79038 | V25: 3415990 | W25: 0 | X25: =(Y14-X14)-(X24-Y24) -> 0 | Z25: 3415990 | AA25: 0 | AB25: =(AC14-AB14)-(AB24-AC24) -> 0 | AD25: 3415990 | AE25: 0 | AF25: =(AG14-AF14)-(AF24-AG24) -> 0 | AH25: 3415990 | AI25: 0 | AJ25: =(AK14-AJ14)-(AJ24-AK24) -> 0 | AL25: 3415990 | AM25: 0 | AN25: =(AO14-AN14)-(AN24-AO24) -> 0 | AP25: 3415990 | AQ25: 0 | AR25: =(AS14-AR14)-(AR24-AS24) -> 0 | AT25: 3415990 | AU25: =AQ25+AS25 -> 0 | AV25: =(AW14-AV14)-(AV24-AW24) -> 0 | AX25: 3415990 | AY25: =AU25+AW25 -> 0 | AZ25: =(BA14-AZ14)-(AZ24-BA24) -> 0 | BB25: 3415990 | BC25: =AY25+BA25 -> 0 | BE25: 1186096 | BH25: =C25 -> 予備費 | BI25: 1186096 | BJ25: 3415990 | BK25: =BJ25-BI25 -> 2229894
C26: 収支合計 | F26: =SUM(F24,F25,F14) -> 0 | G26: =SUM(G24,G25,G14) -> 0 | H26: =SUM(H24,H25,H14) -> 5129610 | I26: =SUM(I24,I25,I14) -> 5129610 | J26: 5129610 | K26: 5129610 | L26: =SUM(L24,L25,L14) -> 84510 | M26: =SUM(M24,M25,M14) -> 84510 | N26: 5214120 | O26: 5214120 | P26: =SUM(P24,P25,P14) -> 339496 | Q26: =SUM(Q24,Q25,Q14) -> 339496 | R26: 5553616 | S26: 5553616 | T26: =SUM(T24,T25,T14) -> 21081 | U26: =SUM(U24,U25,U14) -> 21081 | V26: 5574697 | W26: 5574697 | X26: =SUM(X24,X25,X14) -> 0 | Y26: =SUM(Y24,Y25,Y14) -> 0 | Z26: 5574697 | AA26: 5574697 | AB26: =SUM(AB24,AB25,AB14) -> 0 | AC26: =SUM(AC24,AC25,AC14) -> 0 | AD26: 5574697 | AE26: 5574697 | AF26: =SUM(AF24,AF25,AF14) -> 0 | AG26: =SUM(AG24,AG25,AG14) -> 0 | AH26: 5574697 | AI26: 5574697 | AJ26: =SUM(AJ24,AJ25,AJ14) -> 0 | AK26: =SUM(AK24,AK25,AK14) -> 0 | AL26: 5574697 | AM26: 5574697 | AN26: =SUM(AN24,AN25,AN14) -> 0 | AO26: =SUM(AO24,AO25,AO14) -> 0 | AP26: 5574697 | AQ26: 5574697 | AR26: =SUM(AR24,AR25,AR14) -> 0 | AS26: =SUM(AS24,AS25,AS14) -> 0 | AT26: 5574697 | AU26: =AQ26+AS26 -> 5574697 | AV26: =SUM(AV24,AV25,AV14) -> 0 | AW26: =SUM(AW24,AW25,AW14) -> 0 | AX26: 5574697 | AY26: =AU26+AW26 -> 5574697 | AZ26: =SUM(AZ24,AZ25,AZ14) -> 0 | BA26: =SUM(BA24,BA25,BA14) -> 0 | BB26: 5574697 | BC26: =AY26+BA26 -> 5574697 | BE26: =BE14+BE24+BE25 -> 10181496 | BF26: =BE10+BF14 -> 10181496 | BH26: 収支 | BI26: =BE26-BF26 -> 0 | BJ26: =BB26-BC26 -> 0
A27: =科目細分類表!S4 -> - | D27: その他 | H27: 547 | I27: 547 | J27: =F27+H27-I27 -> 0 | L27: 0 | M27: 0 | N27: =J27+L27-M27 -> 0 | P27: 0 | Q27: 0 | R27: =N27+P27-Q27 -> 0 | T27: 0 | U27: 0 | V27: =R27+T27-U27 -> 0 | X27: 0 | Y27: 0 | Z27: =V27+X27-Y27 -> 0 | AB27: 0 | AC27: 0 | AD27: =Z27+AB27-AC27 -> 0 | AF27: 0 | AG27: 0 | AH27: =AD27+AF27-AG27 -> 0 | AJ27: 0 | AK27: 0 | AL27: =AH27+AJ27-AK27 -> 0 | AN27: 0 | AO27: 0 | AP27: =AL27+AN27-AO27 -> 0 | AR27: 0 | AS27: 0 | AT27: =AP27+AR27-AS27 -> 0 | AV27: 0 | AW27: 0 | AX27: =AT27+AV27-AW27 -> 0 | AZ27: 0 | BA27: 0 | BB27: =AX27+AZ27-BA27 -> 0
C28: 細分類
C29: 収入 | D29: =D11 -> 会費 | F29: =SUM(F30,F35) -> 0 | G29: =SUM(G30,G35) -> 0 | H29: =H11 -> 0 | I29: =I11 -> 5129610 | J29: =F29+H29 -> 0 | K29: =G29+I29 -> 5129610 | L29: =L11 -> 0 | M29: =M11 -> 84510 | N29: =J29+L29 -> 0 | O29: =K29+M29 -> 5214120 | P29: =P11 -> 0 | Q29: =Q11 -> 25376 | R29: =N29+P29 -> 0 | S29: =O29+Q29 -> 5239496 | T29: =T11 -> 0 | U29: =U11 -> 12786 | V29: =R29+T29 -> 0 | W29: =S29+U29 -> 5252282 | X29: =X11 -> 0 | Y29: =Y11 -> 0 | Z29: =V29+X29 -> 0 | AA29: =W29+Y29 -> 5252282 | AB29: =AB11 -> 0 | AC29: =AC11 -> 0 | AD29: =Z29+AB29 -> 0 | AE29: =AA29+AC29 -> 5252282 | AF29: =AF11 -> 0 | AG29: =AG11 -> 0 | AH29: =AD29+AF29 -> 0 | AI29: =AE29+AG29 -> 5252282 | AJ29: =AJ11 -> 0 | AK29: =AK11 -> 0 | AL29: =AH29+AJ29 -> 0 | AM29: =AI29+AK29 -> 5252282 | AN29: =AN11 -> 0 | AO29: =AO11 -> 0 | AP29: =AL29+AN29 -> 0 | AQ29: =AM29+AO29 -> 5252282 | AR29: =AR11 -> 0 | AS29: =AS11 -> 0 | AT29: =AP29+AR29 -> 0 | AU29: =AQ29+AS29 -> 5252282 | AV29: =AV11 -> 0 | AW29: =AW11 -> 0 | AX29: =AT29+AV29 -> 0 | AY29: =AU29+AW29 -> 5252282 | AZ29: =AZ11 -> 0 | BA29: =BA11 -> 0 | BB29: =AX29+AZ29 -> 0 | BC29: =AY29+BA29 -> 5252282 | BF29: =BF11 -> 5512000
E30: 自治会費 | F30: =SUM(F31:F34) -> 0 | G30: =SUM(G31:G34) -> 0 | H30: =SUM(H31:H34) -> 0 | I30: =SUM(I31:I34) -> 4851610 | J30: =SUM(J31:J34) -> 0 | K30: =G30+I30 -> 4851610 | L30: =SUM(L31:L34) -> 0 | M30: =SUM(M31:M34) -> 76510 | N30: =SUM(N31:N34) -> 0 | O30: 4928120 | P30: 0 | Q30: 19076 | R30: 0 | S30: 4947196 | T30: 0 | U30: 0 | V30: 0 | W30: 4947196 | X30: =SUM(X31:X34) -> 0 | Y30: 0 | Z30: 0 | AA30: 4947196 | AB30: 0 | AC30: 0 | AD30: 0 | AE30: 4947196 | AF30: 0 | AG30: 0 | AH30: 0 | AI30: 4947196 | AJ30: 0 | AK30: 0 | AL30: 0 | AM30: 4947196 | AN30: 0 | AO30: 0 | AP30: 0 | AQ30: 4947196 | AR30: 0 | AS30: 0 | AT30: 0 | AU30: 4947196 | AV30: 0 | AW30: 0 | AX30: 0 | AY30: 4947196 | AZ30: 0 | BA30: 0 | BB30: 0 | BC30: 4947196 | BF30: 5218000
E31: 一般世帯 | G31: 0 | I31: 4415000 | J31: =F31+H31 -> 0 | K31: 4415000 | M31: 7000 | N31: =J31+L31 -> 0 | O31: =K31+M31 -> 4422000 | R31: =N31+P31 -> 0 | S31: =O31+Q31 -> 4422000 | V31: =R31+T31 -> 0 | W31: =S31+U31 -> 4422000 | Z31: =V31+X31 -> 0 | AA31: =W31+Y31 -> 4422000 | AD31: =Z31+AB31 -> 0 | AE31: =AA31+AC31 -> 4422000 | AH31: =AD31+AF31 -> 0 | AI31: =AE31+AG31 -> 4422000 | AL31: =AH31+AJ31 -> 0 | AM31: =AI31+AK31 -> 4422000 | AP31: =AL31+AN31 -> 0 | AQ31: =AM31+AO31 -> 4422000 | AT31: =AP31+AR31 -> 0 | AU31: =AQ31+AS31 -> 4422000 | AX31: =AT31+AV31 -> 0 | AY31: =AU31+AW31 -> 4422000 | BB31: =AX31+AZ31 -> 0 | BC31: =AY31+BA31 -> 4422000 | BF31: 4992000
E32: アパート世帯 | G32: 0 | I32: 429000 | J32: 0 | K32: 429000 | M32: 52250 | N32: 0 | O32: 481250 | R32: 0 | S32: 481250 | V32: 0 | W32: 481250 | Z32: 0 | AA32: 481250 | AD32: 0 | AE32: 481250 | AH32: 0 | AI32: 481250 | AL32: 0 | AM32: 481250 | AP32: 0 | AQ32: 481250 | AT32: 0 | AU32: 481250 | AX32: 0 | AY32: 481250 | BB32: 0 | BC32: 481250 | BF32: 44000
E33: 転入出世帯 | G33: 0 | I33: 1400 | J33: 0 | K33: 1400 | N33: 0 | O33: 1400 | Q33: 7000 | R33: 0 | S33: 8400 | V33: 0 | W33: 8400 | Z33: 0 | AA33: 8400 | AD33: 0 | AE33: 8400 | AH33: 0 | AI33: 8400 | AL33: 0 | AM33: 8400 | AP33: 0 | AQ33: 8400 | AT33: 0 | AU33: 8400 | AX33: 0 | AY33: 8400 | BB33: 0 | BC33: 8400 | BF33: 35000
E34: 月払いアパート | G34: 0 | I34: 6210 | J34: 0 | K34: 6210 | M34: 17260 | N34: 0 | O34: 23470 | Q34: 12076 | R34: 0 | S34: 35546 | V34: 0 | W34: 35546 | Z34: 0 | AA34: 35546 | AD34: 0 | AE34: 35546 | AH34: 0 | AI34: 35546 | AL34: 0 | AM34: 35546 | AP34: 0 | AQ34: 35546 | AT34: 0 | AU34: 35546 | AX34: 0 | AY34: 35546 | BB34: 0 | BC34: 35546 | BF34: 147000
E35: 自治会協力金 | G35: 0 | I35: 278000 | J35: 0 | K35: 278000 | M35: 8000 | N35: 0 | O35: 286000 | Q35: 6300 | R35: 0 | S35: 292300 | V35: 0 | W35: 292300 | Z35: 0 | AA35: 292300 | AD35: 0 | AE35: 292300 | AH35: 0 | AI35: 292300 | AL35: 0 | AM35: 292300 | AP35: 0 | AQ35: 292300 | AT35: 0 | AU35: 292300 | AX35: 0 | AY35: 292300 | BB35: 0 | BC35: 292300 | BF35: 294000
D36: =D12 -> 補助金 | F36: =SUM(F37:F45) -> 0 | G36: =SUM(G37:G45) -> 0 | H36: =H12 -> 0 | I36: =I12 -> 0 | J36: 0 | K36: 0 | L36: =L12 -> 0 | M36: =M12 -> 0 | N36: 0 | O36: 0 | P36: =P12 -> 0 | Q36: =Q12 -> 304320 | R36: 0 | S36: 304320 | T36: =T12 -> 0 | U36: =U12 -> 0 | V36: 0 | W36: 304320 | X36: =X12 -> 0 | Y36: =Y12 -> 0 | Z36: 0 | AA36: 304320 | AB36: =AB12 -> 0 | AC36: =AC12 -> 0 | AD36: 0 | AE36: 304320 | AF36: =AF12 -> 0 | AG36: =AG12 -> 0 | AH36: 0 | AI36: 304320 | AJ36: =AJ12 -> 0 | AK36: =AK12 -> 0 | AL36: 0 | AM36: 304320 | AN36: =AN12 -> 0 | AO36: =AO12 -> 0 | AP36: 0 | AQ36: 304320 | AR36: =AR12 -> 0 | AS36: =AS12 -> 0 | AT36: 0 | AU36: 304320 | AV36: =AV12 -> 0 | AW36: =AW12 -> 0 | AX36: 0 | AY36: 304320 | AZ36: =AZ12 -> 0 | BA36: =BA12 -> 0 | BB36: 0 | BC36: 304320 | BF36: =BF12 -> 1715100
E37: 行政連絡業務費 | G37: 0 | J37: 0 | K37: 0 | N37: 0 | O37: 0 | Q37: 304320 | R37: 0 | S37: 304320 | V37: 0 | W37: 304320 | Z37: 0 | AA37: 304320 | AD37: 0 | AE37: 304320 | AH37: 0 | AI37: 304320 | AL37: 0 | AM37: 304320 | AP37: 0 | AQ37: 304320 | AT37: 0 | AU37: 304320 | AX37: 0 | AY37: 304320 | BB37: 0 | BC37: 304320 | BF37: 614400
E38: 敬老会開催費 | G38: 0 | J38: 0 | K38: 0 | N38: 0 | O38: 0 | R38: 0 | S38: 0 | V38: 0 | W38: 0 | Z38: 0 | AA38: 0 | AD38: 0 | AE38: 0 | AH38: 0 | AI38: 0 | AL38: 0 | AM38: 0 | AP38: 0 | AQ38: 0 | AT38: 0 | AU38: 0 | AX38: 0 | AY38: 0 | BB38: 0 | BC38: 0 | BF38: 500000
E39: 地域福祉費 | F39: =SUM(F40:F40) -> 0 | G39: 0 | J39: 0 | K39: 0 | N39: 0 | O39: 0 | R39: 0 | S39: 0 | V39: 0 | W39: 0 | Z39: 0 | AA39: 0 | AD39: 0 | AE39: 0 | AH39: 0 | AI39: 0 | AL39: 0 | AM39: 0 | AP39: 0 | AQ39: 0 | AT39: 0 | AU39: 0 | AX39: 0 | AY39: 0 | BB39: 0 | BC39: 0 | BF39: 190000
E40: 自主防災費 | G40: 0 | J40: 0 | K40: 0 | N40: 0 | O40: 0 | R40: 0 | S40: 0 | V40: 0 | W40: 0 | Z40: 0 | AA40: 0 | AD40: 0 | AE40: 0 | AH40: 0 | AI40: 0 | AL40: 0 | AM40: 0 | AP40: 0 | AQ40: 0 | AT40: 0 | AU40: 0 | AX40: 0 | AY40: 0 | BB40: 0 | BC40: 0 | BF40: 85000
E41: 防犯灯設置費 | G41: 0 | J41: 0 | K41: 0 | N41: 0 | O41: 0 | R41: 0 | S41: 0 | V41: 0 | W41: 0 | Z41: 0 | AA41: 0 | AD41: 0 | AE41: 0 | AH41: 0 | AI41: 0 | AL41: 0 | AM41: 0 | AP41: 0 | AQ41: 0 | AT41: 0 | AU41: 0 | AX41: 0 | AY41: 0 | BB41: 0 | BC41: 0 | BF41: 60000
E42: 防犯灯維持費 | G42: 0 | J42: 0 | K42: 0 | N42: 0 | O42: 0 | R42: 0 | S42: 0 | V42: 0 | W42: 0 | Z42: 0 | AA42: 0 | AD42: 0 | AE42: 0 | AH42: 0 | AI42: 0 | AL42: 0 | AM42: 0 | AP42: 0 | AQ42: 0 | AT42: 0 | AU42: 0 | AX42: 0 | AY42: 0 | BB42: 0 | BC42: 0 | BF42: 155000
E43: 赤十字社公費金 | G43: 0 | J43: 0 | K43: 0 | N43: 0 | O43: 0 | R43: 0 | S43: 0 | V43: 0 | W43: 0 | Z43: 0 | AA43: 0 | AD43: 0 | AE43: 0 | AH43: 0 | AI43: 0 | AL43: 0 | AM43: 0 | AP43: 0 | AQ43: 0 | AT43: 0 | AU43: 0 | AX43: 0 | AY43: 0 | BB43: 0 | BC43: 0 | BF43: 17500
E44: 環境美化協力金 | G44: 0 | J44: 0 | K44: 0 | N44: 0 | O44: 0 | R44: 0 | S44: 0 | V44: 0 | W44: 0 | Z44: 0 | AA44: 0 | AD44: 0 | AE44: 0 | AH44: 0 | AI44: 0 | AL44: 0 | AM44: 0 | AP44: 0 | AQ44: 0 | AT44: 0 | AU44: 0 | AX44: 0 | AY44: 0 | BB44: 0 | BC44: 0 | BF44: 51200
E45: 河川愛護補助金 | G45: 0 | J45: 0 | K45: 0 | N45: 0 | O45: 0 | R45: 0 | S45: 0 | V45: 0 | W45: 0 | Z45: 0 | AA45: 0 | AD45: 0 | AE45: 0 | AH45: 0 | AI45: 0 | AL45: 0 | AM45: 0 | AP45: 0 | AQ45: 0 | AT45: 0 | AU45: 0 | AX45: 0 | AY45: 0 | BB45: 0 | BC45: 0 | BF45: 42000
D46: =D13 -> 雑収入 | F46: =SUM(F47:F49) -> 0 | G46: =SUM(G47:G49) -> 0 | H46: =H13 -> 0 | I46: =I13 -> 0 | J46: 0 | K46: 0 | L46: =L13 -> 0 | M46: =M13 -> 0 | N46: 0 | O46: 0 | P46: =P13 -> 0 | Q46: =Q13 -> 9800 | R46: 0 | S46: 9800 | T46: =T13 -> 0 | U46: =U13 -> 8295 | V46: 0 | W46: 18095 | X46: =X13 -> 0 | Y46: =Y13 -> 0 | Z46: 0 | AA46: 18095 | AB46: =AB13 -> 0 | AC46: =AC13 -> 0 | AD46: 0 | AE46: 18095 | AF46: =AF13 -> 0 | AG46: =AG13 -> 0 | AH46: 0 | AI46: 18095 | AJ46: =AJ13 -> 0 | AK46: =AK13 -> 0 | AL46: 0 | AM46: 18095 | AN46: =AN13 -> 0 | AO46: =AO13 -> 0 | AP46: 0 | AQ46: 18095 | AR46: =AR13 -> 0 | AS46: =AS13 -> 0 | AT46: 0 | AU46: 18095 | AV46: =AV13 -> 0 | AW46: =AW13 -> 0 | AX46: 0 | AY46: 18095 | AZ46: =AZ13 -> 0 | BA46: =BA13 -> 0 | BB46: 0 | BC46: 18095 | BF46: =BF13 -> 1029000
E47: 公民館使用料 | G47: 0 | J47: 0 | K47: 0 | N47: 0 | O47: 0 | R47: 0 | S47: 0 | V47: 0 | W47: 0 | Z47: 0 | AA47: 0 | AD47: 0 | AE47: 0 | AH47: 0 | AI47: 0 | AL47: 0 | AM47: 0 | AP47: 0 | AQ47: 0 | AT47: 0 | AU47: 0 | AX47: 0 | AY47: 0 | BB47: 0 | BC47: 0 | BF47: 18000
E48: 納涼祭祭券売上 | G48: 0 | J48: 0 | K48: 0 | N48: 0 | O48: 0 | R48: 0 | S48: 0 | V48: 0 | W48: 0 | Z48: 0 | AA48: 0 | AD48: 0 | AE48: 0 | AH48: 0 | AI48: 0 | AL48: 0 | AM48: 0 | AP48: 0 | AQ48: 0 | AT48: 0 | AU48: 0 | AX48: 0 | AY48: 0 | BB48: 0 | BC48: 0 | BF48: 1000000
E49: その他 | G49: 0 | J49: 0 | K49: 0 | N49: 0 | O49: 0 | Q49: 9800 | R49: 0 | S49: 9800 | V49: 0 | W49: 9800 | Z49: 0 | AA49: 9800 | AD49: 0 | AE49: 9800 | AH49: 0 | AI49: 9800 | AL49: 0 | AM49: 9800 | AP49: 0 | AQ49: 9800 | AT49: 0 | AU49: 9800 | AX49: 0 | AY49: 9800 | BB49: 0 | BC49: 9800 | BF49: 11000
C50: 収入の部合計 | F50: =SUM(F46,F36,F29) -> 0 | G50: =SUM(G46,G36,G29) -> 0 | H50: =SUM(H46,H36,H29) -> 0 | I50: =SUM(I46,I36,I29) -> 5129610 | J50: 0 | K50: 5129610 | L50: =SUM(L46,L36,L29) -> 0 | M50: =SUM(M46,M36,M29) -> 84510 | N50: 0 | O50: 5214120 | P50: =SUM(P46,P36,P29) -> 0 | Q50: =SUM(Q46,Q36,Q29) -> 339496 | R50: 0 | S50: 5553616 | T50: =SUM(T46,T36,T29) -> 0 | U50: =SUM(U46,U36,U29) -> 21081 | V50: 0 | W50: 5574697 | X50: =SUM(X46,X36,X29) -> 0 | Y50: =SUM(Y46,Y36,Y29) -> 0 | Z50: 0 | AA50: 5574697 | AB50: =SUM(AB46,AB36,AB29) -> 0 | AC50: =SUM(AC46,AC36,AC29) -> 0 | AD50: 0 | AE50: 5574697 | AF50: =SUM(AF46,AF36,AF29) -> 0 | AG50: =SUM(AG46,AG36,AG29) -> 0 | AH50: 0 | AI50: 5574697 | AJ50: =SUM(AJ46,AJ36,AJ29) -> 0 | AK50: =SUM(AK46,AK36,AK29) -> 0 | AL50: 0 | AM50: 5574697 | AN50: =SUM(AN46,AN36,AN29) -> 0 | AO50: =SUM(AO46,AO36,AO29) -> 0 | AP50: 0 | AQ50: 5574697 | AR50: =SUM(AR46,AR36,AR29) -> 0 | AS50: =SUM(AS46,AS36,AS29) -> 0 | AT50: 0 | AU50: 5574697 | AV50: =SUM(AV46,AV36,AV29) -> 0 | AW50: =SUM(AW46,AW36,AW29) -> 0 | AX50: 0 | AY50: 5574697 | AZ50: =SUM(AZ46,AZ36,AZ29) -> 0 | BA50: =SUM(BA46,BA36,BA29) -> 0 | BB50: 0 | BC50: 5574697 | BF50: =BF29+BF36+BF46 -> 8256100
C51: 支出 | D51: =D15 -> 事務費 | F51: 0 | H51: =H15 -> 123467 | I51: =I15 -> 0 | J51: 123467 | K51: 0 | L51: =L15 -> 8819 | M51: =M15 -> 0 | N51: 132286 | O51: 0 | P51: =P15 -> 127 | Q51: =Q15 -> 0 | R51: 132413 | S51: 0 | T51: =T15 -> 941 | U51: =U15 -> 0 | V51: 133354 | W51: 0 | X51: =X15 -> 0 | Y51: =Y15 -> 0 | Z51: 133354 | AA51: 0 | AB51: =AB15 -> 0 | AC51: =AC15 -> 0 | AD51: 133354 | AE51: 0 | AF51: =AF15 -> 0 | AG51: =AG15 -> 0 | AH51: 133354 | AI51: 0 | AJ51: =AJ15 -> 0 | AK51: =AK15 -> 0 | AL51: 133354 | AM51: 0 | AN51: =AN15 -> 0 | AO51: =AO15 -> 0 | AP51: 133354 | AQ51: 0 | AR51: =AR15 -> 0 | AS51: =AS15 -> 0 | AT51: 133354 | AU51: 0 | AV51: =AV15 -> 0 | AW51: =AW15 -> 0 | AX51: 133354 | AY51: 0 | AZ51: =AZ15 -> 0 | BA51: =BA15 -> 0 | BB51: 133354 | BC51: 0 | BE51: =BE15 -> 180000
D52: =D16 -> 会議費 | F52: =SUM(F53:F56) -> 0 | G52: =SUM(G53:G56) -> 0 | H52: =H16 -> 0 | I52: =I16 -> 0 | J52: 0 | K52: 0 | L52: =L16 -> 0 | M52: =M16 -> 0 | N52: 0 | O52: 0 | P52: =P16 -> 0 | Q52: =Q16 -> 0 | R52: 0 | S52: 0 | T52: =T16 -> 0 | U52: =U16 -> 0 | V52: 0 | W52: 0 | X52: =X16 -> 0 | Y52: =Y16 -> 0 | Z52: 0 | AA52: 0 | AB52: =AB16 -> 0 | AC52: =AC16 -> 0 | AD52: 0 | AE52: 0 | AF52: =AF16 -> 0 | AG52: =AG16 -> 0 | AH52: 0 | AI52: 0 | AJ52: =AJ16 -> 0 | AK52: =AK16 -> 0 | AL52: 0 | AM52: 0 | AN52: =AN16 -> 0 | AO52: =AO16 -> 0 | AP52: 0 | AQ52: 0 | AR52: =AR16 -> 0 | AS52: =AS16 -> 0 | AT52: 0 | AU52: 0 | AV52: =AV16 -> 0 | AW52: =AW16 -> 0 | AX52: 0 | AY52: 0 | AZ52: =AZ16 -> 0 | BA52: =BA16 -> 0 | BB52: 0 | BC52: 0 | BE52: =BE16 -> 97000
E53: 新旧三役引継 | F53: 0 | J53: 0 | K53: 0 | N53: 0 | O53: 0 | R53: 0 | S53: 0 | V53: 0 | W53: 0 | Z53: 0 | AA53: 0 | AD53: 0 | AE53: 0 | AH53: 0 | AI53: 0 | AL53: 0 | AM53: 0 | AP53: 0 | AQ53: 0 | AT53: 0 | AU53: 0 | AX53: 0 | AY53: 0 | BB53: 0 | BC53: 0 | BE53: 25000
E54: 新旧役員引継 | F54: 0 | J54: 0 | K54: 0 | N54: 0 | O54: 0 | R54: 0 | S54: 0 | V54: 0 | W54: 0 | Z54: 0 | AA54: 0 | AD54: 0 | AE54: 0 | AH54: 0 | AI54: 0 | AL54: 0 | AM54: 0 | AP54: 0 | AQ54: 0 | AT54: 0 | AU54: 0 | AX54: 0 | AY54: 0 | BB54: 0 | BC54: 0 | BE54: 40000
E55: 会計監査会 | F55: 0 | J55: 0 | K55: 0 | N55: 0 | O55: 0 | R55: 0 | S55: 0 | V55: 0 | W55: 0 | Z55: 0 | AA55: 0 | AD55: 0 | AE55: 0 | AH55: 0 | AI55: 0 | AL55: 0 | AM55: 0 | AP55: 0 | AQ55: 0 | AT55: 0 | AU55: 0 | AX55: 0 | AY55: 0 | BB55: 0 | BC55: 0 | BE55: 10000
E56: 班長会・全体部会・代議員会・諮問委員会 | F56: 0 | J56: 0 | K56: 0 | N56: 0 | O56: 0 | R56: 0 | S56: 0 | V56: 0 | W56: 0 | Z56: 0 | AA56: 0 | AD56: 0 | AE56: 0 | AH56: 0 | AI56: 0 | AL56: 0 | AM56: 0 | AP56: 0 | AQ56: 0 | AT56: 0 | AU56: 0 | AX56: 0 | AY56: 0 | BB56: 0 | BC56: 0 | BE56: 22000
D57: =D17 -> 役員費 | F57: =SUM(F58:F60) -> 0 | G57: =SUM(G58:G60) -> 0 | H57: =H17 -> 0 | I57: =I17 -> 0 | J57: 0 | K57: 0 | L57: =L17 -> 0 | M57: =M17 -> 0 | N57: 0 | O57: 0 | P57: =P17 -> 0 | Q57: =Q17 -> 0 | R57: 0 | S57: 0 | T57: =T17 -> 0 | U57: =U17 -> 0 | V57: 0 | W57: 0 | X57: =X17 -> 0 | Y57: =Y17 -> 0 | Z57: 0 | AA57: 0 | AB57: =AB17 -> 0 | AC57: =AC17 -> 0 | AD57: 0 | AE57: 0 | AF57: =AF17 -> 0 | AG57: =AG17 -> 0 | AH57: 0 | AI57: 0 | AJ57: =AJ17 -> 0 | AK57: =AK17 -> 0 | AL57: 0 | AM57: 0 | AN57: =AN17 -> 0 | AO57: =AO17 -> 0 | AP57: 0 | AQ57: 0 | AR57: =AR17 -> 0 | AS57: =AS17 -> 0 | AT57: 0 | AU57: 0 | AV57: =AV17 -> 0 | AW57: =AW17 -> 0 | AX57: 0 | AY57: 0 | AZ57: =AZ17 -> 0 | BA57: =BA17 -> 0 | BB57: 0 | BC57: 0 | BE57: =BE17 -> 940000
E58: 役員研修費 | F58: 0 | J58: 0 | K58: 0 | N58: 0 | O58: 0 | R58: 0 | S58: 0 | V58: 0 | W58: 0 | Z58: 0 | AA58: 0 | AD58: 0 | AE58: 0 | AH58: 0 | AI58: 0 | AL58: 0 | AM58: 0 | AP58: 0 | AQ58: 0 | AT58: 0 | AU58: 0 | AX58: 0 | AY58: 0 | BB58: 0 | BC58: 0 | BE58: 300000
E59: 三役交際費 | F59: 0 | J59: 0 | K59: 0 | N59: 0 | O59: 0 | R59: 0 | S59: 0 | V59: 0 | W59: 0 | Z59: 0 | AA59: 0 | AD59: 0 | AE59: 0 | AH59: 0 | AI59: 0 | AL59: 0 | AM59: 0 | AP59: 0 | AQ59: 0 | AT59: 0 | AU59: 0 | AX59: 0 | AY59: 0 | BB59: 0 | BC59: 0 | BE59: 60000
E60: 業務活動費 | F60: 0 | J60: 0 | K60: 0 | N60: 0 | O60: 0 | R60: 0 | S60: 0 | V60: 0 | W60: 0 | Z60: 0 | AA60: 0 | AD60: 0 | AE60: 0 | AH60: 0 | AI60: 0 | AL60: 0 | AM60: 0 | AP60: 0 | AQ60: 0 | AT60: 0 | AU60: 0 | AX60: 0 | AY60: 0 | BB60: 0 | BC60: 0 | BE60: 580000
D61: =D18 -> 事業費 | F61: =SUM(F62:F69) -> 0 | G61: =SUM(G62:G69) -> 0 | H61: =H18 -> 0 | I61: =I18 -> 0 | J61: 0 | K61: 0 | L61: =L18 -> 14520 | M61: =M18 -> 0 | N61: 14520 | O61: 0 | P61: =P18 -> 0 | Q61: =Q18 -> 0 | R61: 14520 | S61: 0 | T61: =T18 -> 0 | U61: =U18 -> 0 | V61: 14520 | W61: 0 | X61: =X18 -> 0 | Y61: =Y18 -> 0 | Z61: 14520 | AA61: 0 | AB61: =AB18 -> 0 | AC61: =AC18 -> 0 | AD61: 14520 | AE61: 0 | AF61: =AF18 -> 0 | AG61: =AG18 -> 0 | AH61: 14520 | AI61: 0 | AJ61: =AJ18 -> 0 | AK61: =AK18 -> 0 | AL61: 14520 | AM61: 0 | AN61: =AN18 -> 0 | AO61: =AO18 -> 0 | AP61: 14520 | AQ61: 0 | AR61: =AR18 -> 0 | AS61: =AS18 -> 0 | AT61: 14520 | AU61: 0 | AV61: =AV18 -> 0 | AW61: =AW18 -> 0 | AX61: 14520 | AY61: 0 | AZ61: =AZ18 -> 0 | BA61: =BA18 -> 0 | BB61: 14520 | BC61: 0 | BE61: =BE18 -> 3751000
E62: 敬老会費 | F62: 0 | J62: 0 | K62: 0 | N62: 0 | O62: 0 | R62: 0 | S62: 0 | V62: 0 | W62: 0 | Z62: 0 | AA62: 0 | AD62: 0 | AE62: 0 | AH62: 0 | AI62: 0 | AL62: 0 | AM62: 0 | AP62: 0 | AQ62: 0 | AT62: 0 | AU62: 0 | AX62: 0 | AY62: 0 | BB62: 0 | BC62: 0 | BE62: 500000
E63: 地域福祉費 | F63: 0 | J63: 0 | K63: 0 | N63: 0 | O63: 0 | R63: 0 | S63: 0 | V63: 0 | W63: 0 | Z63: 0 | AA63: 0 | AD63: 0 | AE63: 0 | AH63: 0 | AI63: 0 | AL63: 0 | AM63: 0 | AP63: 0 | AQ63: 0 | AT63: 0 | AU63: 0 | AX63: 0 | AY63: 0 | BB63: 0 | BC63: 0 | BE63: 261000
E64: 自主防災費 | F64: 0 | J64: 0 | K64: 0 | L64: 14520 | N64: 14520 | O64: 0 | R64: 14520 | S64: 0 | V64: 14520 | W64: 0 | Z64: 14520 | AA64: 0 | AD64: 14520 | AE64: 0 | AH64: 14520 | AI64: 0 | AL64: 14520 | AM64: 0 | AP64: 14520 | AQ64: 0 | AT64: 14520 | AU64: 0 | AX64: 14520 | AY64: 0 | BB64: 14520 | BC64: 0 | BE64: 140000
E65: 祭事費（納涼祭） | F65: 0 | J65: 0 | K65: 0 | N65: 0 | O65: 0 | R65: 0 | S65: 0 | V65: 0 | W65: 0 | Z65: 0 | AA65: 0 | AD65: 0 | AE65: 0 | AH65: 0 | AI65: 0 | AL65: 0 | AM65: 0 | AP65: 0 | AQ65: 0 | AT65: 0 | AU65: 0 | AX65: 0 | AY65: 0 | BB65: 0 | BC65: 0 | BE65: 2575000
E66: 戦没者慰霊祭費 | F66: 0 | J66: 0 | K66: 0 | N66: 0 | O66: 0 | R66: 0 | S66: 0 | V66: 0 | W66: 0 | Z66: 0 | AA66: 0 | AD66: 0 | AE66: 0 | AH66: 0 | AI66: 0 | AL66: 0 | AM66: 0 | AP66: 0 | AQ66: 0 | AT66: 0 | AU66: 0 | AX66: 0 | AY66: 0 | BB66: 0 | BC66: 0 | BE66: 100000
E67: 交通教室費 | F67: 0 | J67: 0 | K67: 0 | N67: 0 | O67: 0 | R67: 0 | S67: 0 | V67: 0 | W67: 0 | Z67: 0 | AA67: 0 | AD67: 0 | AE67: 0 | AH67: 0 | AI67: 0 | AL67: 0 | AM67: 0 | AP67: 0 | AQ67: 0 | AT67: 0 | AU67: 0 | AX67: 0 | AY67: 0 | BB67: 0 | BC67: 0 | BE67: 30000
E68: 土地借用料 | F68: 0 | J68: 0 | K68: 0 | N68: 0 | O68: 0 | R68: 0 | S68: 0 | V68: 0 | W68: 0 | Z68: 0 | AA68: 0 | AD68: 0 | AE68: 0 | AH68: 0 | AI68: 0 | AL68: 0 | AM68: 0 | AP68: 0 | AQ68: 0 | AT68: 0 | AU68: 0 | AX68: 0 | AY68: 0 | BB68: 0 | BC68: 0 | BE68: 36000
E69: 環境整備費 | F69: 0 | J69: 0 | K69: 0 | N69: 0 | O69: 0 | R69: 0 | S69: 0 | V69: 0 | W69: 0 | Z69: 0 | AA69: 0 | AD69: 0 | AE69: 0 | AH69: 0 | AI69: 0 | AL69: 0 | AM69: 0 | AP69: 0 | AQ69: 0 | AT69: 0 | AU69: 0 | AX69: 0 | AY69: 0 | BB69: 0 | BC69: 0 | BE69: 210000
D70: =D19 -> 助成金 | F70: =SUM(F71:F75) -> 0 | G70: =SUM(G71:G75) -> 0 | H70: =H19 -> 0 | I70: =I19 -> 0 | J70: 0 | K70: 0 | L70: =L19 -> 765000 | M70: =M19 -> 0 | N70: 765000 | O70: 0 | P70: =P19 -> 0 | Q70: =Q19 -> 0 | R70: 765000 | S70: 0 | T70: =T19 -> 0 | U70: =U19 -> 0 | V70: 765000 | W70: 0 | X70: =X19 -> 0 | Y70: =Y19 -> 0 | Z70: 765000 | AA70: 0 | AB70: =AB19 -> 0 | AC70: =AC19 -> 0 | AD70: 765000 | AE70: 0 | AF70: =AF19 -> 0 | AG70: =AG19 -> 0 | AH70: 765000 | AI70: 0 | AJ70: =AJ19 -> 0 | AK70: =AK19 -> 0 | AL70: 765000 | AM70: 0 | AN70: =AN19 -> 0 | AO70: =AO19 -> 0 | AP70: 765000 | AQ70: 0 | AR70: =AR19 -> 0 | AS70: =AS19 -> 0 | AT70: 765000 | AU70: 0 | AV70: =AV19 -> 0 | AW70: =AW19 -> 0 | AX70: 765000 | AY70: 0 | AZ70: =AZ19 -> 0 | BA70: =BA19 -> 0 | BB70: 765000 | BC70: 0 | BE70: =BE19 -> 785000
E71: AA会助成金 | F71: 0 | J71: 0 | K71: 0 | L71: 180000 | N71: 180000 | O71: 0 | R71: 180000 | S71: 0 | V71: 180000 | W71: 0 | Z71: 180000 | AA71: 0 | AD71: 180000 | AE71: 0 | AH71: 180000 | AI71: 0 | AL71: 180000 | AM71: 0 | AP71: 180000 | AQ71: 0 | AT71: 180000 | AU71: 0 | AX71: 180000 | AY71: 0 | BB71: 180000 | BC71: 0 | BE71: 180000
E72: BB部助成金 | F72: 0 | J72: 0 | K72: 0 | L72: 155000 | N72: 155000 | O72: 0 | R72: 155000 | S72: 0 | V72: 155000 | W72: 0 | Z72: 155000 | AA72: 0 | AD72: 155000 | AE72: 0 | AH72: 155000 | AI72: 0 | AL72: 155000 | AM72: 0 | AP72: 155000 | AQ72: 0 | AT72: 155000 | AU72: 0 | AX72: 155000 | AY72: 0 | BB72: 155000 | BC72: 0 | BE72: =155000+20000 -> 175000
E73: CC会助成金 | F73: 0 | J73: 0 | K73: 0 | L73: 180000 | N73: 180000 | O73: 0 | R73: 180000 | S73: 0 | V73: 180000 | W73: 0 | Z73: 180000 | AA73: 0 | AD73: 180000 | AE73: 0 | AH73: 180000 | AI73: 0 | AL73: 180000 | AM73: 0 | AP73: 180000 | AQ73: 0 | AT73: 180000 | AU73: 0 | AX73: 180000 | AY73: 0 | BB73: 180000 | BC73: 0 | BE73: 180000
E74: DD会助成金 | F74: 0 | J74: 0 | K74: 0 | L74: 150000 | N74: 150000 | O74: 0 | R74: 150000 | S74: 0 | V74: 150000 | W74: 0 | Z74: 150000 | AA74: 0 | AD74: 150000 | AE74: 0 | AH74: 150000 | AI74: 0 | AL74: 150000 | AM74: 0 | AP74: 150000 | AQ74: 0 | AT74: 150000 | AU74: 0 | AX74: 150000 | AY74: 0 | BB74: 150000 | BC74: 0 | BE74: 150000
E75: EE会助成金 | F75: 0 | J75: 0 | K75: 0 | L75: 100000 | N75: 100000 | O75: 0 | R75: 100000 | S75: 0 | V75: 100000 | W75: 0 | Z75: 100000 | AA75: 0 | AD75: 100000 | AE75: 0 | AH75: 100000 | AI75: 0 | AL75: 100000 | AM75: 0 | AP75: 100000 | AQ75: 0 | AT75: 100000 | AU75: 0 | AX75: 100000 | AY75: 0 | BB75: 100000 | BC75: 0 | BE75: 100000
D76: =D20 -> 負担金 | F76: =SUM(F77:F94) -> 0 | G76: =SUM(G77:G94) -> 0 | H76: =H20 -> 88000 | I76: =I20 -> 0 | J76: 88000 | K76: 0 | L76: =L20 -> 428100 | M76: =M20 -> 0 | N76: 516100 | O76: 0 | P76: =P20 -> 362780 | Q76: =Q20 -> 0 | R76: 878880 | S76: 0 | T76: =T20 -> 25200 | U76: =U20 -> 0 | V76: 904080 | W76: 0 | X76: =X20 -> 0 | Y76: =Y20 -> 0 | Z76: 904080 | AA76: 0 | AB76: =AB20 -> 0 | AC76: =AC20 -> 0 | AD76: 904080 | AE76: 0 | AF76: =AF20 -> 0 | AG76: =AG20 -> 0 | AH76: 904080 | AI76: 0 | AJ76: =AJ20 -> 0 | AK76: =AK20 -> 0 | AL76: 904080 | AM76: 0 | AN76: =AN20 -> 0 | AO76: =AO20 -> 0 | AP76: 904080 | AQ76: 0 | AR76: =AR20 -> 0 | AS76: =AS20 -> 0 | AT76: 904080 | AU76: 0 | AV76: =AV20 -> 0 | AW76: =AW20 -> 0 | AX76: 904080 | AY76: 0 | AZ76: =AZ20 -> 0 | BA76: =BA20 -> 0 | BB76: 904080 | BC76: 0 | BE76: =BE20 -> 1330400
E77: XX区自治会連合会 | F77: 0 | J77: 0 | K77: 0 | N77: 0 | O77: 0 | P77: 47550 | R77: 47550 | S77: 0 | V77: 47550 | W77: 0 | Z77: 47550 | AA77: 0 | AD77: 47550 | AE77: 0 | AH77: 47550 | AI77: 0 | AL77: 47550 | AM77: 0 | AP77: 47550 | AQ77: 0 | AT77: 47550 | AU77: 0 | AX77: 47550 | AY77: 0 | BB77: 47550 | BC77: 0 | BE77: 96000
E78: XX市自治会連合会 | F78: 0 | J78: 0 | K78: 0 | N78: 0 | O78: 0 | P78: 28530 | R78: 28530 | S78: 0 | V78: 28530 | W78: 0 | Z78: 28530 | AA78: 0 | AD78: 28530 | AE78: 0 | AH78: 28530 | AI78: 0 | AL78: 28530 | AM78: 0 | AP78: 28530 | AQ78: 0 | AT78: 28530 | AU78: 0 | AX78: 28530 | AY78: 0 | BB78: 28530 | BC78: 0 | BE78: 57600
E79: XX地区自治会連合会 | F79: 0 | H79: 63000 | J79: 63000 | K79: 0 | N79: 63000 | O79: 0 | R79: 63000 | S79: 0 | V79: 63000 | W79: 0 | Z79: 63000 | AA79: 0 | AD79: 63000 | AE79: 0 | AH79: 63000 | AI79: 0 | AL79: 63000 | AM79: 0 | AP79: 63000 | AQ79: 0 | AT79: 63000 | AU79: 0 | AX79: 63000 | AY79: 0 | BB79: 63000 | BC79: 0 | BE79: 63000
E80: 広報等仕分料 | F80: 0 | J80: 0 | K80: 0 | N80: 0 | O80: 0 | R80: 0 | S80: 0 | V80: 0 | W80: 0 | Z80: 0 | AA80: 0 | AD80: 0 | AE80: 0 | AH80: 0 | AI80: 0 | AL80: 0 | AM80: 0 | AP80: 0 | AQ80: 0 | AT80: 0 | AU80: 0 | AX80: 0 | AY80: 0 | BB80: 0 | BC80: 0 | BE80: 12000
E81: 自主防災費 | F81: 0 | J81: 0 | K81: 0 | N81: 0 | O81: 0 | P81: 36700 | R81: 36700 | S81: 0 | V81: 36700 | W81: 0 | Z81: 36700 | AA81: 0 | AD81: 36700 | AE81: 0 | AH81: 36700 | AI81: 0 | AL81: 36700 | AM81: 0 | AP81: 36700 | AQ81: 0 | AT81: 36700 | AU81: 0 | AX81: 36700 | AY81: 0 | BB81: 36700 | BC81: 0 | BE81: 36500
E82: 防災員研修費 | F82: 0 | J82: 0 | K82: 0 | N82: 0 | O82: 0 | R82: 0 | S82: 0 | V82: 0 | W82: 0 | Z82: 0 | AA82: 0 | AD82: 0 | AE82: 0 | AH82: 0 | AI82: 0 | AL82: 0 | AM82: 0 | AP82: 0 | AQ82: 0 | AT82: 0 | AU82: 0 | AX82: 0 | AY82: 0 | BB82: 0 | BC82: 0 | BE82: 60000
E83: 自治会長研修費 | F83: 0 | J83: 0 | K83: 0 | N83: 0 | O83: 0 | R83: 0 | S83: 0 | V83: 0 | W83: 0 | Z83: 0 | AA83: 0 | AD83: 0 | AE83: 0 | AH83: 0 | AI83: 0 | AL83: 0 | AM83: 0 | AP83: 0 | AQ83: 0 | AT83: 0 | AU83: 0 | AX83: 0 | AY83: 0 | BB83: 0 | BC83: 0 | BE83: 46000
E84: 手をつなぐ育成会 | F84: 0 | J84: 0 | K84: 0 | N84: 0 | O84: 0 | R84: 0 | S84: 0 | V84: 0 | W84: 0 | Z84: 0 | AA84: 0 | AD84: 0 | AE84: 0 | AH84: 0 | AI84: 0 | AL84: 0 | AM84: 0 | AP84: 0 | AQ84: 0 | AT84: 0 | AU84: 0 | AX84: 0 | AY84: 0 | BB84: 0 | BC84: 0 | BE84: 25200
E85: 社会福祉協議会会費 | F85: 0 | J85: 0 | K85: 0 | N85: 0 | O85: 0 | R85: 0 | S85: 0 | V85: 0 | W85: 0 | Z85: 0 | AA85: 0 | AD85: 0 | AE85: 0 | AH85: 0 | AI85: 0 | AL85: 0 | AM85: 0 | AP85: 0 | AQ85: 0 | AT85: 0 | AU85: 0 | AX85: 0 | AY85: 0 | BB85: 0 | BC85: 0
E86: 北浜東部地区社会福祉協議会 | F86: 0 | K86: 0 | L86: 170100 | N86: 170100 | O86: 0 | R86: 170100 | S86: 0 | V86: 170100 | W86: 0 | Z86: 170100 | AA86: 0 | AD86: 170100 | AE86: 0 | AH86: 170100 | AI86: 0 | AL86: 170100 | AM86: 0 | AP86: 170100 | AQ86: 0 | AT86: 170100 | AU86: 0 | AX86: 170100 | AY86: 0 | BB86: 170100 | BC86: 0 | BE86: 170100
E87: 日本赤十字社 | F87: 0 | J87: 0 | K87: 0 | N87: 0 | O87: 0 | P87: 250000 | R87: 250000 | S87: 0 | V87: 250000 | W87: 0 | Z87: 250000 | AA87: 0 | AD87: 250000 | AE87: 0 | AH87: 250000 | AI87: 0 | AL87: 250000 | AM87: 0 | AP87: 250000 | AQ87: 0 | AT87: 250000 | AU87: 0 | AX87: 250000 | AY87: 0 | BB87: 250000 | BC87: 0 | BE87: 250000
E88: 赤い羽根共同募金 | F88: 0 | J88: 0 | K88: 0 | N88: 0 | O88: 0 | R88: 0 | S88: 0 | V88: 0 | W88: 0 | Z88: 0 | AA88: 0 | AD88: 0 | AE88: 0 | AH88: 0 | AI88: 0 | AL88: 0 | AM88: 0 | AP88: 0 | AQ88: 0 | AT88: 0 | AU88: 0 | AX88: 0 | AY88: 0 | BB88: 0 | BC88: 0 | BE88: 125000
E89: 緑の募金 | F89: 0 | H89: 25000 | J89: 25000 | K89: 0 | N89: 25000 | O89: 0 | R89: 25000 | S89: 0 | V89: 25000 | W89: 0 | Z89: 25000 | AA89: 0 | AD89: 25000 | AE89: 0 | AH89: 25000 | AI89: 0 | AL89: 25000 | AM89: 0 | AP89: 25000 | AQ89: 0 | AT89: 25000 | AU89: 0 | AX89: 25000 | AY89: 0 | BB89: 25000 | BC89: 0 | BE89: 25000
E90: 歳末助け合い募金 | F90: 0 | J90: 0 | K90: 0 | N90: 0 | O90: 0 | R90: 0 | S90: 0 | V90: 0 | W90: 0 | Z90: 0 | AA90: 0 | AD90: 0 | AE90: 0 | AH90: 0 | AI90: 0 | AL90: 0 | AM90: 0 | AP90: 0 | AQ90: 0 | AT90: 0 | AU90: 0 | AX90: 0 | AY90: 0 | BB90: 0 | BC90: 0 | BE90: 100000
E91: 国際交流協会 | F91: 0 | J91: 0 | K91: 0 | L91: 2000 | N91: 2000 | O91: 0 | R91: 2000 | S91: 0 | V91: 2000 | W91: 0 | Z91: 2000 | AA91: 0 | AD91: 2000 | AE91: 0 | AH91: 2000 | AI91: 0 | AL91: 2000 | AM91: 0 | AP91: 2000 | AQ91: 0 | AT91: 2000 | AU91: 0 | AX91: 2000 | AY91: 0 | BB91: 2000 | BC91: 0 | BE91: 2000
E92: XX祭り負担金 | F92: 0 | J92: 0 | K92: 0 | N92: 0 | O92: 0 | R92: 0 | S92: 0 | V92: 0 | W92: 0 | Z92: 0 | AA92: 0 | AD92: 0 | AE92: 0 | AH92: 0 | AI92: 0 | AL92: 0 | AM92: 0 | AP92: 0 | AQ92: 0 | AT92: 0 | AU92: 0 | AX92: 0 | AY92: 0 | BB92: 0 | BC92: 0 | BE92: 6000
E93: 第X防災会 | F93: 0 | J93: 0 | K93: 0 | L93: 252000 | N93: 252000 | O93: 0 | R93: 252000 | S93: 0 | V93: 252000 | W93: 0 | Z93: 252000 | AA93: 0 | AD93: 252000 | AE93: 0 | AH93: 252000 | AI93: 0 | AL93: 252000 | AM93: 0 | AP93: 252000 | AQ93: 0 | AT93: 252000 | AU93: 0 | AX93: 252000 | AY93: 0 | BB93: 252000 | BC93: 0 | BE93: 252000
E94: 明るい社会づくり | F94: 0 | J94: =F94+H94 -> 0 | K94: =G94+I94 -> 0 | L94: 4000 | N94: =J94+L94 -> 4000 | O94: =K94+M94 -> 0 | R94: =N94+P94 -> 4000 | S94: =O94+Q94 -> 0 | V94: =R94+T94 -> 4000 | W94: =S94+U94 -> 0 | Z94: 4000 | AA94: 0 | AD94: 4000 | AE94: 0 | AH94: 4000 | AI94: 0 | AL94: 4000 | AM94: 0 | AP94: 4000 | AQ94: 0 | AT94: 4000 | AU94: 0 | AX94: 4000 | AY94: 0 | BB94: 4000 | BC94: 0 | BE94: 4000
D95: =D21 -> 施設費 | F95: =SUM(F96:F99) -> 0 | G95: =SUM(G96:G99) -> 0 | H95: =H21 -> 38393 | I95: =I21 -> 0 | J95: 38393 | K95: 0 | L95: =L21 -> 50940 | M95: =M21 -> 0 | N95: 89333 | O95: 0 | P95: =P21 -> 44762 | Q95: =Q21 -> 0 | R95: 134095 | S95: 0 | T95: =T21 -> 38066 | U95: =U21 -> 0 | V95: 172161 | W95: 0 | X95: =X21 -> 0 | Y95: =Y21 -> 0 | Z95: =V95+X95 -> 172161 | AA95: =W95+Y95 -> 0 | AB95: =AB21 -> 0 | AC95: =AC21 -> 0 | AD95: =Z95+AB95 -> 172161 | AE95: =AA95+AC95 -> 0 | AF95: =AF21 -> 0 | AG95: =AG21 -> 0 | AH95: =AD95+AF95 -> 172161 | AI95: =AE95+AG95 -> 0 | AJ95: =AJ21 -> 0 | AK95: =AK21 -> 0 | AL95: =AH95+AJ95 -> 172161 | AM95: =AI95+AK95 -> 0 | AN95: =AN21 -> 0 | AO95: =AO21 -> 0 | AP95: =AL95+AN95 -> 172161 | AQ95: =AM95+AO95 -> 0 | AR95: =AR21 -> 0 | AS95: =AS21 -> 0 | AT95: =AP95+AR95 -> 172161 | AU95: =AQ95+AS95 -> 0 | AV95: =AV21 -> 0 | AW95: =AW21 -> 0 | AX95: =AT95+AV95 -> 172161 | AY95: =AU95+AW95 -> 0 | AZ95: =AZ21 -> 0 | BA95: =BA21 -> 0 | BB95: =AX95+AZ95 -> 172161 | BC95: =AY95+BA95 -> 0 | BE95: =BE21 -> 1222000
E96: 防犯灯設置費及びＬＥＤ化工事費 | F96: 0 | J96: 0 | K96: 0 | L96: 11000 | N96: 11000 | O96: 0 | R96: 11000 | S96: 0 | V96: 11000 | W96: 0 | Z96: 11000 | AA96: 0 | AD96: 11000 | AE96: 0 | AH96: 11000 | AI96: 0 | AL96: 11000 | AM96: 0 | AP96: 11000 | AQ96: 0 | AT96: 11000 | AU96: 0 | AX96: 11000 | AY96: 0 | BB96: 11000 | BC96: 0 | BE96: 62000
E97: 防犯灯維持費 | F97: 0 | H97: 12707 | J97: 12707 | K97: 0 | L97: 12669 | N97: 25376 | O97: 0 | P97: 13440 | R97: 38816 | S97: 0 | V97: 38816 | W97: 0 | Z97: 38816 | AA97: 0 | AD97: 38816 | AE97: 0 | AH97: 38816 | AI97: 0 | AL97: 38816 | AM97: 0 | AP97: 38816 | AQ97: 0 | AT97: 38816 | AU97: 0 | AX97: 38816 | AY97: 0 | BB97: 38816 | BC97: 0 | BE97: 150000
E98: 公民館管理費 | F98: 0 | H98: 25686 | J98: 25686 | K98: 0 | L98: 27271 | N98: 52957 | O98: 0 | P98: 31322 | R98: 84279 | S98: 0 | V98: 84279 | W98: 0 | Z98: 84279 | AA98: 0 | AD98: 84279 | AE98: 0 | AH98: 84279 | AI98: 0 | AL98: 84279 | AM98: 0 | AP98: 84279 | AQ98: 0 | AT98: 84279 | AU98: 0 | AX98: 84279 | AY98: 0 | BB98: 84279 | BC98: 0 | BE98: 950000
E99: 運動公園管理費 | F99: 0 | J99: 0 | K99: 0 | N99: 0 | O99: 0 | R99: 0 | S99: 0 | V99: 0 | W99: 0 | Z99: 0 | AA99: 0 | AD99: 0 | AE99: 0 | AH99: 0 | AI99: 0 | AL99: 0 | AM99: 0 | AP99: 0 | AQ99: 0 | AT99: 0 | AU99: 0 | AX99: 0 | AY99: 0 | BB99: 0 | BC99: 0 | BE99: 60000
D100: =D22 -> 積立金 | F100: 0 | H100: =H22 -> 0 | I100: =I22 -> 0 | J100: 0 | K100: 0 | L100: =L22 -> 0 | M100: =M22 -> 0 | N100: 0 | O100: 0 | P100: =P22 -> 0 | Q100: =Q22 -> 0 | R100: 0 | S100: 0 | T100: =T22 -> 0 | U100: =U22 -> 0 | V100: 0 | W100: 0 | X100: =X22 -> 0 | Y100: =Y22 -> 0 | Z100: 0 | AA100: 0 | AB100: =AB22 -> 0 | AC100: =AC22 -> 0 | AD100: 0 | AE100: 0 | AF100: =AF22 -> 0 | AG100: =AG22 -> 0 | AH100: 0 | AI100: 0 | AJ100: =AJ22 -> 0 | AK100: =AK22 -> 0 | AL100: 0 | AM100: 0 | AN100: =AN22 -> 0 | AO100: =AO22 -> 0 | AP100: 0 | AQ100: 0 | AR100: =AR22 -> 0 | AS100: =AS22 -> 0 | AT100: 0 | AU100: 0 | AV100: =AV22 -> 0 | AW100: =AW22 -> 0 | AX100: 0 | AY100: 0 | AZ100: =AZ22 -> 0 | BA100: =BA22 -> 0 | BB100: 0 | BC100: 0 | BE100: =BE22 -> 400000
D101: =D23 -> 雑費 | F101: =SUM(F102:F104) -> 0 | G101: =SUM(G102:G104) -> 0 | H101: =H23 -> 104140 | I101: =I23 -> 0 | J101: 104140 | K101: 0 | L101: =L23 -> 17210 | M101: =M23 -> 0 | N101: 121350 | O101: 0 | P101: =P23 -> 12330 | Q101: =Q23 -> 0 | R101: 133680 | S101: 0 | T101: =T23 -> 35912 | U101: =U23 -> 0 | V101: 169592 | W101: 0 | X101: =X23 -> 0 | Y101: =Y23 -> 0 | Z101: 169592 | AA101: 0 | AB101: =AB23 -> 0 | AC101: =AC23 -> 0 | AD101: 169592 | AE101: 0 | AF101: =AF23 -> 0 | AG101: =AG23 -> 0 | AH101: 169592 | AI101: 0 | AJ101: =AJ23 -> 0 | AK101: =AK23 -> 0 | AL101: 169592 | AM101: 0 | AN101: =AN23 -> 0 | AO101: =AO23 -> 0 | AP101: 169592 | AQ101: 0 | AR101: =AR23 -> 0 | AS101: =AS23 -> 0 | AT101: 169592 | AU101: 0 | AV101: =AV23 -> 0 | AW101: =AW23 -> 0 | AX101: 169592 | AY101: 0 | AZ101: =AZ23 -> 0 | BA101: =BA23 -> 0 | BB101: 169592 | BC101: 0 | BE101: =BE23 -> 290000
E102: 保険料 | F102: 0 | H102: 93720 | J102: 93720 | K102: 0 | N102: 93720 | O102: 0 | R102: 93720 | S102: 0 | V102: 93720 | W102: 0 | Z102: 93720 | AA102: 0 | AD102: 93720 | AE102: 0 | AH102: 93720 | AI102: 0 | AL102: 93720 | AM102: 0 | AP102: 93720 | AQ102: 0 | AT102: 93720 | AU102: 0 | AX102: 93720 | AY102: 0 | BB102: 93720 | BC102: 0 | BE102: 165000
E103: 慶弔費 | F103: 0 | H103: 8000 | J103: 8000 | K103: 0 | L103: 16000 | N103: 24000 | O103: 0 | P103: 12000 | R103: 36000 | S103: 0 | V103: 36000 | W103: 0 | Z103: 36000 | AA103: 0 | AD103: 36000 | AE103: 0 | AH103: 36000 | AI103: 0 | AL103: 36000 | AM103: 0 | AP103: 36000 | AQ103: 0 | AT103: 36000 | AU103: 0 | AX103: 36000 | AY103: 0 | BB103: 36000 | BC103: 0 | BE103: 120000
E104: 振込手数料 | F104: 0 | H104: 2420 | J104: 2420 | K104: 0 | L104: 1210 | N104: 3630 | O104: 0 | P104: 330 | R104: 3960 | S104: 0 | V104: 3960 | W104: 0 | Z104: 3960 | AA104: 0 | AD104: 3960 | AE104: 0 | AH104: 3960 | AI104: 0 | AL104: 3960 | AM104: 0 | AP104: 3960 | AQ104: 0 | AT104: 3960 | AU104: 0 | AX104: 3960 | AY104: 0 | BB104: 3960 | BC104: 0 | BE104: 5000
E105: その他 | J105: 0 | K105: 0 | N105: 0 | O105: 0 | R105: 0 | S105: 0 | V105: 0 | W105: 0 | Z105: 0 | AA105: 0 | AD105: 0 | AE105: 0 | AH105: 0 | AI105: 0 | AL105: 0 | AM105: 0 | AP105: 0 | AQ105: 0 | AT105: 0 | AU105: 0 | AX105: 0 | AY105: 0 | BB105: 0 | BC105: 0
C106: 支出の部合計 | F106: =SUM(F100:F101,F95,F76,F70,F61,F57,F51:F52) -> 0 | G106: =SUM(G100:G101,G95,G76,G70,G61,G57,G51:G52) -> 0 | H106: =SUM(H100:H101,H95,H76,H70,H61,H57,H51:H52) -> 354000 | I106: =SUM(I100:I101,I95,I76,I70,I61,I57,I51:I52) -> 0 | J106: 354000 | K106: 0 | L106: =SUM(L100:L101,L95,L76,L70,L61,L57,L51:L52) -> 1284589 | M106: =SUM(M100:M101,M95,M76,M70,M61,M57,M51:M52) -> 0 | N106: 1638589 | O106: 0 | P106: =SUM(P100:P101,P95,P76,P70,P61,P57,P51:P52) -> 419999 | Q106: =SUM(Q100:Q101,Q95,Q76,Q70,Q61,Q57,Q51:Q52) -> 0 | R106: 2058588 | S106: 0 | T106: =SUM(T100:T101,T95,T76,T70,T61,T57,T51:T52) -> 100119 | U106: =SUM(U100:U101,U95,U76,U70,U61,U57,U51:U52) -> 0 | V106: 2158707 | W106: 0 | X106: =SUM(X100:X101,X95,X76,X70,X61,X57,X51:X52) -> 0 | Y106: =SUM(Y100:Y101,Y95,Y76,Y70,Y61,Y57,Y51:Y52) -> 0 | Z106: 2158707 | AA106: 0 | AB106: =SUM(AB100:AB101,AB95,AB76,AB70,AB61,AB57,AB51:AB52) -> 0 | AC106: =SUM(AC100:AC101,AC95,AC76,AC70,AC61,AC57,AC51:AC52) -> 0 | AD106: 2158707 | AE106: 0 | AF106: =SUM(AF100:AF101,AF95,AF76,AF70,AF61,AF57,AF51:AF52) -> 0 | AG106: =SUM(AG100:AG101,AG95,AG76,AG70,AG61,AG57,AG51:AG52) -> 0 | AH106: 2158707 | AI106: 0 | AJ106: =SUM(AJ100:AJ101,AJ95,AJ76,AJ70,AJ61,AJ57,AJ51:AJ52) -> 0 | AK106: =SUM(AK100:AK101,AK95,AK76,AK70,AK61,AK57,AK51:AK52) -> 0 | AL106: 2158707 | AM106: 0 | AN106: =SUM(AN100:AN101,AN95,AN76,AN70,AN61,AN57,AN51:AN52) -> 0 | AO106: =SUM(AO100:AO101,AO95,AO76,AO70,AO61,AO57,AO51:AO52) -> 0 | AP106: 2158707 | AQ106: 0 | AR106: =SUM(AR100:AR101,AR95,AR76,AR70,AR61,AR57,AR51:AR52) -> 0 | AS106: =SUM(AS100:AS101,AS95,AS76,AS70,AS61,AS57,AS51:AS52) -> 0 | AT106: 2158707 | AU106: 0 | AV106: =SUM(AV100:AV101,AV95,AV76,AV70,AV61,AV57,AV51:AV52) -> 0 | AW106: =SUM(AW100:AW101,AW95,AW76,AW70,AW61,AW57,AW51:AW52) -> 0 | AX106: 2158707 | AY106: 0 | AZ106: =SUM(AZ100:AZ101,AZ95,AZ76,AZ70,AZ61,AZ57,AZ51:AZ52) -> 0 | BA106: =SUM(BA100:BA101,BA95,BA76,BA70,BA61,BA57,BA51:BA52) -> 0 | BB106: 2158707 | BC106: 0 | BE106: =BE24 -> 8995400 | BF106: =BF24 -> 0
C107: 予備費 | F107: 0 | H107: 0 | J107: 0 | K107: 0 | L107: 0 | N107: 0 | O107: 0 | P107: 0 | R107: 0 | S107: 0 | T107: 0 | V107: 0 | W107: 0 | X107: 0 | Z107: 0 | AA107: 0 | AB107: 0 | AD107: 0 | AE107: 0 | AF107: 0 | AH107: 0 | AI107: 0 | AJ107: 0 | AL107: 0 | AM107: 0 | AN107: 0 | AP107: 0 | AQ107: 0 | AR107: 0 | AT107: 0 | AU107: 0 | AV107: 0 | AX107: 0 | AY107: 0 | AZ107: 0 | BB107: 0 | BC107: 0 | BE107: =BE25 -> 1186096
C108: 収支合計 | F108: =SUM(F106,F107,F50) -> 0 | G108: =SUM(G106,G107,G50) -> 0 | H108: =SUM(H106,H107,H50) -> 354000 | I108: =SUM(I106,I107,I50) -> 5129610 | J108: 354000 | K108: 5129610 | L108: =SUM(L106,L107,L50) -> 1284589 | M108: =SUM(M106,M107,M50) -> 84510 | N108: 1638589 | O108: 5214120 | P108: =SUM(P106,P107,P50) -> 419999 | Q108: =SUM(Q106,Q107,Q50) -> 339496 | R108: 2058588 | S108: 5553616 | T108: =SUM(T106,T107,T50) -> 100119 | U108: =SUM(U106,U107,U50) -> 21081 | V108: 2158707 | W108: 5574697 | X108: =SUM(X106,X107,X50) -> 0 | Y108: =SUM(Y106,Y107,Y50) -> 0 | Z108: 2158707 | AA108: 5574697 | AB108: =SUM(AB106,AB107,AB50) -> 0 | AC108: =SUM(AC106,AC107,AC50) -> 0 | AD108: 2158707 | AE108: 5574697 | AF108: =SUM(AF106,AF107,AF50) -> 0 | AG108: =SUM(AG106,AG107,AG50) -> 0 | AH108: 2158707 | AI108: 5574697 | AJ108: =SUM(AJ106,AJ107,AJ50) -> 0 | AK108: =SUM(AK106,AK107,AK50) -> 0 | AL108: 2158707 | AM108: 5574697 | AN108: =SUM(AN106,AN107,AN50) -> 0 | AO108: =SUM(AO106,AO107,AO50) -> 0 | AP108: 2158707 | AQ108: 5574697 | AR108: =SUM(AR106,AR107,AR50) -> 0 | AS108: =SUM(AS106,AS107,AS50) -> 0 | AT108: 2158707 | AU108: 5574697 | AV108: =SUM(AV106,AV107,AV50) -> 0 | AW108: =SUM(AW106,AW107,AW50) -> 0 | AX108: 2158707 | AY108: 5574697 | AZ108: =SUM(AZ106,AZ107,AZ50) -> 0 | BA108: =SUM(BA106,BA107,BA50) -> 0 | BB108: 2158707 | BC108: 5574697 | BE108: =BE26 -> 10181496 | BF108: =BE10+BF50+BF106+BF107 -> 10181496

Sheet 科目細分類表
A1: この３列は触らないでください。 | D1: 科目細分類表 | G1: 下の操作を行うと、科目名及び科目グループ名（セル内で完全一致した）を置き換えます(処理としては、置き換え前に、時刻付きのバックアップEを作成します）。
G2: 文字列 | H2: 現金 | I2: を | J2: 現金 | K2: へ置き換えます。→
B4: 逆引き | D4: 科目グループ→ | E4: - | F4: - | G4: - | H4: - | I4: - | J4: - | K4: - | L4: - | M4: - | N4: - | O4: - | P4: - | Q4: - | R4: - | S4: -
A5: =E4 -> - | B5: =科目細分類[[#Headers],[現金]] -> 現金 | C5: =E4 -> - | D5: 科目名→ 細分類↓ | E5: 現金 | F5: 普通預金 | G5: 会費 | H5: 補助金 | I5: 雑収入 | J5: 事務費 | K5: 会議費 | L5: 役員費 | M5: 事業費 | N5: 助成金 | O5: 負担金 | P5: 施設費 | Q5: 積立金 | R5: 雑費 | S5: その他
A6: =F4 -> - | B6: =科目細分類[[#Headers],[普通預金]] -> 普通預金 | C6: =F4 -> - | D6: a | E6: 諸口 | F6: 振込支払 | G6: 一般世帯会費 | H6: 行政連絡業務費 | I6: 公民館使用料 | J6: - | K6: 新旧三役引継 | L6: 役員研修費 | M6: 敬老会費 | N6: AA会助成金 | O6: XX区自治会連合会 | P6: 防犯灯設置費・ＬＥＤ化工事費 | Q6: - | R6: 保険料 | S6: 未払金
A7: =G4 -> - | B7: =科目細分類[[#Headers],[会費]] -> 会費 | C7: =G4 -> - | D7: b | E7: コンビニ振込 | F7: 振替支払 | G7: アパート世帯会費 | H7: 敬老会開催費 | I7: 納涼祭祭券売上 | J7: - | K7: 新旧役員引継 | L7: 三役交際費 | M7: 地域福祉費 | N7: BB部助成金 | O7: XX市自治会連合会 | P7: 防犯灯維持費 | Q7: - | R7: 慶弔費 | S7: 借入金
A8: =H4 -> - | B8: =科目細分類[[#Headers],[補助金]] -> 補助金 | C8: =H4 -> - | D8: c | E8: 郵便局振込 | F8: 現金払出 | G8: 転入出世帯会費 | H8: 地域福祉費 | I8: エアコン使用料 | J8: - | K8: 会計監査会 | L8: 業務活動費 | M8: 自主防災費 | N8: CC会助成金 | O8: XX地区自治会連合会 | P8: 公民館管理費 | Q8: - | R8: 振込手数料 | S8: 仮払金
A9: =I4 -> - | B9: =科目細分類[[#Headers],[雑収入]] -> 雑収入 | C9: =I4 -> - | D9: d | E9: - | F9: 振込入金 | G9: 月払いアパート会費 | H9: 自主防災費 | I9: その他 | J9: - | K9: 班長会・全体部会・代議会・諮問会 | L9: - | M9: 祭事費（納涼祭） | N9: DD会助成金 | O9: 広報等仕分料 | P9: 運動公園管理費 | Q9: - | R9: その他雑費 | S9: 現金残高差異
A10: =J4 -> - | B10: =科目細分類[[#Headers],[事務費]] -> 事務費 | C10: =J4 -> - | D10: e | E10: - | F10: 現金預入 | G10: 自治会協力金 | H10: 防犯灯設置費 | I10: - | J10: - | K10: - | L10: - | M10: 戦没者慰霊祭費 | N10: EE会助成金 | O10: 自主防災費 | P10: - | Q10: - | R10: - | S10: 仮受金
A11: =K4 -> - | B11: =科目細分類[[#Headers],[会議費]] -> 会議費 | C11: =K4 -> - | D11: f | E11: - | F11: 銀行手数料 | G11: - | H11: 防犯灯維持費 | I11: - | J11: - | K11: - | L11: - | M11: 交通教室費 | N11: - | O11: 防災員研修費 | P11: - | Q11: - | R11: - | S11: -
A12: =L4 -> - | B12: =科目細分類[[#Headers],[役員費]] -> 役員費 | C12: =L4 -> - | D12: g | E12: - | F12: 諸口 | G12: - | H12: 赤十字社公費金 | I12: - | J12: - | K12: - | L12: - | M12: 土地借用料 | N12: - | O12: 自治会長研修費 | P12: - | Q12: - | R12: - | S12: -
A13: =M4 -> - | B13: =科目細分類[[#Headers],[事業費]] -> 事業費 | C13: =M4 -> - | D13: h | E13: - | F13: - | G13: - | H13: 環境美化協力金 | I13: - | J13: - | K13: - | L13: - | M13: 環境整備費 | N13: - | O13: 手をつなぐ育成会 | P13: - | Q13: - | R13: - | S13: -
A14: =N4 -> - | B14: =科目細分類[[#Headers],[助成金]] -> 助成金 | C14: =N4 -> - | D14: i | E14: - | F14: - | G14: - | H14: 河川愛護補助金 | I14: - | J14: - | K14: - | L14: - | M14: - | N14: - | O14: 社会福祉協議会会費 | P14: - | Q14: - | R14: - | S14: -
A15: =O4 -> - | B15: =科目細分類[[#Headers],[負担金]] -> 負担金 | C15: =O4 -> - | D15: j | E15: - | F15: - | G15: - | H15: - | I15: - | J15: - | K15: - | L15: - | M15: - | N15: - | O15: XX地区社会福祉協議会 | P15: - | Q15: - | R15: - | S15: -
A16: =P4 -> - | B16: =科目細分類[[#Headers],[施設費]] -> 施設費 | C16: =P4 -> - | D16: k | E16: - | F16: - | G16: - | H16: - | I16: - | J16: - | K16: - | L16: - | M16: - | N16: - | O16: 日本赤十字社 | P16: - | Q16: - | R16: - | S16: -
A17: =Q4 -> - | B17: =科目細分類[[#Headers],[積立金]] -> 積立金 | C17: =Q4 -> - | D17: l | E17: - | F17: - | G17: - | H17: - | I17: - | J17: - | K17: - | L17: - | M17: - | N17: - | O17: 赤い羽根共同募金 | P17: - | Q17: - | R17: - | S17: -
A18: =R4 -> - | B18: =科目細分類[[#Headers],[雑費]] -> 雑費 | C18: =R4 -> - | D18: m | E18: - | F18: - | G18: - | H18: - | I18: - | J18: - | K18: - | L18: - | M18: - | N18: - | O18: 緑の募金 | P18: - | Q18: - | R18: - | S18: -
A19: =S4 -> - | B19: =科目細分類[[#Headers],[その他]] -> その他 | C19: =S4 -> - | D19: n | E19: - | F19: - | G19: - | H19: - | I19: - | J19: - | K19: - | L19: - | M19: - | N19: - | O19: 歳末助け合い募金 | P19: - | Q19: - | R19: - | S19: -
D20: o | E20: - | F20: - | G20: - | H20: - | I20: - | J20: - | K20: - | L20: - | M20: - | N20: - | O20: 国際交流協会 | P20: - | Q20: - | R20: - | S20: -
D21: p | E21: - | F21: - | G21: - | H21: - | I21: - | J21: - | K21: - | L21: - | M21: - | N21: - | O21: XX祭り負担金 | P21: - | Q21: - | R21: - | S21: -
D22: q | E22: - | F22: - | G22: - | H22: - | I22: - | J22: - | K22: - | L22: - | M22: - | N22: - | O22: 第X防災会 | P22: - | Q22: - | R22: - | S22: -
D23: r | E23: - | F23: - | G23: - | H23: - | I23: - | J23: - | K23: - | L23: - | M23: - | N23: - | O23: 明るい社会づくり | P23: - | Q23: - | R23: - | S23: -

Sheet 現金照合表
B2: =説明!C24 -> A自治会
B3: 現 金 照 合 表
G4: 会計 | H4: XXXX | J4: ㊞
B5: 日付 | C5: 2021-05-31
B7: 金種 | D7: 枚数 | E7: 金額 | H7: 帳簿残高 | I7: 62564 | J7: 円
B8: 10000 | C8: 円 | D8: 3 | E8: =B8*D8 -> 30000 | F8: 円 | H8: 実際有高 | I8: =E19 -> 62564 | J8: 円
B9: 5000 | C9: 円 | D9: 0 | E9: =B9*D9 -> 0 | F9: 円 | H9: 現金過不足 | I9: =I8-I7 -> 0 | J9: 円
B10: 2000 | C10: 円 | E10: 0 | F10: 円
B11: 1000 | C11: 円 | D11: 31 | E11: 31000 | F11: 円
B12: 500 | C12: 円 | D12: 2 | E12: 1000 | F12: 円
B13: 100 | C13: 円 | D13: 4 | E13: 400 | F13: 円
B14: 50 | C14: 円 | E14: 0 | F14: 円
B15: 10 | C15: 円 | D15: 13 | E15: 130 | F15: 円
B16: 5 | C16: 円 | D16: 5 | E16: 25 | F16: 円
B17: 1 | C17: 円 | D17: 9 | E17: 9 | F17: 円
B18: 商品券 | F18: 円
B19: 現金残高 | E19: =SUM(E8:E18) -> 62564 | F19: 円

Sheet 手書き領収書フォーム
B3: 領収証 | E3: =説明!C24 -> A自治会 | G3: 様
E5: 150000 | G5: 円也
B7: 令和3年 月 日 上記正に領収いたしました。
G9: ㊞
B12: 領収証 | E12: =E3 -> A自治会 | G12: 様
E14: 100000 | G14: 円也
B16: 令和3年 月 日 上記正に領収いたしました。
G18: ㊞
B21: 領収証 | E21: =E3 -> A自治会 | G21: 様
G23: 円也
B25: 令和3年 月 日 上記正に領収いたしました。
G27: ㊞

Sheet 予算比較
B1: =期間別試算表!C2 -> A自治会 | E1: =TODAY() -> 2022-11-10
B2: =期間別試算表!BH2 -> 2021 | C2: 年度 | D2: =期間別試算表!BI2 -> 予実績比較表
E3: 単位：円
C4: =期間別試算表!BI4 -> 年間予算 | D4: =期間別試算表!BJ4 -> 累計実績 | E4: =期間別試算表!BK4 -> 差異
B5: =期間別試算表!BH5 -> 繰越現金 | C5: =期間別試算表!BI5 -> 0 | D5: =期間別試算表!BJ5 -> 0 | E5: =期間別試算表!BK5 -> 0
B6: =期間別試算表!BH6 -> 繰越普通預金 | C6: =期間別試算表!BI6 -> 1925396 | D6: =期間別試算表!BJ6 -> 1925396 | E6: =期間別試算表!BK6 -> 0
B7: =期間別試算表!BH7 -> 現金（繰越含む） | C7: =期間別試算表!BI7 -> 0 | D7: =期間別試算表!BJ7 -> 24717 | E7: =期間別試算表!BK7 -> 24717
B8: =期間別試算表!BH8 -> 普通預金（繰越含む） | C8: =期間別試算表!BI8 -> 1925396 | D8: =期間別試算表!BJ8 -> 5316669 | E8: =期間別試算表!BK8 -> 3391273
B9: =期間別試算表!BH9 -> 繰越資金 | C9: =期間別試算表!BI9 -> 1925396 | D9: =期間別試算表!BJ9 -> 5341386 | E9: =期間別試算表!BK9 -> 3415990
B10: =期間別試算表!BH10 -> 収支へ繰入 | C10: =期間別試算表!BI10 -> 1925396 | D10: =期間別試算表!BJ10 -> 0 | E10: =期間別試算表!BK10 -> -1925396
B11: =期間別試算表!BH11 -> 会費 | C11: =期間別試算表!BI11 -> 5512000 | D11: =期間別試算表!BJ11 -> 5252282 | E11: =期間別試算表!BK11 -> -259718
B12: =期間別試算表!BH12 -> 補助金 | C12: =期間別試算表!BI12 -> 1715100 | D12: =期間別試算表!BJ12 -> 304320 | E12: =期間別試算表!BK12 -> -1410780
B13: =期間別試算表!BH13 -> 雑収入 | C13: =期間別試算表!BI13 -> 1029000 | D13: =期間別試算表!BJ13 -> 18095 | E13: =期間別試算表!BK13 -> -1010905
B14: =期間別試算表!BH14 -> 収入 | C14: =期間別試算表!BI14 -> 8256100 | D14: =期間別試算表!BJ14 -> 5574697 | E14: =期間別試算表!BK14 -> -2681403
B15: =期間別試算表!BH15 -> 事務費 | C15: =期間別試算表!BI15 -> 180000 | D15: =期間別試算表!BJ15 -> 133354 | E15: =期間別試算表!BK15 -> 46646
B16: =期間別試算表!BH16 -> 会議費 | C16: =期間別試算表!BI16 -> 97000 | D16: =期間別試算表!BJ16 -> 0 | E16: =期間別試算表!BK16 -> 97000
B17: =期間別試算表!BH17 -> 役員費 | C17: =期間別試算表!BI17 -> 940000 | D17: =期間別試算表!BJ17 -> 0 | E17: =期間別試算表!BK17 -> 940000
B18: =期間別試算表!BH18 -> 事業費 | C18: =期間別試算表!BI18 -> 3751000 | D18: =期間別試算表!BJ18 -> 14520 | E18: =期間別試算表!BK18 -> 3736480
B19: =期間別試算表!BH19 -> 助成金 | C19: =期間別試算表!BI19 -> 785000 | D19: =期間別試算表!BJ19 -> 765000 | E19: =期間別試算表!BK19 -> 20000
B20: =期間別試算表!BH20 -> 負担金 | C20: =期間別試算表!BI20 -> 1330400 | D20: =期間別試算表!BJ20 -> 904080 | E20: =期間別試算表!BK20 -> 426320
B21: =期間別試算表!BH21 -> 施設費 | C21: =期間別試算表!BI21 -> 1222000 | D21: =期間別試算表!BJ21 -> 172161 | E21: =期間別試算表!BK21 -> 1049839
B22: =期間別試算表!BH22 -> 積立金 | C22: =期間別試算表!BI22 -> 400000 | D22: =期間別試算表!BJ22 -> 0 | E22: =期間別試算表!BK22 -> 400000
B23: =期間別試算表!BH23 -> 雑費 | C23: =期間別試算表!BI23 -> 290000 | D23: =期間別試算表!BJ23 -> 169592 | E23: =期間別試算表!BK23 -> 120408
B24: =期間別試算表!BH24 -> 支出 | C24: =期間別試算表!BI24 -> 8995400 | D24: =期間別試算表!BJ24 -> 2158707 | E24: =期間別試算表!BK24 -> 6836693
B25: =期間別試算表!BH25 -> 予備費 | C25: =期間別試算表!BI25 -> 1186096 | D25: =期間別試算表!BJ25 -> 3415990 | E25: =期間別試算表!BK25 -> 2229894
B26: =期間別試算表!BH26 -> 収支 | C26: =期間別試算表!BI26 -> 0 | D26: =期間別試算表!BJ26 -> 0 | E26: =期間別試算表!BK26 -> 0
